Workbook

Sheet Data
A1: Tick | B1: Semester | C1: Year | D1: Skills
A2: √ | B2: 1 | C2: 1 | D2: Knowledge and understanding | E2: Cognitive skills
B3: 2 | C3: 2 | D3: Cognitive skills | E3: Interpersonal skills
B4: 3 | C4: 3 | D4: Practical skills | E4: Communication skills
C5: 4 | D5: Interpersonal skills | E5: Digital skills
C6: 5 | D6: Communication skills | E6: Numeracy skills
C7: 6 | D7: Digital skills | E7: Leadership, autonomy and responsibility
D8: Numeracy skills | E8: Personal skills
D9: Leadership, autonomy and responsibility | E9: Entrepreneurial skills
D10: Personal skills | E10: Ethics and professionalism.
D11: Entrepreneurial skills
D12: Ethics and professionalism.
C19: 1 | D19: Knowledge and understanding
C20: 2 | D20: Cognitive skills
C21: 3 | D21: Practical skills
C22: 4 | D22: Interpersonal skills
C23: 5 | D23: Communication skills
C24: 6 | D24: Digital skills
C25: 7 | D25: Numeracy skills
C26: 8 | D26: Leadership, autonomy and responsibility
C27: 9 | D27: Personal skills
C28: 10 | D28: Entrepreneurial skills
C29: 11 | D29: Ethics and professionalism.

Sheet GUIDE
F3: Summary of Course Information Template
F4: (Table4 v2.0 June 2020)
C8: Please follow the instructions below in sequential order to provide the information on the courses in the programme. Following are the sequential instructions to fill in course information of the programme:-
C11: 1- | D11: To create a new course information, click 'FORM' worksheet.
C13: 2- | D13: Fill in the required information for the course. Course code is a mandatory field and it is unique.
D14: Data for cells in dark green color will be generated automatically.
C16: 3- | D16: Once completed, click 'Copy Sheet' button that available on the top right corner of the form.
D17: (A new worksheet will be replicated with a default name which is the course code)
C19: 4- | D19: To provide information for the following course, return to the 'FORM' worksheet.
D20: You can create a new couse by filling all new information by repeating steps 1 to 3 OR just edit the relevant fields and repeat step 3.
D21: Click ‘Clear Form’ to fill in new information.
C23: 5- | D23: Once all courses have been created, click 'Update Index' button on the top right corner of the FORM worksheet.
C25: 6- | D25: Go to 'INDEX' worksheet to see the summary index for all the courses of the programme.
D26: (All courses/ worksheet names will be populated together with % SLT for ODL courses)
C28: Note: This Table 4 and its SLT calculation are designed for home grown programme only.

Sheet FORM
B2: Table 4: Summary of Course Information
AI3: √
B5: 1 | C5: Course Name: | AI5: Semester
C6: Course Code: | AI6: 1
C7: Course Classification: | AI7: 2
B8: 2 | C8: Synopsis: | AI8: 3
B9: =B8+1 -> 3 | C9: Name(s) of Academic Staff: | F9: 1
F10: 2 | AI10: Year Offered
F11: 3 | AI11: 1
B12: =B9+1 -> 4 | C12: Semester and Year offered: | F12: Year Offered | J12: Semester | M12: Remarks: | AI12: 2
B13: =B12+1 -> 5 | C13: Credit Value: | F13: =IF(X107 ="√",INT(X99/80),INT(X99/40)) -> 0 | AI13: 3
B14: 6 | C14: Pre-requisite/ co-requisite (if any): | AI14: 4
AI15: 5
B16: 7 | C16: Course Learning Outcomes (CLO) | F16: CLO1 | AI16: 6
F17: CLO2 | AI17: 7
F18: CLO3 | AI18: 8
AI20: Compulsory
AI21: Major (core)
AI22: Minor
AI23: Elective (core)
AI24: Elective (open/free)
B25: 8 | C25: Mapping of the Course Learning Outcomes to the Programme Learning Outcomes, Teaching Methods and Assessment Methods
D27: Course Learning Outcomes | F27: Programme Learning Outcomes (PLO) | R27: Teaching Methods | W27: Assessment Methods
F28: PLO 1 | G28: PLO 2 | H28: PLO 3 | I28: PLO 4 | J28: PLO 5 | K28: PLO 6 | L28: PLO 7 | M28: PLO 8 | N28: PLO 9 | O28: PLO 10 | P28: PLO 11
D29: =IF(ISBLANK(F16),"",F16) -> CLO1
D30: CLO2
D31: CLO3
AI36: Cognitive skills
D37: Mapping with MQF Cluster of Learning Outcomes | AI37: Interpersonal skills
AI38: Communication Skills
AI39: Digital Skills
AI40: Numeracy Skills
D41: Indicate the primary causal link between the CLO and PLO by ticking '√' in the appropriate box. | AI41: Leadership, Autonomy and Responsibility
D42: C1 = Knowledge & Understanding, C2 = Cognitive Skills, C3A = Practical Skills, C3B = Interpersonal Skills, C3C = Communication Skills, C3D = Digital Skills, | AI42: Personal Skills
D43: C3E = Numeracy Skills, C3F = Leadership, Autonomy & Responsibility, C4A = Personal Skills, C4B = Entrepreneurial Skills, C5 = Ethics & Professionalism | AI43: Entrepreneurial Skills
AI44: Ethics and Professionalism
B45: 9 | C45: Transferable Skills (if applicable)
C46: (Skills learned in the course of study which can be useful and utilized in other settings) | I46: 1 | AI46: C1
I47: 2 | AI47: C2
I48: 3 | AI48: C3A
I49: Open-ended response (if any) | AI49: C3B
I50: 4 | AI50: C3C
AI51: C3D
AB52: ` | AI52: C3E
B53: 10 | C53: Distribution of Student Learning Time (SLT) | AI53: C3F
C54: Note: This SLT calculation is designed for home grown programme only. | AI54: C4A
AI55: C4B
D56: Course Content Outline and Subtopics | K56: CLO* | M56: Learning and Teaching Activities** | X56: Total SLT | AI56: C5
M57: Face-to-Face (F2F) | U57: NF2F Independent Learning (Asynchronous)
M58: Physical | Q58: Online/ Technology-mediated (Synchronous)
M59: L | N59: T | O59: P | P59: O | Q59: L | R59: T | S59: P | T59: O
D60: 1
D61: 2
D62: 3
D63: 4
D64: 5
D65: 6
D66: 7
D67: 8
D68: 9
D69: 10
D70: =D69+1 -> 11
D71: 12
D72: 13
D73: 14
D74: 15
D75: 16
D76: 17
D77: 18
D78: 19
D79: 20
D80: SUB-TOTAL SLT: | X80: =SUM(M60:P79)+SUM(Q60:T79)+SUM(U60:W79) -> 0
D81: Continous Assessement | K81: % | M81: Face-to-Face (F2F) | U81: NF2F Independent Learning for Assessment (Asynchronous)
M82: Physical | Q82: Online/ Technology-mediated (Synchronous)
D83: 1
D84: 2
D85: 3
D86: 4
D87: 5
D88: SUB-TOTAL SLT: | X88: =SUM(M83:W87) -> 0
D89: Final Assessement | K89: % | M89: Face-to-Face (F2F) | U89: NF2F Independent Learning for Assessment (Asynchronous)
M90: Physical | Q90: Online/ Technology-mediated (Synchronous)
D91: 1
D92: 2
D93: 3
D94: 4
D95: 5
D96: SUB-TOTAL SLT: | X96: =SUM(M91:W95) -> 0
D98: SLT for Assessment: | X98: =X88+X96 -> 0
D99: GRAND TOTAL SLT: | X99: =X98+X80 -> 0
D100: A | E100: % SLT for F2F Physical Component: [Total F2F Physical /(Total F2F Physical + Total F2F Online + Total Independent Learning) x 100)] | X100: =IFERROR(((SUM(M60:P79)+SUM(M83:P87)+SUM(M91:P95))/X99)* 100,"") -> 
D102: B | E102: % SLT for Online & Independent Learning Component: [(Total F2F Online + Total Independent Learning) /( Total F2F Physical + Total F2F Online + Total Independent Learning) x 100] | X102: =IFERROR((SUM(Q60:W79)+SUM(Q83:W87) + SUM(Q91:W95))/X99 * 100,"") -> 
D103: C | E103: % SLT for All Practical Component: [% F2F Physical Practical + % F2F Online Practical] | X103: =IFERROR(X104+X105,"") -> 
D104: C1 | E104: % SLT for F2F Physical Practical Component [Total F2F Physical Practical /( Total F2F Physical + Total F2F Online + Total Independent Learning) x 100)] | X104: =IFERROR(SUM(O60:O79)/X99*100,"") -> 
D105: C2 | E105: % SLT for F2F Online Practical Component [Total F2F Online Practical / (Total F2F Physical + Total F2F Online + Total Independent Learning) x 100] | X105: =IFERROR(SUM(S60:S79)/X99*100,"") -> 
Z106: =IFERROR(X102+X104,"") -> 
D107: Please tick (√) if this course is Industrial Training/ Clinical Placement/ Practicum using 50% of Effective Learning Time (ELT)
D108: Note:
D109: * Indicate the CLO based on the CLO's numbering in Item 8
D110: ** For ODL programme: Courses with mandatory practical requiremnets imposed by the programme standards or any related standards can be exempted from complying to the minimum 80% ODL delivery rule in the SLT.
B112: 11 | C112: Identify special requirement or resources to deliver the course (e.g., software, nursery, computer lab, simulation room etc)
B114: 12 | C114: References (include required and further readings, and should be the most current)
B116: 13 | C116: Other additional information (if applicable)
C119: Note: Number of PLO indicated is purely for illustration purposes only and the number is subjected to the curriculum design.

Sheet INDEX
B1: GUIDE
B2: FORM | Q2: X
B3: INDEX | C3: Classification of Courses | D3: For ODL PROGRAMME ONLY Summary of SLT Percentage for Open and Distance Learning (ODL) per course (Min 80% course) | F3: Comments by Panel of Assessors | G3: Comments by Panel of Assessors during visit (if applicable)
B4: OBM3100 | C4: Major (core) | E4: =IF(D4="","",IF(D4>=80,"√","x")) -> 
B5: OBM3213 | C5: Compulsory
B6: OBM3102 | C6: Compulsory
B7: OBM3106 | C7: Elective (core)
B8: OBM3107 | C8: Elective (core)
B9: OBM3111 | C9: Compulsory
B10: OBM3221 | C10: Major (core)
B11: OBM3329 | C11: Major (core)
B12: OBM3230 | C12: Major (core)
B13: OBM3229 | C13: Major (core)
B14: OBM3314 | C14: Major (core)
B15: OBM3204 | C15: Major (core)
B16: OBM3309 | C16: Compulsory
B17: OBM3325 | C17: Major (core)
B18: OBM3326 | C18: Major (core)
B19: OBM3103 | C19: Compulsory
B20: OBM3220 | C20: Major (core)
B21: 'OBM3302'!A1 | C21: Major (core)
B22: 'OBM3200'!A1 | C22: Compulsory
B23: 'OBM3207'!A1 | C23: Major (core)
B24: 'OBM3205'!A1 | C24: Major (core)
B25: 'OBM3105'!A1 | C25: Major (core)
B26: 'OBM3211'!A1 | C26: Major (core)
B27: 'OBM3328'!A1 | C27: Major (core)
B28: 'OBM3324'!A1 | C28: Major (core)
B29: 'OBM3218'!A1 | C29: Major (core)
B30: 'OBM3216'!A1 | C30: Major (core)
B31: 'OBM3219'!A1 | C31: Major (core)
B32: 'OBA3302'!A1 | C32: Major (core)
B33: 'OBA3216'!A1 | C33: Major (core)
B34: 'OBA3213'!A1 | C34: Major (core)
B35: 'OBA3120'!A1 | C35: Major (core)
B36: 'OBA3105'!A1 | C36: Major (core)
B37: 'OBA3121'!A1 | C37: Major (core)
B38: OMPU3112!A1 | C38: Compulsory
B39: OMPU3122!A1 | C39: Compulsory
B40: OMPU3142!A1 | C40: Compulsory
B41: OMPU3412!A1 | C41: Compulsory
B42: OMPU3215!A1 | C42: Compulsory
B43: 'OEC3162'!A1 | C43: Minor | E43: =IF(D43="","",IF(D43>=80,"√","x")) -> 
B44: 'OEB3130'!A1 | C44: Compulsory
B45: 'GP3305'!A1 | C45: Compulsory
M49: =IF(ISBLANK(D4),"",IF(D4>=80,"√","X")) -> 
E73: =COUNTIF(E4:E72,"√") -> 0 | F73: Number of ODL Courses
E74: =COUNTA(B4:B72) -> 42 | F74: Total Courses
E75: =(E73/E74)*100 -> 0 | F75: =IFERROR(IF(E75>60,"ODL PROGRAMME", "NOT MEETING MINIMUM REQUIREMENT OF ODL PROGRAMME"),"") -> NOT MEETING MINIMUM REQUIREMENT OF ODL PROGRAMME | G75: % ODL Courses/ programme (Min 61%/ programme)
Y138: =SUM(T99:T113) -> 0

Sheet OBA3105
B2: Back To FORM @ TEMPLATE
AI3: √
B5: 1 | C5: Course Name: | F5: Introduction to Finance | AI5: Semester
C6: Course Code: | F6: OBA3105 | AI6: 1
C7: Course Classification: | F7: Major (core) | AI7: 2
B8: 2 | C8: Synopsis: | F8: This module is designed to provide students with a strong foundation in finance that allows them to undertsnad and apply the concepts in the world of finance as well as to focus their attention to certain issues they can further explore. which applicable for both in personal and managerial finance. At the end of the course, students are able to recognize relationship between finance and other business disciplines, as well as to be able to use synergy of those disciplines in decision making. | AI8: 3
B9: =B8+1 -> 3 | C9: Name(s) of Academic Staff: | F9: 1 | G9: Mimi Suriaty Abdul Rani
F10: 2 | AI10: Year Offered
F11: 3 | AI11: 1
B12: =B9+1 -> 4 | C12: Semester and Year offered: | F12: Year Offered | I12: 1 | J12: Semester | L12: 1 | M12: Remarks: | AI12: 2
B13: =B12+1 -> 5 | C13: Credit Value: | F13: =IF(X107 ="√",INT(X99/80),INT(X99/40)) -> 3 | AI13: 3
B14: 6 | C14: Pre-requisite/ co-requisite (if any): | F14: None | AI14: 4
AI15: 5
B16: 7 | C16: Course Learning Outcomes (CLO) | F16: CLO1 | H16: Discuss the principles of finance and the roles of financial market that underline the finance discipline.(C2, PLO1) | AI16: 6
F17: CLO2 | H17: Demonstrate the concept of time value of money and various decision making techniques in financial planning. (C3,PLO8) | AI17: 7
F18: CLO3 | H18: Calculate the value of bonds and stock in a market place. (C3, PLO8) | AI18: 8
AI20: Compulsory
AI21: Major (core)
AI22: Minor
AI23: Elective (core)
AI24: Elective (open/free)
B25: 8 | C25: Mapping of the Course Learning Outcomes to the Programme Learning Outcomes, Teaching Methods and Assessment Methods
D27: Course Learning Outcomes | F27: Programme Learning Outcomes (PLO) | R27: Teaching Methods | W27: Assessment Methods
F28: PLO 1 | G28: PLO 2 | H28: PLO 3 | I28: PLO 4 | J28: PLO 5 | K28: PLO 6 | L28: PLO 7 | M28: PLO 8 | N28: PLO 9 | O28: PLO 10 | P28: PLO 11
D29: =IF(ISBLANK(F16),"",F16) -> CLO1 | F29: √ | R29: Synchronous Tutorial Sessions (student centered facilitation) | W29: Test and Assignment
D30: CLO2 | M30: √ | R30: Synchronous Tutorial Sessions (student centered facilitation) | W30: Test and Final Examination
D31: CLO3 | M31: √ | R31: Synchronous Tutorial Sessions (student centered facilitation) | W31: Assignment and Final Examination
AI36: Cognitive skills
D37: Mapping with MQF Cluster of Learning Outcomes | F37: C2 | AI37: Interpersonal skills
M38: C3E | AI38: Communication Skills
M39: C3E | AI39: Digital Skills
AI40: Numeracy Skills
D41: Indicate the primary causal link between the CLO and PLO by ticking '√' in the appropriate box. | AI41: Leadership, Autonomy and Responsibility
D42: C1 = Knowledge & Understanding, C2 = Cognitive Skills, C3A = Practical Skills, C3B = Interpersonal Skills, C3C = Communication Skills, C3D = Digital Skills, | AI42: Personal Skills
D43: C3E = Numeracy Skills, C3F = Leadership, Autonomy & Responsibility, C4A = Personal Skills, C4B = Entrepreneurial Skills, C5 = Ethics & Professionalism | AI43: Entrepreneurial Skills
AI44: Ethics and Professionalism
B45: 9 | C45: Transferable Skills (if applicable)
C46: (Skills learned in the course of study which can be useful and utilized in other settings) | I46: 1 | J46: Cognitive skills | AI46: C1
I47: 2 | J47: Leadership, Autonomy and Responsibility | AI47: C2
I48: 3 | J48: Numeracy Skills | AI48: C3A
I49: Open-ended response (if any) | AI49: C3B
I50: 4 | AI50: C3C
AI51: C3D
AB52: ` | AI52: C3E
B53: 10 | C53: Distribution of Student Learning Time (SLT) | AI53: C3F
C54: Note: This SLT calculation is designed for home grown programme only. | AI54: C4A
AI55: C4B
D56: Course Content Outline and Subtopics | K56: CLO* | M56: Learning and Teaching Activities** | X56: Total SLT | AI56: C5
M57: Face-to-Face (F2F) | U57: NF2F Independent Learning (Asynchronous)
M58: Physical | Q58: Online/ Technology-mediated (Synchronous)
M59: L | N59: T | O59: P | P59: O | Q59: L | R59: T | S59: P | T59: O
D60: 1 | E60: Introduction to Finance • Evolution of finance • Financial decisions in a firm • Goals of financial management | K60: CLO1 | R60: 1 | U60: 5
D61: 2 | E61: Introduction to Islamic Finance • Islam and Mu’amalah, Islamic Economic System • History and development of Islamic Banking • Development of Islamic Banks in Malaysia | K61: CLO1 | R61: 1 | U61: 5
D62: 3 | E62: PART 1 : Financial Statement and Cash Flow • Understanding financial management; balance sheet, income statement, cash flow • Common Size Balance Sheet and Income Statement | K62: CLO1 | R62: 1 | U62: 5
D63: 4 | E63: PART 2 : Financial Statement and Cash Flow • Financial ratios analysis • Limitations of ratios analysis | K63: CLO1 | R63: 1 | U63: 5
D64: 5 | E64: PART 1 : Time Value of Money • Future Values (FV) • Present Values (PV) • Interest Rate (r) or (i) • Period (t) or (n) | K64: CLO2 | R64: 1 | U64: 5
D65: 6 | E65: PART 2 : Time Value of Money • Annuities • Annuities due • Amortized loans • Compound interest with non-annual periods • Present value of perpetuity, perpetuities. | K65: CLO2 | R65: 1 | U65: 5
D66: 7 | E66: Capital Budgeting • Importance of capital budgeting • Capital budgeting techniques | K66: CLO2 | R66: 1 | U66: 5
D67: 8 | E67: PART 1 : Risk and Return • Expected return defined and measured, risk defined and measured • Risk and return of a single asset, risk and return of a portfolio | K67: CLO2 | R67: 1 | U67: 5
D68: 9 | E68: PART 2 : Risk and Return • Risk and diversification • Relationship between risk and return, the investor’s required rate of return | K68: CLO2 | R68: 1 | U68: 5
D69: 10 | E69: PART 1 : Bond Valuation • Characteristics of bonds • Types of corporate bonds | K69: CLO3 | R69: 1 | U69: 5
D70: =D69+1 -> 11 | E70: PART 2 : Bond Valuation • Bond rating • Bond valuation | K70: CLO3 | R70: 1 | U70: 5
D71: 12 | E71: PART 1 : Stock Valuation • Characteristics of common stock • Types of common stock | K71: CLO3 | R71: 1 | U71: 5
D72: 13 | E72: PART 2 : Stock Valuation • Types of common stock dividend • Stock valuation model | K72: CLO3 | R72: 1 | U72: 5
D73: 14 | E73: Working Capital Management • Risk-return tradeoff • Principle of self - liquidating debt • Cash conversion cycle | K73: CLO3 | R73: 1 | U73: 5
D74: 15
D75: 16
D76: 17
D77: 18
D78: 19
D79: 20
D80: SUB-TOTAL SLT: | X80: =SUM(M60:P79)+SUM(Q60:T79)+SUM(U60:W79) -> 84
D81: Continous Assessement | K81: % | M81: Face-to-Face (F2F) | U81: NF2F Independent Learning for Assessment (Asynchronous)
M82: Physical | Q82: Online/ Technology-mediated (Synchronous)
D83: 1 | E83: Test 1 | K83: 20 | Q83: 1 | U83: 6.2
D84: 2 | E84: Test 2 | K84: 20 | Q84: 1 | U84: 6.2
D85: 3 | E85: Assignment 1 | K85: 20 | U85: 7.2
D86: 4 | E86: Assignment 2 | K86: 10 | U86: 3.6
D87: 5
D88: SUB-TOTAL SLT: | X88: =SUM(M83:W87) -> 25.2
D89: Final Assessement | K89: % | M89: Face-to-Face (F2F) | U89: NF2F Independent Learning for Assessment (Asynchronous)
M90: Physical | Q90: Online/ Technology-mediated (Synchronous)
D91: 1 | E91: Final Examination | K91: 30 | Q91: 3 | U91: 7.8
D92: 2
D93: 3
D94: 4
D95: 5
D96: SUB-TOTAL SLT: | X96: =SUM(M91:W95) -> 10.8
D98: SLT for Assessment: | X98: =X88+X96 -> 36
D99: GRAND TOTAL SLT: | X99: =X98+X80 -> 120
D100: A | E100: % SLT for F2F Physical Component: [Total F2F Physical /(Total F2F Physical + Total F2F Online + Total Independent Learning) x 100)] | X100: =IFERROR(((SUM(M60:P79)+SUM(M83:P87)+SUM(M91:P95))/X99)* 100,"") -> 0
D102: B | E102: % SLT for Online & Independent Learning Component: [(Total F2F Online + Total Independent Learning) /( Total F2F Physical + Total F2F Online + Total Independent Learning) x 100] | X102: =IFERROR((SUM(Q60:W79)+SUM(Q83:W87) + SUM(Q91:W95))/X99 * 100,"") -> 100
D103: C | E103: % SLT for All Practical Component: [% F2F Physical Practical + % F2F Online Practical] | X103: =IFERROR(X104+X105,"") -> 0
D104: C1 | E104: % SLT for F2F Physical Practical Component [Total F2F Physical Practical /( Total F2F Physical + Total F2F Online + Total Independent Learning) x 100)] | X104: =IFERROR(SUM(O60:O79)/X99*100,"") -> 0
D105: C2 | E105: % SLT for F2F Online Practical Component [Total F2F Online Practical / (Total F2F Physical + Total F2F Online + Total Independent Learning) x 100] | X105: =IFERROR(SUM(S60:S79)/X99*100,"") -> 0
Z106: =IFERROR(X102+X104,"") -> 100
D107: Please tick (√) if this course is Industrial Training/ Clinical Placement/ Practicum using 50% of Effective Learning Time (ELT)
D108: Note:
D109: * Indicate the CLO based on the CLO's numbering in Item 8
D110: ** For ODL programme: Courses with mandatory practical requiremnets imposed by the programme standards or any related standards can be exempted from complying to the minimum 80% ODL delivery rule in the SLT.
B112: 11 | C112: Identify special requirement or resources to deliver the course (e.g., software, nursery, computer lab, simulation room etc)
B114: 12 | C114: References (include required and further readings, and should be the most current) | K114: Main Reference: Titman, Keown, A. J. and Martin, J.D. (2018). Financial Management, (13th ed). Principles and Applications, Pearson Education. Additional Reference: Block, S.B. and Hirt, G.A (2019). Foundations of Financial Management, (17th ed). McGraw Hill and Irwin. Bodie, Kane, Marcus, (2010).Essentials of Investments,( 8th ed), Boston: McGraw-Hill. Reilly, Brown, Leeds(2008). Investment Analysis and Portfolio Management, 3rd ed), CENGAGE. FinTech, Lending and Payment Innovation: A Review by Sumit Agarwal and Jian Zhang (Vol 49 no.3).
B116: 13 | C116: Other additional information (if applicable)
C119: Note: Number of PLO indicated is purely for illustration purposes only and the number is subjected to the curriculum design.

Sheet OBM3100
B2: Back To FORM @ TEMPLATE
AI3: √
B5: 1 | C5: Course Name: | F5: Principles of Marketing | AI5: Semester
C6: Course Code: | F6: OBM3100 | AI6: 1
C7: Course Classification: | F7: Major (core) | AI7: 2
B8: 2 | C8: Synopsis: | F8: Marketing is dynamic and impactful and differ between industries, most basic marketing is how businesses reach prospective customers and communicate the unique benefits of a product or service. It encompasses all the activities that companies undertake to promote, sell, and distribute product or service. The goal is to generate sales and build a loyal customer base by informing prospective and existing buyers about the offering. Target audience must first be aware that the product or service exists can hope to inspire a purchase. An essential function in any business, marketing supports efforts to acquire, keep, and grow customers. Students will learn how buisnessess engage and build loyalty and establish long-term relationship. Effective marketing programs and campaigns reach and engage audiences, differentiate the company from competitors, and support larger business objectives, such as increasing sales or expanding to a new market. | AI8: 3
B9: =B8+1 -> 3 | C9: Name(s) of Academic Staff: | F9: 1 | G9: Dr Santhi Govindan
F10: 2 | AI10: Year Offered
F11: 3 | AI11: 1
B12: =B9+1 -> 4 | C12: Semester and Year offered: | F12: Year Offered | I12: 1 | J12: Semester | L12: 1 | M12: Remarks: | AI12: 2
B13: =B12+1 -> 5 | C13: Credit Value: | F13: =IF(X107 ="√",INT(X99/80),INT(X99/40)) -> 3 | AI13: 3
B14: 6 | C14: Pre-requisite/ co-requisite (if any): | F14: Nil | AI14: 4
AI15: 5
B16: 7 | C16: Course Learning Outcomes (CLO) | F16: CLO1 | H16: Discuss basic theories and concepts in marketing. (C2, PLO1) | AI16: 6
F17: CLO2 | H17: Apply comprehensive marketing knowledge to manage problems in business organisations using different approaches. (C3, PLO2) | AI17: 7
F18: CLO3 | H18: Express effective written and oral communication and collaborative skills with diverse stakeholders. (A3, PLO4) | AI18: 8
AI20: Compulsory
AI21: Major (core)
AI22: Minor
AI23: Elective (core)
AI24: Elective (open/free)
B25: 8 | C25: Mapping of the Course Learning Outcomes to the Programme Learning Outcomes, Teaching Methods and Assessment Methods
D27: Course Learning Outcomes | F27: Programme Learning Outcomes (PLO) | R27: Teaching Methods | W27: Assessment Methods
F28: PLO 1 | G28: PLO 2 | H28: PLO 3 | I28: PLO 4 | J28: PLO 5 | K28: PLO 6 | L28: PLO 7 | M28: PLO 8 | N28: PLO 9 | O28: PLO 10 | P28: PLO 11
D29: =IF(ISBLANK(F16),"",F16) -> CLO1 | F29: √ | R29: Synchronous Tutorial Sessions (student centered facilitation) | W29: Group Assignment & Final Exam
D30: CLO2 | G30: √ | R30: Synchronous Tutorial Sessions (student centered facilitation) | W30: Case Study
D31: CLO3 | I31: √ | R31: Synchronous Tutorial Sessions (student centered facilitation) | W31: Presentation/Topic Issues Practicum
AI36: Cognitive skills
D37: Mapping with MQF Cluster of Learning Outcomes | F37: C1 | AI37: Interpersonal skills
G38: C2 | AI38: Communication Skills
I39: C3A | AI39: Digital Skills
AI40: Numeracy Skills
D41: Indicate the primary causal link between the CLO and PLO by ticking '√' in the appropriate box. | AI41: Leadership, Autonomy and Responsibility
D42: C1 = Knowledge & Understanding, C2 = Cognitive Skills, C3A = Practical Skills, C3B = Interpersonal Skills, C3C = Communication Skills, C3D = Digital Skills, | AI42: Personal Skills
D43: C3E = Numeracy Skills, C3F = Leadership, Autonomy & Responsibility, C4A = Personal Skills, C4B = Entrepreneurial Skills, C5 = Ethics & Professionalism | AI43: Entrepreneurial Skills
AI44: Ethics and Professionalism
B45: 9 | C45: Transferable Skills (if applicable)
C46: (Skills learned in the course of study which can be useful and utilized in other settings) | I46: 1 | J46: Cognitive skills | AI46: C1
I47: 2 | J47: Interpersonal skills | AI47: C2
I48: 3 | J48: Personal Skills | AI48: C3A
I49: Open-ended response (if any) | AI49: C3B
I50: 4 | AI50: C3C
AI51: C3D
AB52: ` | AI52: C3E
B53: 10 | C53: Distribution of Student Learning Time (SLT) | AI53: C3F
C54: Note: This SLT calculation is designed for home grown programme only. | AI54: C4A
AI55: C4B
D56: Course Content Outline and Subtopics | K56: CLO* | M56: Learning and Teaching Activities** | X56: Total SLT | AI56: C5
M57: Face-to-Face (F2F) | U57: NF2F Independent Learning (Asynchronous)
M58: Physical | Q58: Online/ Technology-mediated (Synchronous)
M59: L | N59: T | O59: P | P59: O | Q59: L | R59: T | S59: P | T59: O
D60: 1 | E60: Marketing: Creating and Capturing Customer Value: UNDERSTANDING THE MARKETPLACE AND CUSTOMER NEEDS, DESIGNING A CUSTOMER-DRIVEN MARKETING STRATEGY, PREPARING AN INTEGRATED MARKETING PLAN AND PROGRAM, ENGAGING CUSTOMERS AND MANAGING CUSTOMER RELATIONSHIPS, CAPTURING VALUE FROM CUSTOMERS, THE CHANGING MARKETING LANDSCAPE | K60: CLO1 | R60: 1 | U60: 5
D61: 2 | E61: Company and Marketing Strategies: COMPANY-WIDE STRATEGIC PLANNING: DEFINING MARKETING’S ROLE, PLANNING MARKETING: PARTNERING TO BUILD CUSTOMER RELATIONSHIPS, MANAGING THE MARKETING EFFORT, MEASURING AND MANAGING RETURN ON MARKETING INVESTMENT. | K61: CLO1 | R61: 1 | U61: 5
D62: 3 | E62: Analysing the Marketing Environment: THE MICROENVIRONMENT, THE MACROENVIRONMENT | K62: CLO1 | R62: 1 | U62: 5
D63: 4 | E63: Managing Marketing Environment and Gain Insights: MARKETING INFORMATION AND CUSTOMER INSIGHTS, ASSESSING MARKETING INFORMATION NEEDS, DEVELOPING MARKETING INFORMATION , MARKETING RESEARCH, ANALYZING AND USING MARKETING INFORMATION, OTHER MARKETING INFORMATION CONSIDERATIONS | K63: CLO1 | R63: 1 | U63: 5
D64: 5 | E64: Customer Buying Behaviour: CONSUMER MARKETS AND CONSUMER BUYER BEHAVIOR, THE BUYER DECISION PROCESS FOR NEW PRODUCTS, BUSINESS MARKETS AND BUSINESS BUYER BEHAVIOR | K64: CLO1 | R64: 1 | U64: 5
D65: 6 | E65: Customer Driven Strategy: MARKET SEGMENTATION, MARKET TARGETING, DIFFERENTIATION AND POSITIONINg | K65: CLO1 | R65: 1 | U65: 5
D66: 7 | E66: Product, Service, and Brand: WHAT IS A PRODUCT?, PRODUCT AND SERVICE DECISIONS, SERVICES MARKETING , BRANDING STRATEGY: BUILDING STRONG BRANDS | K66: CLO2 | R66: 1 | U66: 5
D67: 8 | E67: New Product Development and Product Life Cycle: NEW-PRODUCT DEVELOPMENT STRATEGY, THE NEW-PRODUCT DEVELOPMENT PROCESS, MANAGING NEW-PRODUCT DEVELOPMENT, PRODUCT LIFE-CYCLE STRATEGIES, ADDITIONAL PRODUCT AND SERVICE CONSIDERATIONS | K67: CLO2 | R67: 1 | U67: 5
D68: 9 | E68: Pricing Strategies- Part 1: WHAT IS A PRICE?, MAJOR PRICING STRATEGIES, OTHER INTERNAL AND EXTERNAL CONSIDERATIONS AFFECTING PRICE DECISIONS | K68: CLO2 | R68: 1 | U68: 5
D69: 10 | E69: Pricing Strategies- Part 2: NEW-PRODUCT PRICING STRATEGIES, PRODUCT MIX PRICING STRATEGIES , PRICE ADJUSTMENT STRATEGIES PRICE CHANGES,PUBLIC POLICY AND PRICING | K69: CLO2 | R69: 1 | U69: 5
D70: =D69+1 -> 11 | E70: Marketing Channels - Part 1: SUPPLY CHAINS AND THE VALUE DELIVERY NETWORK, THE NATURE AND IMPORTANCE OF MARKETING CHANNELS, CHANNEL BEHAVIOR AND ORGANIZATION, CHANNEL DESIGN DECISIONS | K70: CLO3 | R70: 1 | U70: 5
D71: 12 | E71: Marketing Channels - Part 2: CHANNEL MANAGEMENT DECISIONS, PUBLIC POLICY AND DISTRIBUTION DECISIONS, MARKETING LOGISTICS AND SUPPLY CHAIN MANAGEMENT, | K71: CLO3 | R71: 1 | U71: 5
D72: 13 | E72: Marketing Ethics and Responsibility- Part 1: SUSTAINABLE MARKETING, SOCIAL CRITICISMS OF MARKETING | K72: CLO3 | R72: 1 | U72: 5
D73: 14 | E73: Marketing Ethics and Responsibility- Part 2: CONSUMER ACTIONS TO PROMOTE SUSTAINABLE MARKETING, BUSINESS ACTIONS TOWARD SUSTAINABLE MARKETING | K73: CLO3 | R73: 1 | U73: 5
D74: 15
D75: 16
D76: 17
D77: 18
D78: 19
D79: 20
D80: SUB-TOTAL SLT: | X80: =SUM(M60:P79)+SUM(Q60:T79)+SUM(U60:W79) -> 84
D81: Continous Assessement | K81: % | M81: Face-to-Face (F2F) | U81: NF2F Independent Learning for Assessment (Asynchronous)
M82: Physical | Q82: Online/ Technology-mediated (Synchronous)
D83: 1 | E83: Group Assignment | K83: 30 | U83: 10.8
D84: 2 | E84: Case Study | K84: 30 | U84: 10.8
D85: 3 | E85: Presentation/Topic Issues Practicum | K85: 10 | Q85: 0.5 | U85: 3.1
D86: 4
D87: 5
D88: SUB-TOTAL SLT: | X88: =SUM(M83:W87) -> 25.2
D89: Final Assessement | K89: % | M89: Face-to-Face (F2F) | U89: NF2F Independent Learning for Assessment (Asynchronous)
M90: Physical | Q90: Online/ Technology-mediated (Synchronous)
D91: 1 | E91: FInal Exam | K91: 30 | Q91: 3 | U91: 7.8
D92: 2
D93: 3
D94: 4
D95: 5
D96: SUB-TOTAL SLT: | X96: =SUM(M91:W95) -> 10.8
D98: SLT for Assessment: | X98: =X88+X96 -> 36
D99: GRAND TOTAL SLT: | X99: =X98+X80 -> 120
D100: A | E100: % SLT for F2F Physical Component: [Total F2F Physical /(Total F2F Physical + Total F2F Online + Total Independent Learning) x 100)] | X100: =IFERROR(((SUM(M60:P79)+SUM(M83:P87)+SUM(M91:P95))/X99)* 100,"") -> 0
D102: B | E102: % SLT for Online & Independent Learning Component: [(Total F2F Online + Total Independent Learning) /( Total F2F Physical + Total F2F Online + Total Independent Learning) x 100] | X102: =IFERROR((SUM(Q60:W79)+SUM(Q83:W87) + SUM(Q91:W95))/X99 * 100,"") -> 100
D103: C | E103: % SLT for All Practical Component: [% F2F Physical Practical + % F2F Online Practical] | X103: =IFERROR(X104+X105,"") -> 0
D104: C1 | E104: % SLT for F2F Physical Practical Component [Total F2F Physical Practical /( Total F2F Physical + Total F2F Online + Total Independent Learning) x 100)] | X104: =IFERROR(SUM(O60:O79)/X99*100,"") -> 0
D105: C2 | E105: % SLT for F2F Online Practical Component [Total F2F Online Practical / (Total F2F Physical + Total F2F Online + Total Independent Learning) x 100] | X105: =IFERROR(SUM(S60:S79)/X99*100,"") -> 0
Z106: =IFERROR(X102+X104,"") -> 100
D107: Please tick (√) if this course is Industrial Training/ Clinical Placement/ Practicum using 50% of Effective Learning Time (ELT)
D108: Note:
D109: * Indicate the CLO based on the CLO's numbering in Item 8
D110: ** For ODL programme: Courses with mandatory practical requiremnets imposed by the programme standards or any related standards can be exempted from complying to the minimum 80% ODL delivery rule in the SLT.
B112: 11 | C112: Identify special requirement or resources to deliver the course (e.g., software, nursery, computer lab, simulation room etc)
B114: 12 | C114: References (include required and further readings, and should be the most current) | K114: Main Reference: Kotler, P., Armstrong, G. (2020). Marketing: An Introduction. New Jersey: Pearson/Prentice Hall. Additional References: (1) Jobber, D., & Ellis-Chadwick, F. (2019). Principles and Practice of Marketing, 9e. McGraw Hill. (2) Grewal, D., & Levy, M. (2021). M: marketing (p. 480). McGraw-Hill Education.
B116: 13 | C116: Other additional information (if applicable) | K116: Nilai University library provides a range of learning resources including texts, journals, perodicals, magazines, and acess to online databases and information services. It also offers online electronic resources accessible via the University's webiste.
C119: Note: Number of PLO indicated is purely for illustration purposes only and the number is subjected to the curriculum design.

Sheet OBM3102
B2: Back To FORM @ TEMPLATE
AI3: √
B5: 1 | C5: Course Name: | F5: Foundation Of Business | AI5: Semester
C6: Course Code: | F6: OBM3102 | AI6: 1
C7: Course Classification: | F7: Major (core) | AI7: 2
B8: 2 | C8: Synopsis: | F8: This module the basic subject which introduces the students to the fundamentals of business. All the business students need to have an introduction to management and business. This module will prepare them will all the basic topics/subjects that they are going to study throughout the programme such as marketing, finance and management. | AI8: 3
B9: =B8+1 -> 3 | C9: Name(s) of Academic Staff: | F9: 1 | G9: Ms. Sujatha Balakrishna
F10: 2 | AI10: Year Offered
F11: 3 | AI11: 1
B12: =B9+1 -> 4 | C12: Semester and Year offered: | F12: Year Offered | I12: 1 | J12: Semester | L12: 1 | M12: Remarks: | AI12: 2
B13: =B12+1 -> 5 | C13: Credit Value: | F13: =IF(X107 ="√",INT(X99/80),INT(X99/40)) -> 3 | AI13: 3
B14: 6 | C14: Pre-requisite/ co-requisite (if any): | F14: None | AI14: 4
AI15: 5
B16: 7 | C16: Course Learning Outcomes (CLO) | F16: CLO1 | H16: Discuss in-depth theories and concepts in business knowledge. (C2, PLO1) | AI16: 6
F17: CLO2 | H17: Demonstrate task in business operation ethically and versatile of an business organization. (P4, PLO3) | AI17: 7
F18: CLO3 | H18: Organize the various business functions and practices on the successful business.(A4, PLO6) | AI18: 8
AI20: Compulsory
AI21: Major (core)
AI22: Minor
AI23: Elective (core)
AI24: Elective (open/free)
B25: 8 | C25: Mapping of the Course Learning Outcomes to the Programme Learning Outcomes, Teaching Methods and Assessment Methods
D27: Course Learning Outcomes | F27: Programme Learning Outcomes (PLO) | R27: Teaching Methods | W27: Assessment Methods
F28: PLO 1 | G28: PLO 2 | H28: PLO 3 | I28: PLO 4 | J28: PLO 5 | K28: PLO 6 | L28: PLO 7 | M28: PLO 8 | N28: PLO 9 | O28: PLO 10 | P28: PLO 11
D29: =IF(ISBLANK(F16),"",F16) -> CLO1 | F29: √ | R29: Synchronous Tutorial Sessions (student centered facilitation) | W29: Individual Assignment
D30: CLO2 | H30: √ | R30: Synchronous Tutorial Sessions (student centered facilitation) | W30: Portfolio
D31: CLO3 | K31: √ | R31: Synchronous Tutorial Sessions (student centered facilitation) | W31: Group Assignment
AI36: Cognitive skills
D37: Mapping with MQF Cluster of Learning Outcomes | F37: C1 | H37: C3A | AI37: Interpersonal skills
K38: C3F | AI38: Communication Skills
AI39: Digital Skills
AI40: Numeracy Skills
D41: Indicate the primary causal link between the CLO and PLO by ticking '√' in the appropriate box. | AI41: Leadership, Autonomy and Responsibility
D42: C1 = Knowledge & Understanding, C2 = Cognitive Skills, C3A = Practical Skills, C3B = Interpersonal Skills, C3C = Communication Skills, C3D = Digital Skills, | AI42: Personal Skills
D43: C3E = Numeracy Skills, C3F = Leadership, Autonomy & Responsibility, C4A = Personal Skills, C4B = Entrepreneurial Skills, C5 = Ethics & Professionalism | AI43: Entrepreneurial Skills
AI44: Ethics and Professionalism
B45: 9 | C45: Transferable Skills (if applicable)
C46: (Skills learned in the course of study which can be useful and utilized in other settings) | I46: 1 | J46: Interpersonal Skills | AI46: C1
I47: 2 | J47: Communication Skills | AI47: C2
I48: 3 | J48: Ethics and Professionalism | AI48: C3A
I49: Open-ended response (if any) | AI49: C3B
I50: 4 | AI50: C3C
AI51: C3D
AB52: ` | AI52: C3E
B53: 10 | C53: Distribution of Student Learning Time (SLT) | AI53: C3F
C54: Note: This SLT calculation is designed for home grown programme only. | AI54: C4A
AI55: C4B
D56: Course Content Outline and Subtopics | K56: CLO* | M56: Learning and Teaching Activities** | X56: Total SLT | AI56: C5
M57: Face-to-Face (F2F) | U57: NF2F Independent Learning (Asynchronous)
M58: Physical | Q58: Online/ Technology-mediated (Synchronous)
M59: L | N59: T | O59: P | P59: O | Q59: L | R59: T | S59: P | T59: O
D60: 1 | E60: The business organization (Part 1) Characteristics of organization Importance of business Crafting business plan Types of organization Reason for success & failiure | K60: CLO 1 | R60: 1 | U60: 5
D61: 2 | E61: The business organization (Part 2) Management Manager vs Non managers The level of management Function of management Roles of management Skills of management Universal needs on management | K61: CLO 1 | R61: 1 | U61: 5
D62: 3 | E62: The environment of business Introduction on environment External environment Internal environment SWOT analysis PESTLE analysis | K62: CLO 1 | R62: 1 | U62: 5
D63: 4 | E63: Marketing What is marketing? Goods vs Services Marketing mix (4P's) Target marketing Market Segmentation | K63: CLO 2 | R63: 1 | U63: 5
D64: 5 | E64: Operation What does operation mean today? Transformation process 5P's of operation management Types of product process Types of layout operation | K64: CLO 2 | R64: 1 | U64: 5
D65: 6 | E65: Social Responsibility of Business and Government Social responsibility issues Benefits and costs of social responsibility | K65: CLO 3 | R65: 1 | U65: 5
D66: 7 | E66: Ethics Overview on ethics Determinant of issue in ethics How managers can improve athics among their employee | K66: CLO 3 | R66: 1 | U66: 5
D67: 8 | E67: Human Resource Management Introduction on HRM HR planning process Developing the workforce Compensation and benefits | K67: CLO 2 | R67: 1 | U67: 5
D68: 9 | E68: Economic (Part 1) What economics is all about? Microeconomic Macroeconomic | K68: CLO 2 | R68: 1 | U68: 5
D69: 10 | E69: Entrepreneurship and Small Business Management The importance of entrepreneurship in the economy The competitive advantages of small businesses | K69: CLO 3 | R69: 1 | U69: 5
D70: =D69+1 -> 11 | E70: Business and Technology Applications of technology in a business setting E-commerce activities | K70: CLO 3 | R70: 1 | U70: 5
D71: 12 | E71: Leadership Overview on leadership Management vs Leadership Types of leadership | K71: CLO 3 | R71: 1 | U71: 5
D72: 13 | E72: Financial Management Types of business budgets Types of financial records needed by businesses | K72: CLO 2 | R72: 1 | U72: 5
D73: 14 | E73: Consumers in the Global Economy Major sources of consumer information Consumer movement, rights and responsibilities | K73: CLO 2 | R73: 1 | U73: 5
D74: 15
D75: 16
D76: 17
D77: 18
D78: 19
D79: 20
D80: SUB-TOTAL SLT: | X80: =SUM(M60:P79)+SUM(Q60:T79)+SUM(U60:W79) -> 84
D81: Continous Assessement | K81: % | M81: Face-to-Face (F2F) | U81: NF2F Independent Learning for Assessment (Asynchronous)
M82: Physical | Q82: Online/ Technology-mediated (Synchronous)
D83: 1 | E83: Assignment 1 - Case Study | K83: 20 | U83: 7.2
D84: 2 | E84: Assignment 2 - Report | K84: 20 | U84: 7.2
D85: 3 | E85: Quizzes | K85: 20 | U85: 7.2
D86: 4 | E86: Presentation | K86: 10 | Q86: 0.5 | U86: 3.1
D87: 5
D88: SUB-TOTAL SLT: | X88: =SUM(M83:W87) -> 25.2
D89: Final Assessement | K89: % | M89: Face-to-Face (F2F) | U89: NF2F Independent Learning for Assessment (Asynchronous)
M90: Physical | Q90: Online/ Technology-mediated (Synchronous)
D91: 1 | E91: Final Examination | K91: 30 | Q91: 3 | U91: 7.8
D92: 2
D93: 3
D94: 4
D95: 5
D96: SUB-TOTAL SLT: | X96: =SUM(M91:W95) -> 10.8
D98: SLT for Assessment: | X98: =X88+X96 -> 36
D99: GRAND TOTAL SLT: | X99: =X98+X80 -> 120
D100: A | E100: % SLT for F2F Physical Component: [Total F2F Physical /(Total F2F Physical + Total F2F Online + Total Independent Learning) x 100)] | X100: =IFERROR(((SUM(M60:P79)+SUM(M83:P87)+SUM(M91:P95))/X99)* 100,"") -> 0
D102: B | E102: % SLT for Online & Independent Learning Component: [(Total F2F Online + Total Independent Learning) /( Total F2F Physical + Total F2F Online + Total Independent Learning) x 100] | X102: =IFERROR((SUM(Q60:W79)+SUM(Q83:W87) + SUM(Q91:W95))/X99 * 100,"") -> 100
D103: C | E103: % SLT for All Practical Component: [% F2F Physical Practical + % F2F Online Practical] | X103: =IFERROR(X104+X105,"") -> 0
D104: C1 | E104: % SLT for F2F Physical Practical Component [Total F2F Physical Practical /( Total F2F Physical + Total F2F Online + Total Independent Learning) x 100)] | X104: =IFERROR(SUM(O60:O79)/X99*100,"") -> 0
D105: C2 | E105: % SLT for F2F Online Practical Component [Total F2F Online Practical / (Total F2F Physical + Total F2F Online + Total Independent Learning) x 100] | X105: =IFERROR(SUM(S60:S79)/X99*100,"") -> 0
Z106: =IFERROR(X102+X104,"") -> 100
D107: Please tick (√) if this course is Industrial Training/ Clinical Placement/ Practicum using 50% of Effective Learning Time (ELT)
D108: Note:
D109: * Indicate the CLO based on the CLO's numbering in Item 8
D110: ** For ODL programme: Courses with mandatory practical requiremnets imposed by the programme standards or any related standards can be exempted from complying to the minimum 80% ODL delivery rule in the SLT.
B112: 11 | C112: Identify special requirement or resources to deliver the course (e.g., software, nursery, computer lab, simulation room etc)
B114: 12 | C114: References (include required and further readings, and should be the most current) | K114: Main Reference: 1.Ebert, R.J. and Griffin, R.W. (2019) Business Esssentials.(12th ed). England: Pearson. Additional Reference: 1.Robbins, S.P. and Coutler, M., (2017). Management. (10th ed). Pearson Education Limited. 2.Kotler, P. & Armstrong, G., (2016), ‘Principles of marketing’’, (16th ed) Pearson Hall. Journals: 1. Journal of Business Research (https://www.journals.elsevier.com/journal-of-business-research/open-access-articles)
B116: 13 | C116: Other additional information (if applicable)
C119: Note: Number of PLO indicated is purely for illustration purposes only and the number is subjected to the curriculum design.

Sheet OBM3103
B2: Back To FORM @ TEMPLATE
AI3: √
B5: 1 | C5: Course Name: | F5: Business Communication | AI5: Semester
C6: Course Code: | F6: OBM3103 | AI6: 1
C7: Course Classification: | F7: Major (core) | AI7: 2
B8: 2 | C8: Synopsis: | F8: This module is designed to equip students with comprehensive view of communication, its scope and importance in business, and the role of communication in establishing a favorable outside the firm environment, as well as an effective internal communication program. In addition, this module is designed to demonstrate the vital connection between recent technological developments and modern business practices. The module addresses the most essential changes in technology and how they impact the business world, while still covering timeless communication skills such as listening, presenting, and writing. This module also develops an awareness of the importance of succinct written expression to modern business communication. The module coverage helps to prepare students for success in today's thoroughly networked and hyperconnected digital-age workplace. | AI8: 3
B9: =B8+1 -> 3 | C9: Name(s) of Academic Staff: | F9: 1 | G9: Dr. Nurhafizah Zainal
F10: 2 | AI10: Year Offered
F11: 3 | AI11: 1
B12: =B9+1 -> 4 | C12: Semester and Year offered: | F12: Year Offered | I12: 1 | J12: Semester | L12: 1 | M12: Remarks: | AI12: 2
B13: =B12+1 -> 5 | C13: Credit Value: | F13: =IF(X107 ="√",INT(X99/80),INT(X99/40)) -> 3 | AI13: 3
B14: 6 | C14: Pre-requisite/ co-requisite (if any): | F14: NIL | AI14: 4
AI15: 5
B16: 7 | C16: Course Learning Outcomes (CLO) | F16: CLO1 | H16: Apply principles and theories in business communication to succeed in today's challenging digital-age workplace (C3, PLO1) | AI16: 6
F17: CLO2 | H17: Exhibit interpersonal skills that needed to succeed in today's workplace (A3, PLO4) | AI17: 7
F18: CLO3 | H18: Comply to standard writing techniques to successfully communicate with diverse stakeholders (A2, PLO5) | AI18: 8
AI20: Compulsory
AI21: Major (core)
AI22: Minor
AI23: Elective (core)
AI24: Elective (open/free)
B25: 8 | C25: Mapping of the Course Learning Outcomes to the Programme Learning Outcomes, Teaching Methods and Assessment Methods
D27: Course Learning Outcomes | F27: Programme Learning Outcomes (PLO) | R27: Teaching Methods | W27: Assessment Methods
F28: PLO 1 | G28: PLO 2 | H28: PLO 3 | I28: PLO 4 | J28: PLO 5 | K28: PLO 6 | L28: PLO 7 | M28: PLO 8 | N28: PLO 9 | O28: PLO 10 | P28: PLO 11
D29: =IF(ISBLANK(F16),"",F16) -> CLO1 | F29: √ | R29: Synchronous Tutorial Sessions (student centered facilitation) | W29: Final Exam
D30: CLO2 | I30: √ | R30: Synchronous Tutorial Sessions (student centered facilitation) | W30: Presentation
D31: CLO3 | J31: √ | R31: Synchronous Tutorial Sessions (student centered facilitation) | W31: Assignments
AI36: Cognitive skills
D37: Mapping with MQF Cluster of Learning Outcomes | F37: C1 | I37: C3B | J37: C3F | AI37: Interpersonal skills
I38: C3C | AI38: Communication Skills
AI39: Digital Skills
AI40: Numeracy Skills
D41: Indicate the primary causal link between the CLO and PLO by ticking '√' in the appropriate box. | AI41: Leadership, Autonomy and Responsibility
D42: C1 = Knowledge & Understanding, C2 = Cognitive Skills, C3A = Practical Skills, C3B = Interpersonal Skills, C3C = Communication Skills, C3D = Digital Skills, | AI42: Personal Skills
D43: C3E = Numeracy Skills, C3F = Leadership, Autonomy & Responsibility, C4A = Personal Skills, C4B = Entrepreneurial Skills, C5 = Ethics & Professionalism | AI43: Entrepreneurial Skills
AI44: Ethics and Professionalism
B45: 9 | C45: Transferable Skills (if applicable)
C46: (Skills learned in the course of study which can be useful and utilized in other settings) | I46: 1 | J46: Cognitive skills | AI46: C1
I47: 2 | J47: Digital Skills | AI47: C2
I48: 3 | J48: Ethics and Professionalism | AI48: C3A
I49: Open-ended response (if any) | AI49: C3B
I50: 4 | AI50: C3C
AI51: C3D
AB52: ` | AI52: C3E
B53: 10 | C53: Distribution of Student Learning Time (SLT) | AI53: C3F
C54: Note: This SLT calculation is designed for home grown programme only. | AI54: C4A
AI55: C4B
D56: Course Content Outline and Subtopics | K56: CLO* | M56: Learning and Teaching Activities** | X56: Total SLT | AI56: C5
M57: Face-to-Face (F2F) | U57: NF2F Independent Learning (Asynchronous)
M58: Physical | Q58: Online/ Technology-mediated (Synchronous)
M59: L | N59: T | O59: P | P59: O | Q59: L | R59: T | S59: P | T59: O
D60: 1 | E60: Overview of Business Communication (I) - Mastering tools for success in the 21st century workplace - Developing listening skills - Learning non-verbal communication skills | K60: CLO1 | R60: 1 | U60: 5
D61: 2 | E61: Overview of Business Communication (II) - Recognizing how culture affects communication - Building intercultural worrkplace skills | K61: CLO1 | R61: 1 | U61: 5
D62: 3 | E62: Communication Process (I) - Understanding the communication process - Using 3x3 writing process - Analyzing and anticipating the audience | K62: CLO1 | R62: 1 | U62: 5
D63: 4 | E63: Communication Process (II) - Using expert writing techniques to adapt to your audience - Developing additional expert writing techniques | K63: CLO1 | R63: 1 | U63: 5
D64: 5 | E64: Organizing and Drafting Business Messages - Drafting workplace messages - Organizing information to show relationships - Composing the first draft with effective sentences - Developing business writing techniques - Drafting well-organized effective paragraphs | K64: CLO3 | R64: 1 | U64: 5
D65: 6 | E65: Revising Business Messages - Making clear message - Enhancing readability through document design | K65: CLO3 | R65: 1 | U65: 5
D66: 7 | E66: Digital Communication Tools - Preparing digital-age E-mail messages and Memos - Workplace messaging and texting - Social networking | K66: CLO1 | R66: 1 | U66: 5
D67: 8 | E67: Professionalism at Work: Business Etiquette, Ethics, Teamwork, and Meetings (I) - Developing professionalism and business etiquette skills at the office and online - Communicating face-to-face on the job | K67: CLO2 | R67: 1 | U67: 5
D68: 9 | E68: Professionalism at Work: Business Etiquette, Ethics, Teamwork, and Meetings (II) - Following professional telephone and voice mail etiquette - Adding value to professional teams - Planning and participating in face-to-face and virtual meetings | K68: CLO2 | R68: 1 | U68: 5
D69: 10 | E69: Business Presentation (I) - Preparing effective business presentations - Organizing content for impact and audience rapport - Understanding contemporary visual aids | K69: CLO2 | R69: 1 | U69: 5
D70: =D69+1 -> 11 | E70: Business Presentation (II) - Preparing engaging multimedia presentations - Polishing your delivery and following up | K70: CLO2 | R70: 1 | U70: 5
D71: 12 | E71: The Job Search and Resume in The Digital Age (I) - Job searching in the digital age - Developing a job-search strategy in open job-market - Pursuing the hidden job market | K71: CLO2 | R71: 1 | U71: 5
D72: 13 | E72: The Job Search and Resume in The Digital Age (II) - Creating a customized resume - Creating customized cover messages | K72: CLO3 | R72: 1 | U72: 5
D73: 14 | E73: Interviewing and Following Up - Purposes and types of employment interviews - Before the interview - During the interview - After the interview - Preparing additional employment document | K73: CLO2 | R73: 1 | U73: 5
D74: 15
D75: 16
D76: 17
D77: 18
D78: 19
D79: 20
D80: SUB-TOTAL SLT: | X80: =SUM(M60:P79)+SUM(Q60:T79)+SUM(U60:W79) -> 84
D81: Continous Assessement | K81: % | M81: Face-to-Face (F2F) | U81: NF2F Independent Learning for Assessment (Asynchronous)
M82: Physical | Q82: Online/ Technology-mediated (Synchronous)
D83: 1 | E83: Assignment-Test | K83: 20 | U83: 7.2
D84: 2 | E84: Assignment-Revising Document | K84: 20 | U84: 7.2
D85: 3 | E85: Assignment-Report | K85: 20 | U85: 7.2
D86: 4 | E86: Presentation | K86: 10 | Q86: 0.5 | U86: 3.1
D87: 5
D88: SUB-TOTAL SLT: | X88: =SUM(M83:W87) -> 25.2
D89: Final Assessement | K89: % | M89: Face-to-Face (F2F) | U89: NF2F Independent Learning for Assessment (Asynchronous)
M90: Physical | Q90: Online/ Technology-mediated (Synchronous)
D91: 1 | E91: Final Examination | K91: 30 | Q91: 3 | U91: =SUM(0.3*36)-3 -> 7.8
D92: 2
D93: 3
D94: 4
D95: 5
D96: SUB-TOTAL SLT: | X96: =SUM(M91:W95) -> 10.8
D98: SLT for Assessment: | X98: =X88+X96 -> 36
D99: GRAND TOTAL SLT: | X99: =(X80+X88+X96) -> 120
D100: A | E100: % SLT for F2F Physical Component: [Total F2F Physical /(Total F2F Physical + Total F2F Online + Total Independent Learning) x 100)] | X100: =IFERROR(((SUM(M60:P79)+SUM(M83:P87)+SUM(M91:P95))/X99)* 100,"") -> 0
D102: B | E102: % SLT for Online & Independent Learning Component: [(Total F2F Online + Total Independent Learning) /( Total F2F Physical + Total F2F Online + Total Independent Learning) x 100] | X102: =IFERROR((SUM(Q60:W79)+SUM(Q83:W87) + SUM(Q91:W95))/X99 * 100,"") -> 100
D103: C | E103: % SLT for All Practical Component: [% F2F Physical Practical + % F2F Online Practical] | X103: =IFERROR(X104+X105,"") -> 0
D104: C1 | E104: % SLT for F2F Physical Practical Component [Total F2F Physical Practical /( Total F2F Physical + Total F2F Online + Total Independent Learning) x 100)] | X104: =IFERROR(SUM(O60:O79)/X99*100,"") -> 0
D105: C2 | E105: % SLT for F2F Online Practical Component [Total F2F Online Practical / (Total F2F Physical + Total F2F Online + Total Independent Learning) x 100] | X105: =IFERROR(SUM(S60:S79)/X99*100,"") -> 0
Z106: =IFERROR(X102+X104,"") -> 100
D107: Please tick (√) if this course is Industrial Training/ Clinical Placement/ Practicum using 50% of Effective Learning Time (ELT)
D108: Note:
D109: * Indicate the CLO based on the CLO's numbering in Item 8
D110: ** For ODL programme: Courses with mandatory practical requiremnets imposed by the programme standards or any related standards can be exempted from complying to the minimum 80% ODL delivery rule in the SLT.
B112: 11 | C112: Identify special requirement or resources to deliver the course (e.g., software, nursery, computer lab, simulation room etc) | K112: NIL
B114: 12 | C114: References (include required and further readings, and should be the most current) | K114: Main Reference: Guffey, M. A., Loewy, D. (2023). Essentials of Business Communication. 12th ed. Cengage Learning South-Western Supplementary Reference: Jerome, V. B., and Xavier, J. S. (2018). Business communication: Modern approach with latest syllabus. New Delhi: Educreation Publishing. Shwom, B. G., and Snyder, L. G. (2018). Business communication: Polishing your professional presence. 4th ed. New Jersey: Pearson Education.
B116: 13 | C116: Other additional information (if applicable) | K116: Business Communication Research and Practice Havard Business Review-Business Communication
C119: Note: Number of PLO indicated is purely for illustration purposes only and the number is subjected to the curriculum design.

Sheet OBM3106
B2: Back To FORM @ TEMPLATE
AI3: √
B5: 1 | C5: Course Name: | F5: Principles of Microeconomics | AI5: Semester
C6: Course Code: | F6: OBM3106 | AI6: 1
C7: Course Classification: | F7: Major (core) | AI7: 2
B8: 2 | C8: Synopsis: | F8: This module focuses on the knowledge and understanding of the economic behaviour of individual economic decision-makers such as consumers, workers, firms, or managers. It also analyses the interaction and behaviour of groups of these individuals such as households, industries, markets, labour unions, and trade associations. As the focus of this module is on the underlying economic principles, it making the module suitable for any student whose programme of study does not require a deeper knowledge of economic theory. In the beginning of the classes, students will be introduced to price and output as determined by the forces of demand and supply. They will learn how these forces are themselves determined as the outcome of decisions of households and firms. Recognising that firms seldom operate as price‐takers in perfectly competitive markets, their strategic decisions are examined in a variety of non-competitive circumstances, particularly those of monopoly and oligopoly. Government intervention is then examined from the perspective of attempts to mitigate market failure: students will be introduced to the analysis of externalities. | AI8: 3
B9: =B8+1 -> 3 | C9: Name(s) of Academic Staff: | F9: 1 | G9: Dr.Chandramalar Munusami
F10: 2 | AI10: Year Offered
F11: 3 | AI11: 1
B12: =B9+1 -> 4 | C12: Semester and Year offered: | F12: Year Offered | I12: 1 | J12: Semester | L12: 1 | M12: Remarks: | AI12: 2
B13: =B12+1 -> 5 | C13: Credit Value: | F13: =IF(X107 ="√",INT(X99/80),INT(X99/40)) -> 3 | AI13: 3
B14: 6 | C14: Pre-requisite/ co-requisite (if any): | F14: None | AI14: 4
AI15: 5
B16: 7 | C16: Course Learning Outcomes (CLO) | F16: CLO1 | H16: Prepare students with the terminology of microeconomics.(C3, PLO 1) | AI16: 6
F17: CLO2 | H17: Apply basic microeconomic concepts to manage complex problems in business organisations (C3, PLO 2) | AI17: 7
F18: CLO3 | H18: Analyse microeconomic variables and its role in making decision in the modern market economy.(C4, PLO 8) | AI18: 8
AI20: Compulsory
AI21: Major (core)
AI22: Minor
AI23: Elective (core)
AI24: Elective (open/free)
B25: 8 | C25: Mapping of the Course Learning Outcomes to the Programme Learning Outcomes, Teaching Methods and Assessment Methods
D27: Course Learning Outcomes | F27: Programme Learning Outcomes (PLO) | R27: Teaching Methods | W27: Assessment Methods
F28: PLO 1 | G28: PLO 2 | H28: PLO 3 | I28: PLO 4 | J28: PLO 5 | K28: PLO 6 | L28: PLO 7 | M28: PLO 8 | N28: PLO 9 | O28: PLO 10 | P28: PLO 11
D29: =IF(ISBLANK(F16),"",F16) -> CLO1 | F29: √ | R29: Synchronous Tutorial Sessions (student centered facilitation) | W29: Assignment 1/Final Exam
D30: CLO2 | G30: √ | R30: Synchronous Tutorial Sessions (student centered facilitation) | W30: Assignment 2
D31: CLO3 | M31: √ | R31: Synchronous Tutorial Sessions (student centered facilitation) | W31: Assignment 3
AI36: Cognitive skills
D37: Mapping with MQF Cluster of Learning Outcomes | F37: C1 | AI37: Interpersonal skills
G38: C2 | AI38: Communication Skills
M39: C3E | AI39: Digital Skills
AI40: Numeracy Skills
D41: Indicate the primary causal link between the CLO and PLO by ticking '√' in the appropriate box. | AI41: Leadership, Autonomy and Responsibility
D42: C1 = Knowledge & Understanding, C2 = Cognitive Skills, C3A = Practical Skills, C3B = Interpersonal Skills, C3C = Communication Skills, C3D = Digital Skills, | AI42: Personal Skills
D43: C3E = Numeracy Skills, C3F = Leadership, Autonomy & Responsibility, C4A = Personal Skills, C4B = Entrepreneurial Skills, C5 = Ethics & Professionalism | AI43: Entrepreneurial Skills
AI44: Ethics and Professionalism
B45: 9 | C45: Transferable Skills (if applicable)
C46: (Skills learned in the course of study which can be useful and utilized in other settings) | I46: 1 | J46: Personal Skills | AI46: C1
I47: 2 | J47: Digital Skills | AI47: C2
I48: 3 | J48: Entrepreneurial Skills | AI48: C3A
I49: Open-ended response (if any) | AI49: C3B
I50: 4 | AI50: C3C
AI51: C3D
AB52: ` | AI52: C3E
B53: 10 | C53: Distribution of Student Learning Time (SLT) | AI53: C3F
C54: Note: This SLT calculation is designed for home grown programme only. | AI54: C4A
AI55: C4B
D56: Course Content Outline and Subtopics | K56: CLO* | M56: Learning and Teaching Activities** | X56: Total SLT | AI56: C5
M57: Face-to-Face (F2F) | U57: NF2F Independent Learning (Asynchronous)
M58: Physical | Q58: Online/ Technology-mediated (Synchronous)
M59: L | N59: T | O59: P | P59: O | Q59: L | R59: T | S59: P | T59: O
D60: 1 | E60: Introduction to Microeconomics -Economics Defined -The Scope of Economics -The economics Problems | K60: CLO1 | R60: 1 | U60: 5
D61: 2 | E61: The Theory of Demand -Definition -Quantity demanded and price: "Law of Demand" -Quantity demanded and other product | K61: CLO1 | R61: 1 | U61: 5
D62: 3 | E62: The Theory of Supply -Definition -Quantity supplied and price: "Law of supply" -Quantity supplied and cost of input technology advancement | K62: CLO1 | R62: 1 | U62: 5
D63: 4 | E63: Elasticity of Demand -Concepts and calculations -Elasticity of linear demand curve -The determinants of price elasticity of demand -Income elasticy demand | K63: CLO2 | R63: 1 | U63: 5
D64: 5 | E64: Elasticity of Supply -Concepts and calculations | K64: CLO2 | R64: 1 | U64: 5
D65: 6 | E65: Theory of Consumer Behaviour -utility and consumer behaviour -budget constraint -utility maximisation | K65: CLO2 | R65: 1 | U65: 5
D66: 7 | E66: The Theory of Production and Cost (Part 1) -introduction -cost and benefit | K66: CLO2 | R66: 1 | U66: 5
D67: 8 | E67: The Theory of Production and Cost (Part 2) -the production decisions -short run cost curve | K67: CLO3 | R67: 1 | U67: 5
D68: 9 | E68: Perfect Competition(Part 1) -introduction:Characteristics -short run decision: Profit maximisation -short run decision: Minimising Losses | K68: CLO3 | R68: 1 | U68: 5
D69: 10 | E69: Perfect Competition(Part 2) -long run adjustment -efficiency of perfect competition | K69: CLO3 | R69: 1 | U69: 5
D70: =D69+1 -> 11 | E70: Monopolistic Competition(Part 1) -Introduction:Characteristics -product diffentiation and advertising | K70: CLO3 | R70: 1 | U70: 5
D71: 12 | E71: Monopolistic Competition(Part 2) -demand curve and marginal revenue curve -long run decision | K71: CLO3 | R71: 1 | U71: 5
D72: 13 | E72: Oligolopy -Introduction:Characteristics -oligopoly models | K72: CLO3 | R72: 1 | U72: 5
D73: 14 | E73: Monopoly -Introduction:Characteristics -short run decision: Profit maximisation -short run decision: Minimising Losses | K73: CLO3 | R73: 1 | U73: 5
D74: 15
D75: 16
D76: 17
D77: 18
D78: 19
D79: 20
D80: SUB-TOTAL SLT: | X80: =SUM(M60:P79)+SUM(Q60:T79)+SUM(U60:W79) -> 84
D81: Continous Assessement | K81: % | M81: Face-to-Face (F2F) | U81: NF2F Independent Learning for Assessment (Asynchronous)
M82: Physical | Q82: Online/ Technology-mediated (Synchronous)
D83: 1 | E83: Individual Assignment | K83: 0.2 | U83: 7.2
D84: 2 | E84: Quiz | K84: 0.2 | U84: 7.2
D85: 3 | E85: Group Assignment | K85: 0.3 | U85: 10.8
D86: 4
D87: 5
D88: SUB-TOTAL SLT: | X88: =SUM(M83:W87) -> 25.2
D89: Final Assessement | K89: % | M89: Face-to-Face (F2F) | U89: NF2F Independent Learning for Assessment (Asynchronous)
M90: Physical | Q90: Online/ Technology-mediated (Synchronous)
D91: 1 | E91: Final Examination(FE) | K91: 30 | Q91: 3 | U91: 7.8
D92: 2
D93: 3
D94: 4
D95: 5
D96: SUB-TOTAL SLT: | X96: =SUM(M91:W95) -> 10.8
D98: SLT for Assessment: | X98: =X88+X96 -> 36
D99: GRAND TOTAL SLT: | X99: =X98+X80 -> 120
D100: A | E100: % SLT for F2F Physical Component: [Total F2F Physical /(Total F2F Physical + Total F2F Online + Total Independent Learning) x 100)] | X100: =IFERROR(((SUM(M60:P79)+SUM(M83:P87)+SUM(M91:P95))/X99)* 100,"") -> 0
D102: B | E102: % SLT for Online & Independent Learning Component: [(Total F2F Online + Total Independent Learning) /( Total F2F Physical + Total F2F Online + Total Independent Learning) x 100] | X102: =IFERROR((SUM(Q60:W79)+SUM(Q83:W87) + SUM(Q91:W95))/X99 * 100,"") -> 100
D103: C | E103: % SLT for All Practical Component: [% F2F Physical Practical + % F2F Online Practical] | X103: =IFERROR(X104+X105,"") -> 0
D104: C1 | E104: % SLT for F2F Physical Practical Component [Total F2F Physical Practical /( Total F2F Physical + Total F2F Online + Total Independent Learning) x 100)] | X104: =IFERROR(SUM(O60:O79)/X99*100,"") -> 0
D105: C2 | E105: % SLT for F2F Online Practical Component [Total F2F Online Practical / (Total F2F Physical + Total F2F Online + Total Independent Learning) x 100] | X105: =IFERROR(SUM(S60:S79)/X99*100,"") -> 0
Z106: =IFERROR(X102+X104,"") -> 100
D107: Please tick (√) if this course is Industrial Training/ Clinical Placement/ Practicum using 50% of Effective Learning Time (ELT)
D108: Note:
D109: * Indicate the CLO based on the CLO's numbering in Item 8
D110: ** For ODL programme: Courses with mandatory practical requiremnets imposed by the programme standards or any related standards can be exempted from complying to the minimum 80% ODL delivery rule in the SLT.
B112: 11 | C112: Identify special requirement or resources to deliver the course (e.g., software, nursery, computer lab, simulation room etc)
B114: 12 | C114: References (include required and further readings, and should be the most current) | K114: Main Reference: 1. Mankiw, N.G, 2021. Principles of economics.South-(9th ed), Boston, MA : Cengage Learning, Inc. Additional Reference: 1.Krugman, P. & Wells, R. 2015. Economics. (4th ed) Worth Publishers. 2.Bade, R. & Parkin, M. (2017). Essential Foundations (8th ed), EconomicsPrentice Hall. 3.FUND, S. (2015). Sustainable development goals.
B116: 13 | C116: Other additional information (if applicable)
C119: Note: Number of PLO indicated is purely for illustration purposes only and the number is subjected to the curriculum design.

Sheet OMPU3122
B2: Back To FORM @ TEMPLATE
AI3: √
B5: 1 | C5: Course Name: | F5: Penghayatan Etika dan Peradaban/Appreciation of Ethics and Civilizations | AI5: Semester
C6: Course Code: | F6: OMPU3122 | AI6: 1
C7: Course Classification: | F7: Compulsory | AI7: 2
B8: 2 | C8: Synopsis: | F8: Kursus ini mempersiapkan pelajar untuk menghayati etika dan peradaban yang wujud dalam masyarakat kepelbagaian etnik di Malaysia untuk memperteguhkan pemikiran kritikal dan analitikal mereka bagi menangani kehidupan yang lebih mencabar. Pengisian kursus ini memfokuskan kepada penghayatan etika dan peradaban dalam acuan Malaysia. Pelajar akan didedahkan dengan dinamika konsep etika dan peradaban yang menjadi kekuatan kepada pembentukan negara Malaysia berdasarkan susur masa evolusi sejarahnya dari era pra-kolonial sehingga ke pasca-kolonial. Kefahaman tentang pembentukan etika dan peradaban dalam masyarakat kepelbagaian dibincangkan bagi meningkatkan penghayatan etika dan peradaban ke arah pemantapan kesepaduan nasional dan bangsa Malaysia. Peradaban acuan Malaysia perlu dikupas serta diperdebatkan dalam aktiviti akademik berpandukan Perlembagaan Persekutuan sebagai tapak integrasi dan wahana etika dan peradaban. Pembinaan kesepaduan nasional amat dipengaruhi oleh globalisasi dan perkembangan teknologi maklumat dan komunikasi yang kompleks. Oleh kerana itu, penghayatan etika dan peradaban menzahirkan perilaku tanggungjawab sosial dan digerakkan pada peringkat individu, keluarga, komuniti, masyarakat, dan negara. Justeru, perubahan yang berlaku dalam masyarakat dan pembangunan langsung ekonomi telah membawa cabaran baru dalam mengukuhkan kelestarian etika dan peradaban di Malaysia. Amalan Pendidikan Berimpak Tinggi (HIEPs) dipraktikkan dalam pengajaran dan pembelajaran bagi mendalami kursus ini. (pengajaran & pembelajaran). | AI8: 3
B9: =B8+1 -> 3 | C9: Name(s) of Academic Staff: | F9: 1 | G9: Abdul Hafez bin Zahruddin
F10: 2 | AI10: Year Offered
F11: 3 | AI11: 1
B12: =B9+1 -> 4 | C12: Semester and Year offered: | F12: Year Offered | I12: 1 | J12: Semester | L12: 1 | M12: Remarks: | AI12: 2
B13: =B12+1 -> 5 | C13: Credit Value: | F13: =IF(X107 ="√",INT(X99/80),INT(X99/40)) -> 2 | AI13: 3
B14: 6 | C14: Pre-requisite/ co-requisite (if any): | F14: Tidak berkenaan | AI14: 4
AI15: 5
B16: 7 | C16: Course Learning Outcomes (CLO) | F16: CLO1 | H16: Menjelaskan konsep etika dan peradaban dalam konteks penghayatannya mengikut acuan Malaysia. (C1, PLO1) | AI16: 6
F17: CLO2 | H17: Menganalisis sistem, tahap perkembangan, kemajuan sosial dan kebudayaan merentas etnik. (A2, PLO5) | AI17: 7
F18: CLO3 | H18: Membincangkan isu kontemporari berkaitan ekonomi, politik, sosial, budaya dan alam sekitar daripada perspektif etika dan peradaban. (A3, PLO6) | AI18: 8
AI20: Compulsory
AI21: Major (core)
AI22: Minor
AI23: Elective (core)
AI24: Elective (open/free)
B25: 8 | C25: Mapping of the Course Learning Outcomes to the Programme Learning Outcomes, Teaching Methods and Assessment Methods
D27: Course Learning Outcomes | F27: Programme Learning Outcomes (PLO) | R27: Teaching Methods | W27: Assessment Methods
F28: PLO 1 | G28: PLO 2 | H28: PLO 3 | I28: PLO 4 | J28: PLO 5 | K28: PLO 6 | L28: PLO 7 | M28: PLO 8 | N28: PLO 9 | O28: PLO 10 | P28: PLO 11
D29: =IF(ISBLANK(F16),"",F16) -> CLO1 | F29: √ | R29: Synchronous Tutorial Sessions (student centered facilitation) | W29: Final examination, Quiz
D30: CLO2 | J30: √ | R30: Synchronous Tutorial Sessions (student centered facilitation) | W30: Presentation
D31: CLO3 | K31: √ | R31: Synchronous Tutorial Sessions (student centered facilitation) | W31: Assignment
AI36: Cognitive skills
D37: Mapping with MQF Cluster of Learning Outcomes | F37: C2 | J37: C3C | K37: C5 | AI37: Interpersonal skills
AI38: Communication Skills
AI39: Digital Skills
AI40: Numeracy Skills
D41: Indicate the primary causal link between the CLO and PLO by ticking '√' in the appropriate box. | AI41: Leadership, Autonomy and Responsibility
D42: C1 = Knowledge & Understanding, C2 = Cognitive Skills, C3A = Practical Skills, C3B = Interpersonal Skills, C3C = Communication Skills, C3D = Digital Skills, | AI42: Personal Skills
D43: C3E = Numeracy Skills, C3F = Leadership, Autonomy & Responsibility, C4A = Personal Skills, C4B = Entrepreneurial Skills, C5 = Ethics & Professionalism | AI43: Entrepreneurial Skills
AI44: Ethics and Professionalism
B45: 9 | C45: Transferable Skills (if applicable)
C46: (Skills learned in the course of study which can be useful and utilized in other settings) | I46: 1 | J46: Cognitive skills | AI46: C1
I47: 2 | J47: Communication Skills | AI47: C2
I48: 3 | J48: Leadership, Autonomy and Responsibility | AI48: C3A
I49: Open-ended response (if any) | AI49: C3B
I50: 4 | AI50: C3C
AI51: C3D
AB52: ` | AI52: C3E
B53: 10 | C53: Distribution of Student Learning Time (SLT) | AI53: C3F
C54: Note: This SLT calculation is designed for home grown programme only. | AI54: C4A
AI55: C4B
D56: Course Content Outline and Subtopics | K56: CLO* | M56: Learning and Teaching Activities** | X56: Total SLT | AI56: C5
M57: Face-to-Face (F2F) | U57: NF2F Independent Learning (Asynchronous)
M58: Physical | Q58: Online/ Technology-mediated (Synchronous)
M59: L | N59: T | O59: P | P59: O | Q59: L | R59: T | S59: P | T59: O
D60: 1 | E60: Pengenalan Penghayatan Etika dan Peradaban Dalam Acuan Malaysia. - Pengenalan Etika dan Peradaban - Susur masa Etika dan Peradaban berdasarkan Pra-kolonial, Kolonial dan Pasca -Kolonial. - Kerangka menganalisis Etika dan Peradaban acuan Malaysia. - Penghayatan Etika dan Peradaban mengikut peringkat (Individu, Keluarga, Konumiti dan Masyarakat - lokal dan global). - Penghayatan Etika dan Peradaban mengikut konteks Masyarakat, Negara dan Pasaran. | K60: 1 | U60: 4
D61: 2 | E61: Konsep Etika dan Peradaban. - Pergerakan idea dan amalan etika dan Peradaban dunia. - Konsep etika dari perspektif: a) Sejarah Pemikiran Eropah b) Agama dan Kepercayaan. c) Kolonialisme dan Pasca Kolonialisme. - Konsep Peradaban dari perspektif: a) Kolonialisme dan Pasca Kolonialisme b) Timur dan Barat c) Agama dan Kepercayaan | K61: 1 | R61: 1 | U61: 5
D62: 3 | E62: Etika dan Peradaban Dalam Masyarakat Kepelbagaian. - Pembentukan etika dan peradaban dalam mesyarakat kepelbagaian. - Komponen etika dan peradaban: a) Persekitaran Geo-fizikal. b) Masyarakat dan demografi. c) Ekonomi dan pasaran. d) Falsafah dan pemikiran. | K62: 1,2 | R62: 1 | U62: 5
D63: 4 | E63: Pemantapan Kesepaduan Nasional Malaysia - Matlamat perpaduan yang diidamkan a) Detik Perpaduan b) Detik Perbezaan - Tahap kesepaduan yang dicapai a) Kesepaduan Nasional b) Kesepaduan Sosial c) Defisit sosial d) Etos nasional - Proses penyatupaduan yang diusahakan a) Etnik - tahap keetnikan, batas etnik, hubungan sosial rentas etnik. b) Alat penyatupaduan - tawar menawar, perundingan dan pengantaraan. | K63: 2 | R63: 1 | U63: 5
D64: 5 | E64: Pembinaan Peradaban Majmuk di Malaysia - Sejarah sosial pengaruh perdaban dunia dalam pembinaan negara bangsa. - Konsep negara bangsa - Konsep dan pembentukan negara bangsa dalam acuan Malaysia. - Kepelbagaian Idea "Bangsa Idaman" dan perbahasan. | K64: 2 | R64: 1 | U64: 5
D65: 6 | E65: Perlembagaan sebagai Tapak Integrasi dan Wahana Etika dan Peradaban di Malaysia. - Sejarah, definisi dan konsep perlembagaan. - Perlembagaan sebagai tiang seri dan tapak integrasi. - Konsep, keperluan dan penghayatan tapak integrasi. - Tiga platform integrasi: a) Makro (atas ke bawah) - peranan kerajaan. b) Meso (bawah ke atas) - peranan NGO. c) Mikro (Inisiatif akar umbi) - Peranan rakyat. - Cabaran dan tafsiran semasa terhadap perlembagaan persekutuan. | K65: 2 | R65: 1 | U65: 5
D66: 7 | E66: Teknologi Maklumat dan Komunikasi Penggerak Kesepaduan Nasional di Malaysia. - Evolusi dan pengglobalan teknologi. - Konsep hubungan manusia dan teknologi. - Etika dan peradaban dalam penggunaan TMK. - TMK sebagai platform pengukuhan kesepaduan nasional. - Isu semasa TMK | K66: 3 | R66: 1 | U66: 5
D67: 8 | E67: Peranan Etika dan Peradaban Mendokong Tanggungjawab Sosial di Malaysia. - Takrifan harian dan autoriti. - Peranan etika dan peradaban dalam mendokong tanggungjawab sosial. - Kesedaran nasional dalam tanggungjawab sosial. - Tanggungjawab sosial dan luar negara. - Minat kesukarelaan. | K67: 3 | R67: 1 | U67: 5
D68: 9 | E68: Cabaran Kelestarian Etika dan Peradaban di Malaysia - Kerangka menganalisis masyarakat kepelbagaian dan negara bangsa a) Defisit sosial b) Tadbir urus dan pembangunan. c) Black Economy dan Rasuah - Berkongsi matlamat pembangunan lestari dan wawasan kemakmuran bersama. - Kelangsungan lestari negara melalui etika dan peradaban. - Semangat keharmonian negara dan antarabangsa. | K68: 3 | R68: 1 | U68: 5
D69: 10
D70: =D69+1 -> 11
D71: 12
D72: 13
D73: 14
D74: 15
D75: 16
D76: 17
D77: 18
D78: 19
D79: 20
D80: SUB-TOTAL SLT: | X80: =SUM(M60:P79)+SUM(Q60:T79)+SUM(U60:W79) -> 52
D81: Continous Assessement | K81: % | M81: Face-to-Face (F2F) | U81: NF2F Independent Learning for Assessment (Asynchronous)
M82: Physical | Q82: Online/ Technology-mediated (Synchronous)
D83: 1 | E83: Assignment (reflection, case study, A3) | K83: 30 | Q83: 0.5 | U83: 10
D84: 2 | E84: Presentation | K84: 20 | Q84: 0.5 | U84: 3
D85: 3 | E85: Quiz | K85: 20 | Q85: 0.5 | U85: 3
D86: 4
D87: 5
D88: SUB-TOTAL SLT: | X88: =SUM(M83:W87) -> 17.5
D89: Final Assessement | K89: % | M89: Face-to-Face (F2F) | U89: NF2F Independent Learning for Assessment (Asynchronous)
M90: Physical | Q90: Online/ Technology-mediated (Synchronous)
D91: 1 | E91: Peperiksaan Akhir | K91: 30 | Q91: 0.5 | U91: 10
D92: 2
D93: 3
D94: 4
D95: 5
D96: SUB-TOTAL SLT: | X96: =SUM(M91:W95) -> 10.5
D98: SLT for Assessment: | X98: =X88+X96 -> 28
D99: GRAND TOTAL SLT: | X99: =X98+X80 -> 80
D100: A | E100: % SLT for F2F Physical Component: [Total F2F Physical /(Total F2F Physical + Total F2F Online + Total Independent Learning) x 100)] | X100: =IFERROR(((SUM(M60:P79)+SUM(M83:P87)+SUM(M91:P95))/X99)* 100,"") -> 0
D102: B | E102: % SLT for Online & Independent Learning Component: [(Total F2F Online + Total Independent Learning) /( Total F2F Physical + Total F2F Online + Total Independent Learning) x 100] | X102: =IFERROR((SUM(Q60:W79)+SUM(Q83:W87) + SUM(Q91:W95))/X99 * 100,"") -> 100
D103: C | E103: % SLT for All Practical Component: [% F2F Physical Practical + % F2F Online Practical] | X103: =IFERROR(X104+X105,"") -> 0
D104: C1 | E104: % SLT for F2F Physical Practical Component [Total F2F Physical Practical /( Total F2F Physical + Total F2F Online + Total Independent Learning) x 100)] | X104: =IFERROR(SUM(O60:O79)/X99*100,"") -> 0
D105: C2 | E105: % SLT for F2F Online Practical Component [Total F2F Online Practical / (Total F2F Physical + Total F2F Online + Total Independent Learning) x 100] | X105: =IFERROR(SUM(S60:S79)/X99*100,"") -> 0
Z106: =IFERROR(X102+X104,"") -> 100
D107: Please tick (√) if this course is Industrial Training/ Clinical Placement/ Practicum using 50% of Effective Learning Time (ELT)
D108: Note:
D109: * Indicate the CLO based on the CLO's numbering in Item 8
D110: ** For ODL programme: Courses with mandatory practical requiremnets imposed by the programme standards or any related standards can be exempted from complying to the minimum 80% ODL delivery rule in the SLT.
B112: 11 | C112: Identify special requirement or resources to deliver the course (e.g., software, nursery, computer lab, simulation room etc)
B114: 12 | C114: References (include required and further readings, and should be the most current) | K114: 1. Baharuddin, S.A. (Ed). (2012). Modul hubungan etnik (2nd ed.). Bangi: Institut Kajian Etnik, UKM. 2. M.B. Hooker. (1970). Readings in Malay Adat Laws. Singapore: Singapore University Press. 3. Hooker, M. B. (1972). Adat laws in modern Malaya: land tenure, traditional government, and religion. Oxford University Press. 4. Nazri Muslim. (2020). Islam dan Melayu dalam Perlembagaan: Tiang Seri Hubungan Etnik di Malaysia. Edisi Kedua. Bangi: Penerbit UKM. 5. Shamsul Amri Baharuddin. (2008). Hubungan Etnik di Malaysia: Mencari dan Mengekal Kejernihan dalam Kekeruhan. UKM Ethnic Studies Paper Series No. 1 (November) 6. Shamsul Amri Baharuddin. (2008). Many Ethnicities, Many Cultures, One Nation: The Malaysian Experience. UKM Ethnic Studies Paper Series No. 2 (November) Shamrahayu A. Aziz, “Kuasa dan Peranan Raja-Raja Melayu Dalam Perlembagaan: Sejarah dan Masa Depan, http://www.arkib.gov.my/documents/10157/6f1c6800-188b-4885-8ba8- 698102207ad1 (14.01.2020 7. Shamrahayu A. Aziz, “Kuasa dan Peranan Raja-Raja Melayu Dalam Perlembagaan: Sejarah dan Masa Depan, https://www.arkib.gov.my/documents/10157/6f1c6800-188b-4885-8ba8-698102207ad1 (14.01.2020) Sayyid Muhammad Naquib Al-Aas, Islam Dalam Sejarah dan Kebudayaan Melayu, Kuala Lumpur: Universi# Kebangsaan Malaysia, 1972 8. Sayyid Muhammad Naquib Al-Atas, Islam Dalam Sejarah dan Kebudayaan Melayu, Kuala Lumpur: Universi# Kebangsaan Malaysia, 1972
B116: 13 | C116: Other additional information (if applicable)
C119: Note: Number of PLO indicated is purely for illustration purposes only and the number is subjected to the curriculum design.

Sheet OMPU3142
B2: Back To FORM @ TEMPLATE
AI3: √
B5: 1 | C5: Course Name: | F5: Bahasa Melayu Komunikasi 2 | AI5: Semester
C6: Course Code: | F6: MPU3142 | AI6: 1
C7: Course Classification: | F7: Compulsory | AI7: 2
B8: 2 | C8: Synopsis: | F8: Kursus ini melatih pelajar antarabangsa untuk berkomunikasi dalam bahasa Melayu asas yang meliputi situasi kehidupan harian. Pelajar akan diperkenalkan dengan pertuturan dan penulisan bahasa Melayu mudah. Pengajaran dan pembelajaran akan dilaksana dalam bentuk kuliah, tutorial, tugasan dan pengalaman pembelajaran pelajar di dalam dan di luar kelas. Pada akhir kursus ini, pelajar diharapkan dapat berkomunikasi dan menulis karangan menggunakan ayat mudah dengan berkesan. | AI8: 3
B9: =B8+1 -> 3 | C9: Name(s) of Academic Staff: | F9: 1 | G9: Ms. Nur Afiqah Mohd Hanif
F10: 2 | AI10: Year Offered
F11: 3 | AI11: 1
B12: =B9+1 -> 4 | C12: Semester and Year offered: | F12: Year Offered | I12: 1 | J12: Semester | L12: 1 | M12: Remarks: | AI12: 2
B13: =B12+1 -> 5 | C13: Credit Value: | F13: 2 | AI13: 3
B14: 6 | C14: Pre-requisite/ co-requisite (if any): | F14: Tidak berkenaan | AI14: 4
AI15: 5
B16: 7 | C16: Course Learning Outcomes (CLO) | F16: CLO1 | H16: Membaca dan menjelaskan maksud ayat serta petikan mudah (C4, PLO2) | AI16: 6
F17: CLO2 | H17: Bertutur dalam pelbagai situasi dengan menggunakan ayat mudah dan ayat berlapis (C3, PLO5) | AI17: 7
F18: CLO3 | H18: Menyusun idea secara kreatif dan sistematik dalam penulisan karangan pendek (C4, PLO2) | AI18: 8
AI20: Compulsory
AI21: Major (core)
AI22: Minor
AI23: Elective (core)
AI24: Elective (open/free)
B25: 8 | C25: Mapping of the Course Learning Outcomes to the Programme Learning Outcomes, Teaching Methods and Assessment Methods
D27: Course Learning Outcomes | F27: Programme Learning Outcomes (PLO) | R27: Teaching Methods | W27: Assessment Methods
F28: PLO 1 | G28: PLO 2 | H28: PLO 3 | I28: PLO 4 | J28: PLO 5 | K28: PLO 6 | L28: PLO 7 | M28: PLO 8 | N28: PLO 9 | O28: PLO 10 | P28: PLO 11
D29: =IF(ISBLANK(F16),"",F16) -> CLO1 | G29: √ | R29: Kuliah Interaktif, Pembelajaran Beradun | W29: Tugasan, Pembelajaran Beradun
D30: CLO2 | J30: √ | R30: Kuliah Interaktif, Pembelajaran Beradun | W30: Ujian Lisan
D31: CLO3 | J31: √ | R31: Kuliah Interaktif, Pembelajaran Beradun | W31: Projek Kelas, Peperiksaan Akhir
AI36: Cognitive skills
D37: Mapping with MQF Cluster of Learning Outcomes | G37: C1 | AI37: Interpersonal skills
J38: C3C | AI38: Communication Skills
J39: C2 | AI39: Digital Skills
AI40: Numeracy Skills
D41: Indicate the primary causal link between the CLO and PLO by ticking '√' in the appropriate box. | AI41: Leadership, Autonomy and Responsibility
D42: C1 = Knowledge & Understanding, C2 = Cognitive Skills, C3A = Practical Skills, C3B = Interpersonal Skills, C3C = Communication Skills, C3D = Digital Skills, | AI42: Personal Skills
D43: C3E = Numeracy Skills, C3F = Leadership, Autonomy & Responsibility, C4A = Personal Skills, C4B = Entrepreneurial Skills, C5 = Ethics & Professionalism | AI43: Entrepreneurial Skills
AI44: Ethics and Professionalism
B45: 9 | C45: Transferable Skills (if applicable)
C46: (Skills learned in the course of study which can be useful and utilized in other settings) | I46: 1 | J46: Communication Skills | AI46: C1
I47: 2 | J47: Ethics and Professionalism | AI47: C2
I48: 3 | J48: Interpersonal skills | AI48: C3A
I49: Open-ended response (if any) | AI49: C3B
I50: 4 | AI50: C3C
AI51: C3D
AB52: ` | AI52: C3E
B53: 10 | C53: Distribution of Student Learning Time (SLT) | AI53: C3F
C54: Note: This SLT calculation is designed for home grown programme only. | AI54: C4A
AI55: C4B
D56: Course Content Outline and Subtopics | K56: CLO* | M56: Learning and Teaching Activities** | X56: Total SLT | AI56: C5
M57: Face-to-Face (F2F) | U57: NF2F Independent Learning (Asynchronous)
M58: Physical | Q58: Online/ Technology-mediated (Synchronous)
M59: L | N59: T | O59: P | P59: O | Q59: L | R59: T | S59: P | T59: O
D60: 1 | E60: Bunyi dan Sebutan • Bunyi Vokal dan Diftong • Bunyi Konsonan dan Gugusan Konsonan • Nombor | K60: CLO2 | R60: 1 | U60: 7
D61: 2 | E61: Saya, Kawan dan Keluarga • Diri Saya • Anggota Badan Saya • Kawan dan Keluarga | K61: CLO1 | R61: 1 | U61: 7
D62: 3 | E62: Persekitaran • Aktiviti Harian | K62: CLO3 | R62: 1 | U62: 7
D63: 4 | E63: Situasi Perbualan • Perbualan Melalui Telefon • Perbualan Umum | K63: CLO2 | R63: 1 | U63: 7
D64: 5 | E64: Percutian • Tempat-tempat Menarik • Perjalanan | K64: CLO3 | R64: 1 | U64: 7
D65: 6
D66: 7
D67: 8
D68: 9
D69: 10
D70: =D69+1 -> 11
D71: 12
D72: 13
D73: 14
D74: 15
D75: 16
D76: SUB-TOTAL SLT: | X76: =SUM(M60:P75)+SUM(Q60:T75)+SUM(U60:W75) -> 40
D77: Continous Assessement | K77: % | M77: Face-to-Face (F2F) | U77: NF2F Independent Learning for Assessment (Asynchronous)
M78: Physical | Q78: Online/ Technology-mediated (Synchronous)
D79: 1 | E79: Ujian Pertengahan | K79: 20 | Q79: 2 | U79: =(0.2)*(120-40)-Q79 -> 14
D80: 2 | E80: Ujian Lisan | K80: 10 | Q80: 2 | U80: =(0.1)*(120-40)-Q80 -> 6
D81: 3 | E81: Tugasan Individu | K81: 10 | Q81: 4 | U81: 4
D82: 4 | E82: Kuiz/Latihan | K82: 10 | Q82: 7 | U82: 1
D83: 5
D84: SUB-TOTAL SLT: | X84: =SUM(M79:W83) -> 40
D85: Final Assessement | K85: % | M85: Face-to-Face (F2F) | U85: NF2F Independent Learning for Assessment (Asynchronous)
M86: Physical | Q86: Online/ Technology-mediated (Synchronous)
D87: 1 | E87: Peperiksaan Akhir | K87: 50 | Q87: 3 | U87: =(0.5)*(120-40)-Q87 -> 37
D88: 2
D89: 3
D90: 4
D91: 5
D92: SUB-TOTAL SLT: | X92: =SUM(M87:W91) -> 40
D94: SLT for Assessment: | X94: =X84+X92 -> 80
D95: GRAND TOTAL SLT: | X95: =X94+X76 -> 120
D96: A | E96: % SLT for F2F Physical Component: [Total F2F Physical /(Total F2F Physical + Total F2F Online + Total Independent Learning) x 100)] | X96: =IFERROR(((SUM(M60:P75)+SUM(M79:P83)+SUM(M87:P91))/X95)* 100,"") -> 0
D98: B | E98: % SLT for Online & Independent Learning Component: [(Total F2F Online + Total Independent Learning) /( Total F2F Physical + Total F2F Online + Total Independent Learning) x 100] | X98: =IFERROR((SUM(Q60:W75)+SUM(Q79:W83) + SUM(Q87:W91))/X95 * 100,"") -> 100
D99: C | E99: % SLT for All Practical Component: [% F2F Physical Practical + % F2F Online Practical] | X99: =IFERROR(X100+X101,"") -> 0
D100: C1 | E100: % SLT for F2F Physical Practical Component [Total F2F Physical Practical /( Total F2F Physical + Total F2F Online + Total Independent Learning) x 100)] | X100: =IFERROR(SUM(O60:O75)/X95*100,"") -> 0
D101: C2 | E101: % SLT for F2F Online Practical Component [Total F2F Online Practical / (Total F2F Physical + Total F2F Online + Total Independent Learning) x 100] | X101: =IFERROR(SUM(S60:S75)/X95*100,"") -> 0
Z102: =IFERROR(X98+X100,"") -> 100
D103: Please tick (√) if this course is Industrial Training/ Clinical Placement/ Practicum using 50% of Effective Learning Time (ELT)
D104: Note:
D105: * Indicate the CLO based on the CLO's numbering in Item 8
D106: ** For ODL programme: Courses with mandatory practical requiremnets imposed by the programme standards or any related standards can be exempted from complying to the minimum 80% ODL delivery rule in the SLT.
B108: 11 | C108: Identify special requirement or resources to deliver the course (e.g., software, nursery, computer lab, simulation room etc)
B110: 12 | C110: References (include required and further readings, and should be the most current) | K110: 1. Baharuddin, S.A. (Ed). (2012). Modul hubungan etnik (2nd ed.). Bangi: Institut Kajian Etnik, UKM. 2. M.B. Hooker. (1970). Readings in Malay Adat Laws. Singapore: Singapore University Press. 3. Hooker, M. B. (1972). Adat laws in modern Malaya: land tenure, traditional government, and religion. Oxford University Press. 4. Nazri Muslim. (2020). Islam dan Melayu dalam Perlembagaan: Tiang Seri Hubungan Etnik di Malaysia. Edisi Kedua. Bangi: Penerbit UKM. 5. Shamsul Amri Baharuddin. (2008). Hubungan Etnik di Malaysia: Mencari dan Mengekal Kejernihan dalam Kekeruhan. UKM Ethnic Studies Paper Series No. 1 (November) 6. Shamsul Amri Baharuddin. (2008). Many Ethnicities, Many Cultures, One Nation: The Malaysian Experience. UKM Ethnic Studies Paper Series No. 2 (November) Shamrahayu A. Aziz, “Kuasa dan Peranan Raja-Raja Melayu Dalam Perlembagaan: Sejarah dan Masa Depan, http://www.arkib.gov.my/documents/10157/6f1c6800-188b-4885-8ba8- 698102207ad1 (14.01.2020 7. Shamrahayu A. Aziz, “Kuasa dan Peranan Raja-Raja Melayu Dalam Perlembagaan: Sejarah dan Masa Depan, https://www.arkib.gov.my/documents/10157/6f1c6800-188b-4885-8ba8-698102207ad1 (14.01.2020) Sayyid Muhammad Naquib Al-Aas, Islam Dalam Sejarah dan Kebudayaan Melayu, Kuala Lumpur: Universi# Kebangsaan Malaysia, 1972 8. Sayyid Muhammad Naquib Al-Atas, Islam Dalam Sejarah dan Kebudayaan Melayu, Kuala Lumpur: Universi# Kebangsaan Malaysia, 1972
B112: 13 | C112: Other additional information (if applicable)
C115: Note: Number of PLO indicated is purely for illustration purposes only and the number is subjected to the curriculum design.

Sheet OBA3120
B2: Table 4: Summary of Course Information
AI3: √
B5: 1 | C5: Course Name: | F5: Introduction to Financial Accounting | AI5: Semester
C6: Course Code: | F6: OBA 3120 | AI6: 1
C7: Course Classification: | F7: Major (core) | AI7: 2
B8: 2 | C8: Synopsis: | F8: This module provides a thorough grounding in the fundamental elements of financial accounting – both theoretical and practical. | AI8: 3
B9: =B8+1 -> 3 | C9: Name(s) of Academic Staff: | F9: 1 | G9: Lim Chan Chee
F10: 2 | AI10: Year Offered
F11: 3 | AI11: 1
B12: =B9+1 -> 4 | C12: Semester and Year offered: | F12: Year Offered | I12: 1 | J12: Semester | L12: 2 | M12: Remarks: | AI12: 2
B13: =B12+1 -> 5 | C13: Credit Value: | F13: =IF(X102 ="√",INT(X94/80),INT(X94/40)) -> 3 | AI13: 3
B14: 6 | C14: Pre-requisite/ co-requisite (if any): | F14: None | AI14: 4
AI15: 5
B16: 7 | C16: Course Learning Outcomes (CLO) | F16: CLO1 | H16: Explain core accounting concepts/principles and their relationship to the accounting equation (C2,PLO1) | AI16: 6
F17: CLO2 | H17: Apply the double entry system to the recording of financial transactions(C3,PLO8) | AI17: 7
F18: CLO3 | H18: Prepare a full set of financial statements for limited company, partnership and manufacturing company. (C4,PLO8) | AI18: 8
AI20: Compulsory
AI21: Major (core)
AI22: Minor
AI23: Elective (core)
AI24: Elective (open/free)
B25: 8 | C25: Mapping of the Course Learning Outcomes to the Programme Learning Outcomes, Teaching Methods and Assessment Methods
D27: Course Learning Outcomes | F27: Programme Learning Outcomes (PLO) | R27: Teaching Methods | W27: Assessment Methods
F28: PLO 1 | G28: PLO 2 | H28: PLO 3 | I28: PLO 4 | J28: PLO 5 | K28: PLO 6 | L28: PLO 7 | M28: PLO 8 | N28: PLO 9 | O28: PLO 10 | P28: PLO 11
D29: =IF(ISBLANK(F16),"",F16) -> CLO1 | F29: √ | R29: Synchronous Tutorial Sessions (student centered facilitation) | W29: Individual Assignment
D30: CLO2 | M30: √ | R30: Synchronous Tutorial Sessions (student centered facilitation) | W30: Group Project and Final Examination
D31: CLO3 | M31: √ | R31: Synchronous Tutorial Sessions (student centered facilitation) | W31: Group Project and Final Examination
D37: Mapping with MQF Cluster of Learning Outcomes | F37: C2 | AI37: Cognitive skills
M38: C3E | AI38: Interpersonal skills
M39: C3E | AI39: Communication Skills
AI40: Digital Skills
D41: Indicate the primary causal link between the CLO and PLO by ticking '√' in the appropriate box. | AI41: Numeracy Skills
D42: C1 = Knowledge & Understanding, C2 = Cognitive Skills, C3A = Practical Skills, C3B = Interpersonal Skills, C3C = Communication Skills, C3D = Digital Skills, | AI42: Leadership, Autonomy and Responsibility
D43: C3E = Numeracy Skills, C3F = Leadership, Autonomy & Responsibility, C4A = Personal Skills, C4B = Entrepreneurial Skills, C5 = Ethics & Professionalism | AI43: Personal Skills
AI44: Entrepreneurial Skills
B45: 9 | C45: Transferable Skills (if applicable) | AI45: Ethics and Professionalism
C46: (Skills learned in the course of study which can be useful and utilized in other settings) | I46: 1 | J46: Cognitive skills | AI46: C1
I47: 2 | J47: Numeracy Skills | AI47: C2
I48: 3 | AI48: C3A
I49: Open-ended response (if any) | AI49: C3B
I50: 4 | AI50: C3C
AI51: C3D
AB52: ` | AI52: C3E
B53: 10 | C53: Distribution of Student Learning Time (SLT) | AI53: C3F
C54: Note: This SLT calculation is designed for home grown programme only. | AI54: C4A
AI55: C4B
D56: Course Content Outline and Subtopics | K56: CLO* | M56: Learning and Teaching Activities** | X56: Total SLT | AI56: C5
M57: Face-to-Face (F2F) | U57: NF2F Independent Learning (Asynchronous)
M58: Physical | Q58: Online/ Technology-mediated (Synchronous)
M59: L | N59: T | O59: P | P59: O | Q59: L | R59: T | S59: P | T59: O
D60: 1 | E60: Introduction to Financial Accounting - Definition of Accounting - The Accounting Process - Role of Accounting Today - Users of Accounting Information - Management & Financial Accounting | K60: CLO1 | R60: 1 | U60: 5
D61: 2 | E61: Recognition, valuation, presentation and the accounting equation - Accounting Elements & Characteristics - Accounting Concepts & Principles | K61: CLO1 | R61: 1 | U61: 5
D62: 3 | E62: Double entry bookkeeping - Business Transactions - Accounting Equation - Accounting Components - Transactions Analysis - Accounting Cycle - Definition of Account - Debit and Credit - Rules of Debit and Credit - Books of Prime Entry - General Ledger - Types of Accounts - Trade and Cash Discounts - Closing the Accounts - Trial Balance | K62: CLO2 | R62: 1 | U62: 5
D63: 4 | E63: Adjustments to financial accounts and financial statement - Closing the Book - Statement of Profit or Loss - Statement of Financial Position - Balance Day Adjustments - Reasons of Adjustments - Types of Adjustments | K63: CLO2 | R63: 1 | U63: 5
D64: 5 | E64: Non current assets and Depreciation - Definition of Non-current Assets - Recognition of Non-current Assets - Costs of Non-current Assets - Types of Non-Current Assets - Capital vs. Revenue Expenditure - Capital vs. Revenue Income | K64: CLO2 | R64: 1 | U64: 5
D65: 6 | E65: Non current assets and Depreciation - Depreciation - Methods of Depreciation - Recording Depreciation - Disposal of Non-current Assets | K65: CLO2 | R65: 1 | U65: 5
D66: 7 | E66: Bad and doubtful debts - Bad Debts - Bad Debts Recovered - Provision for Doubtful Debts | K66: CLO2 | R66: 1 | U66: 5
D67: 8 | E67: Bank Reconciliation - Bank Account Control - Advantages of Bank Current Account - Bank Ledger vs. Bank Statement - Reasons of Discrepancy - Dishonored Cheques | K67: CLO3 | R67: 1 | U67: 5
D68: 9 | E68: Bank Reconciliation - Steps in Bank Reconciliation - Bank Reconciliation Statement | K68: CLO3 | R68: 1 | U68: 5
D69: 10 | E69: Manufacturing Accounts - Manufacturing vs. Trading - Production Costs - Work-in-progress (WIP) - Manufacturing Accounts - Non-production Costs | K69: CLO3 | R69: 1 | U69: 5
D70: 11 | E70: Manufacturing Accounts - Statement of Profit or Loss - Statement of Financial Position | K70: CLO3 | R70: 1 | U70: 5
D71: 12 | E71: Accounting for limited companies - Definition & Characteristics - Legal Powers & Duties - Capital Structure - Reserve - Dividends & Taxes | K71: CLO3 | R71: 1 | U71: 5
D72: 13 | E72: Accounting for limited companies - Statement of Profit Appropriation - Preparation of Financial Statements | K72: CLO3 | R72: 1 | U72: 5
D73: 14 | E73: Accounting for partnerships - Definition & Characteristics - Partnership Agreement - Profit Appropriation Account - Statement of Financial Position | K73: CLO3 | R73: 1 | U73: 5
D74: 15
D75: SUB-TOTAL SLT: | X75: =SUM(M60:P74)+SUM(Q60:T74)+SUM(U60:W74) -> 84
D76: Continous Assessement | K76: % | M76: Face-to-Face (F2F) | U76: NF2F Independent Learning for Assessment (Asynchronous)
M77: Physical | Q77: Online/ Technology-mediated (Synchronous)
D78: 1 | E78: Individual Assignment | K78: 35 | U78: 12.6
D79: 2 | E79: Group Project | K79: 35 | U79: 12.6
D80: 3
D81: 4
D82: 5
D83: SUB-TOTAL SLT: | X83: =SUM(M78:W82) -> 25.2
D84: Final Assessement | K84: % | M84: Face-to-Face (F2F) | U84: NF2F Independent Learning for Assessment (Asynchronous)
M85: Physical | Q85: Online/ Technology-mediated (Synchronous)
D86: 1 | E86: Final Examination | K86: 30 | Q86: 3 | U86: 7.8
D87: 2
D88: 3
D89: 4
D90: 5
D91: SUB-TOTAL SLT: | X91: =SUM(M86:W90) -> 10.8
D93: SLT for Assessment: | X93: =X83+X91 -> 36
D94: GRAND TOTAL SLT: | X94: =X93+X75 -> 120
D95: A | E95: % SLT for F2F Physical Component: [Total F2F Physical /(Total F2F Physical + Total F2F Online + Total Independent Learning) x 100)] | X95: =IFERROR(((SUM(M60:P74)+SUM(M78:P82)+SUM(M86:P90))/X94)* 100,"") -> 0
D97: B | E97: % SLT for Online & Independent Learning Component: [(Total F2F Online + Total Independent Learning) /( Total F2F Physical + Total F2F Online + Total Independent Learning) x 100] | X97: =IFERROR((SUM(Q60:W74)+SUM(Q78:W82) + SUM(Q86:W90))/X94 * 100,"") -> 100
D98: C | E98: % SLT for All Practical Component: [% F2F Physical Practical + % F2F Online Practical] | X98: =IFERROR(X99+X100,"") -> 0
D99: C1 | E99: % SLT for F2F Physical Practical Component [Total F2F Physical Practical /( Total F2F Physical + Total F2F Online + Total Independent Learning) x 100)] | X99: =IFERROR(SUM(O60:O74)/X94*100,"") -> 0
D100: C2 | E100: % SLT for F2F Online Practical Component [Total F2F Online Practical / (Total F2F Physical + Total F2F Online + Total Independent Learning) x 100] | X100: =IFERROR(SUM(S60:S74)/X94*100,"") -> 0
Z101: =IFERROR(X97+X99,"") -> 100
D102: Please tick (√) if this course is Industrial Training/ Clinical Placement/ Practicum using 50% of Effective Learning Time (ELT)
D103: Note:
D104: * Indicate the CLO based on the CLO's numbering in Item 8
D105: ** For ODL programme: Courses with mandatory practical requiremnets imposed by the programme standards or any related standards can be exempted from complying to the minimum 80% ODL delivery rule in the SLT.
B107: 11 | C107: Identify special requirement or resources to deliver the course (e.g., software, nursery, computer lab, simulation room etc)
B109: 12 | C109: References (include required and further readings, and should be the most current) | K109: Mohd Nizal Haniff et al. (2018) Fundamentals of Financial Accounting, 2nd edition, Oxford University Press. Misrun, E. & Shafie, S.Z. (2018) Principles of Accounting, 1st edition, Oxford Fajar. Wan Ibrahim, W.M., Palil, M.R. & Abdul Rahman, M.R.C. (2017) Fundamentals of Accounting For Non-Accounting Students, 1st edition, Oxford University Press. Beuselinck, C., Elfers, F., Gassen, J. and Pierk, J. (2023) 'Private firm accounting: the European reporting environment, data and research perspectives', Accounting and Business Research, 53(1), pp. 38-82. Duc, L. (2023) 'The impact of quality of financial accounting information on SMEs’ business performance', International journal of business and globalisation. Edwards, J. R. (2023) 'Cash to accruals accounting in British central government: A journey through time', Financial Accountability & Management, 39(1), pp. 40-59. Marshall, D. H., McManus, W. W. and Viele, D. F. (2023) Accounting: What the numbers mean. McGraw Hill Education. Sa’ad, H. N., Abubakar, Z. and Salami, S. (2023) 'ACCOUNTING CONSERVATISM AND CORPORATE TAX AVOIDANCE', International Journal of Banking and Finance, 18(1), pp. 51-66.
B111: 13 | C111: Other additional information (if applicable)
C114: Note: Number of PLO indicated is purely for illustration purposes only and the number is subjected to the curriculum design.

Sheet OEC3162
B2: Back To FORM @ TEMPLATE
AI3: √
B5: 1 | C5: Course Name: | F5: Essentials of Information Skills | AI5: Semester
C6: Course Code: | F6: OEC3162 | AI6: 1
C7: Course Classification: | F7: Major (core) | AI7: 2
B8: 2 | C8: Synopsis: | F8: EC3162 provides the fundamental skills and knowledge in information and communication technologies in business. It helps the student to be aware of other aspects of the information technology currently used in organisations and demonstrates and exemplifies the use of Information systems. | AI8: 3
B9: =B8+1 -> 3 | C9: Name(s) of Academic Staff: | F9: 1 | G9: Thagirarani Muniandy
F10: 2 | AI10: Year Offered
F11: 3 | AI11: 1
B12: =B9+1 -> 4 | C12: Semester and Year offered: | F12: Year Offered | I12: 1 | J12: Semester | L12: 2 | M12: Remarks: | AI12: 2
B13: =B12+1 -> 5 | C13: Credit Value: | F13: =IF(X107 ="√",INT(X99/80),INT(X99/40)) -> 3 | AI13: 3
B14: 6 | C14: Pre-requisite/ co-requisite (if any): | F14: None | AI14: 4
AI15: 5
B16: 7 | C16: Course Learning Outcomes (CLO) | F16: CLO1 | H16: define information and communication technology and their impact on the development of information systems; (C4, PLO1) | AI16: 6
F17: CLO2 | H17: use spreadsheet software in solving a variety of business problems; and (P4, PLO3) | AI17: 7
F18: CLO3 | H18: find appropriate sources of information by searching library databases and electronic journals. (C4, PLO7 ) | AI18: 8
AI20: Compulsory
AI21: Major (core)
AI22: Minor
AI23: Elective (core)
AI24: Elective (open/free)
B25: 8 | C25: Mapping of the Course Learning Outcomes to the Programme Learning Outcomes, Teaching Methods and Assessment Methods
D27: Course Learning Outcomes | F27: Programme Learning Outcomes (PLO) | R27: Teaching Methods | W27: Assessment Methods
F28: PLO 1 | G28: PLO 2 | H28: PLO 3 | I28: PLO 4 | J28: PLO 5 | K28: PLO 6 | L28: PLO 7 | M28: PLO 8 | N28: PLO 9 | O28: PLO 10 | P28: PLO 11
D29: =IF(ISBLANK(F16),"",F16) -> CLO1 | F29: √ | R29: Synchronous Tutorial Sessions (student centered facilitation) | W29: Final Examination
D30: CLO2 | H30: √ | R30: Synchronous Tutorial Sessions (student centered facilitation) | W30: Practical Test
D31: CLO3 | L31: √ | R31: Synchronous Tutorial Sessions (student centered facilitation) | W31: Report, Presentation
AI36: Cognitive skills
D37: Mapping with MQF Cluster of Learning Outcomes | F37: C2 | AI37: Interpersonal skills
H38: C3A | AI38: Communication Skills
L39: C3D | AI39: Digital Skills
AI40: Numeracy Skills
D41: Indicate the primary causal link between the CLO and PLO by ticking '√' in the appropriate box. | AI41: Leadership, Autonomy and Responsibility
D42: C1 = Knowledge & Understanding, C2 = Cognitive Skills, C3A = Practical Skills, C3B = Interpersonal Skills, C3C = Communication Skills, C3D = Digital Skills, | AI42: Personal Skills
D43: C3E = Numeracy Skills, C3F = Leadership, Autonomy & Responsibility, C4A = Personal Skills, C4B = Entrepreneurial Skills, C5 = Ethics & Professionalism | AI43: Entrepreneurial Skills
AI44: Ethics and Professionalism
B45: 9 | C45: Transferable Skills (if applicable)
C46: (Skills learned in the course of study which can be useful and utilized in other settings) | I46: 1 | J46: Digital Skills | AI46: C1
I47: 2 | J47: Cognitive skills | AI47: C2
I48: 3 | AI48: C3A
I49: Open-ended response (if any) | AI49: C3B
I50: 4 | AI50: C3C
AI51: C3D
AB52: ` | AI52: C3E
B53: 10 | C53: Distribution of Student Learning Time (SLT) | AI53: C3F
C54: Note: This SLT calculation is designed for home grown programme only. | AI54: C4A
AI55: C4B
D56: Course Content Outline and Subtopics | K56: CLO* | M56: Learning and Teaching Activities** | X56: Total SLT | AI56: C5
M57: Face-to-Face (F2F) | U57: NF2F Independent Learning (Asynchronous)
M58: Physical | Q58: Online/ Technology-mediated (Synchronous)
M59: L | N59: T | O59: P | P59: O | Q59: L | R59: T | S59: P | T59: O
D60: 1 | E60: Introduction to Business Information Systems - data and information - Types of Information Systems - Types of decisions | K60: CLO1 | R60: 1 | U60: 5
D61: 2 | E61: Infrastructures of Business System and the essentials of communication technology - Hardware - Software - Computer networks (LAN, WAN) - Client-Server technology | K61: CLO1 | R61: 1 | U61: 5
D62: 3 | E62: Building Information Systems - Modelling and analysis methods - Data flow diagrams. ERD Diagram | K62: CLO1 | R62: 1 | U62: 5
D63: 4 | E63: Building Information Systems - Data flow diagrams. ERD Diagram | K63: CLO1 | R63: 1 | U63: 5
D64: 5 | E64: Database - Database concepts and its processes | K64: CLO1, CLO3 | R64: 1 | U64: 5
D65: 6 | E65: Data Analytics - Analytics techniques | K65: CLO1, CLO3 | R65: 1 | U65: 5
D66: 7 | E66: Security and Control Issues - Fraud - Misuse of information - Theft - Accidental loss of data | K66: CLO1 | R66: 1 | U66: 5
D67: 8 | E67: Ethical, legal and Moral constraints on Information Systems - Data protection Act - Computer misuse Act (1990) - The privacy & electronic communications regulations 2003 - copyright, design & patents act 1988 | K67: CLO2 | R67: 1 | U67: 5
D68: 9 | E68: Introductory Spreadsheet skill - Modifying existing worksheet - Building new worksheet - Using worksheet shortcut - Enhancing worksheet appearance - Enhancing printed output - Using Basic function – Sum, Average, Max, Min, Count and Paste - Editing and formatting techniques - Using absolute cell references | K68: CLO2, CLO3 | R68: 1 | U68: 5
D69: 10 | E69: Intermediate Spreadsheet skill I - Financial functions, PMT, FV and setting up financial analysis table - Logical functions - Date / Time functions | K69: CLO2, CLO3 | R69: 1 | U69: 5
D70: =D69+1 -> 11 | E70: Intermediate Spreadsheet skill II - Lookup functions - Working with chart - Linking worksheets within a workbook - Linking Multiple workbook - Controlling worksheet display - Using Internet features | K70: CLO2,CLO3 | R70: 1 | U70: 5
D71: 12 | E71: Advanced Spreadsheet Skills I - Data Entry using Forms in Excel - Naming ranges - Auditing a worksheet - Working with database | K71: CLO2,CLO3 | R71: 1 | U71: 5
D72: 13 | E72: Advance Spreasheet Skills II - Analysing data with Pivot -Power Pivot to analyse multiple source data | K72: CLO2,CLO3 | R72: 1 | U72: 5
D73: 14 | E73: Advanced Spreadsheet Skills II - Using macro  Case studies in the context of accounting, personnel, operational and economic problems | K73: CLO2,CLO3 | R73: 1 | U73: 5
D74: 15
D75: 16
D76: 17
D77: 18
D78: 19
D79: 20
D80: SUB-TOTAL SLT: | X80: =SUM(M60:P79)+SUM(Q60:T79)+SUM(U60:W79) -> 84
D81: Continous Assessement | K81: % | M81: Face-to-Face (F2F) | U81: NF2F Independent Learning for Assessment (Asynchronous)
M82: Physical | Q82: Online/ Technology-mediated (Synchronous)
D83: 1 | E83: Report | K83: 0.2 | U83: =(K83*36) -> 7.2
D84: 2 | E84: Presentation (30 Minutes) | K84: 0.2 | Q84: 0.5 | U84: =(K84*36) -0.5 -> 6.7
D85: 3 | E85: Practical Test ( 2 hours) | K85: 0.3 | Q85: 2 | U85: =(K85*36)-2 -> 8.8
D86: 4
D87: 5
D88: SUB-TOTAL SLT: | X88: =SUM(M83:W87) -> 25.2
D89: Final Assessement | K89: % | M89: Face-to-Face (F2F) | U89: NF2F Independent Learning for Assessment (Asynchronous)
M90: Physical | Q90: Online/ Technology-mediated (Synchronous)
D91: 1 | E91: Final Examination | K91: 0.3 | Q91: 3 | U91: =(K91*36)-3 -> 7.8
D92: 2
D93: 3
D94: 4
D95: 5
D96: SUB-TOTAL SLT: | X96: =SUM(M91:W95) -> 10.8
D98: SLT for Assessment: | X98: =X88+X96 -> 36
D99: GRAND TOTAL SLT: | X99: =X98+X80 -> 120
D100: A | E100: % SLT for F2F Physical Component: [Total F2F Physical /(Total F2F Physical + Total F2F Online + Total Independent Learning) x 100)] | X100: =IFERROR(((SUM(M60:P79)+SUM(M83:P87)+SUM(M91:P95))/X99)* 100,"") -> 0
D102: B | E102: % SLT for Online & Independent Learning Component: [(Total F2F Online + Total Independent Learning) /( Total F2F Physical + Total F2F Online + Total Independent Learning) x 100] | X102: =IFERROR((SUM(Q60:W79)+SUM(Q83:W87) + SUM(Q91:W95))/X99 * 100,"") -> 100
D103: C | E103: % SLT for All Practical Component: [% F2F Physical Practical + % F2F Online Practical] | X103: =IFERROR(X104+X105,"") -> 0
D104: C1 | E104: % SLT for F2F Physical Practical Component [Total F2F Physical Practical /( Total F2F Physical + Total F2F Online + Total Independent Learning) x 100)] | X104: =IFERROR(SUM(O60:O79)/X99*100,"") -> 0
D105: C2 | E105: % SLT for F2F Online Practical Component [Total F2F Online Practical / (Total F2F Physical + Total F2F Online + Total Independent Learning) x 100] | X105: =IFERROR(SUM(S60:S79)/X99*100,"") -> 0
Z106: =IFERROR(X102+X104,"") -> 100
D107: Please tick (√) if this course is Industrial Training/ Clinical Placement/ Practicum using 50% of Effective Learning Time (ELT)
D108: Note:
D109: * Indicate the CLO based on the CLO's numbering in Item 8
D110: ** For ODL programme: Courses with mandatory practical requiremnets imposed by the programme standards or any related standards can be exempted from complying to the minimum 80% ODL delivery rule in the SLT.
B112: 11 | C112: Identify special requirement or resources to deliver the course (e.g., software, nursery, computer lab, simulation room etc) | K112: Ms. Excel, Ms. Access
B114: 12 | C114: References (include required and further readings, and should be the most current) | K114: Main references supporting the course • Bocij, P, S. Hickie., Andrew G. 2019. Business Information Systems: Technology, Development and Management for the Modern Business,6th ed: Pearson. • Humprey, M.L. 2017. Excel for Beginners (Excel Essentials Book 1). Kindle ed. Additional references supporting the course • Laudon, K. & Laudon, J.P. 2020. Management Information Systems: Managing the Digital Firm. 16th ed. New Jersey: Pearson. • Winston, W.L. 2016. Microsoft Excel data Analysis and Business Modelling. 5th ed. New York: Microsoft Press. Journal • Journal of Library & Information Technology (https://www.researchgate.net/publication/274467860) • Journal of Education in Business (https://www.tandfonline.com/doi/abs/10.1080/08832323.2019.1610346)
B116: 13 | C116: Other additional information (if applicable) | K116: Updated May 2023
C119: Note: Number of PLO indicated is purely for illustration purposes only and the number is subjected to the curriculum design.

Sheet OBM3105
B2: Back To FORM @ TEMPLATE
AI3: √
B5: 1 | C5: Course Name: | F5: Law for Business | AI5: Semester
C6: Course Code: | F6: OBM3105 | AI6: 1
C7: Course Classification: | F7: Major (core) | AI7: 2
B8: 2 | C8: Synopsis: | F8: This module evaluate the framework of professional values, ethics and attitudes for exercising professional judgement and acting in an ethical manner, that is in the best interests of society and the profession. This module provides the student with the knowledge of specific areas of law essential to people who are engaging in business activities. | AI8: 3
B9: =B8+1 -> 3 | C9: Name(s) of Academic Staff: | F9: 1 | G9: Mr. Pramanathan A/L Vasuthevan
F10: 2 | AI10: Year Offered
F11: 3 | AI11: 1
B12: =B9+1 -> 4 | C12: Semester and Year offered: | F12: Year Offered | I12: 1 | J12: Semester | L12: 2 | M12: Remarks: | AI12: 2
B13: =B12+1 -> 5 | C13: Credit Value: | F13: =IF(X107 ="√",INT(X99/80),INT(X99/40)) -> 3 | AI13: 3
B14: 6 | C14: Pre-requisite/ co-requisite (if any): | F14: None | AI14: 4
AI15: 5
B16: 7 | C16: Course Learning Outcomes (CLO) | F16: CLO1 | H16: Apply cases to relevant legal principals.(C1 , PLO1) | AI16: 6
F17: CLO2 | H17: Explain the basic legal principles on Malaysian Legal System, Contract Law,Law of Tort, Employment Law and Company Law. (C2,PLO2) | AI17: 7
F18: CLO3 | H18: Critically analyse business law cases (C3 ,PLO3) | AI18: 8
AI20: Compulsory
AI21: Major (core)
AI22: Minor
AI23: Elective (core)
AI24: Elective (open/free)
B25: 8 | C25: Mapping of the Course Learning Outcomes to the Programme Learning Outcomes, Teaching Methods and Assessment Methods
D27: Course Learning Outcomes | F27: Programme Learning Outcomes (PLO) | R27: Teaching Methods | W27: Assessment Methods
F28: PLO 1 | G28: PLO 2 | H28: PLO 3 | I28: PLO 4 | J28: PLO 5 | K28: PLO 6 | L28: PLO 7 | M28: PLO 8 | N28: PLO 9 | O28: PLO 10 | P28: PLO 11
D29: =IF(ISBLANK(F16),"",F16) -> CLO1 | F29: √ | R29: Synchronous Tutorial Sessions (student centered facilitation) | W29: Presentation
D30: CLO2 | G30: √ | R30: Synchronous Tutorial Sessions (student centered facilitation) | W30: Group Assignment
D31: CLO3 | H31: √ | R31: Synchronous Tutorial Sessions (student centered facilitation) | W31: Final Examination
AI36: Cognitive skills
D37: Mapping with MQF Cluster of Learning Outcomes | F37: C1 | AI37: Interpersonal skills
G38: C2 | AI38: Communication Skills
H39: C3A | AI39: Digital Skills
AI40: Numeracy Skills
D41: Indicate the primary causal link between the CLO and PLO by ticking '√' in the appropriate box. | AI41: Leadership, Autonomy and Responsibility
D42: C1 = Knowledge & Understanding, C2 = Cognitive Skills, C3A = Practical Skills, C3B = Interpersonal Skills, C3C = Communication Skills, C3D = Digital Skills, | AI42: Personal Skills
D43: C3E = Numeracy Skills, C3F = Leadership, Autonomy & Responsibility, C4A = Personal Skills, C4B = Entrepreneurial Skills, C5 = Ethics & Professionalism | AI43: Entrepreneurial Skills
AI44: Ethics and Professionalism
B45: 9 | C45: Transferable Skills (if applicable)
C46: (Skills learned in the course of study which can be useful and utilized in other settings) | I46: 1 | J46: Communication Skills | AI46: C1
I47: 2 | J47: Cognitive skills | AI47: C2
I48: 3 | J48: Interpersonal skills | AI48: C3A
I49: Open-ended response (if any) | AI49: C3B
I50: 4 | J50: None | AI50: C3C
AI51: C3D
AB52: ` | AI52: C3E
B53: 10 | C53: Distribution of Student Learning Time (SLT) | AI53: C3F
C54: Note: This SLT calculation is designed for home grown programme only. | AI54: C4A
AI55: C4B
D56: Course Content Outline and Subtopics | K56: CLO* | M56: Learning and Teaching Activities** | X56: Total SLT | AI56: C5
M57: Face-to-Face (F2F) | U57: NF2F Independent Learning (Asynchronous)
M58: Physical | Q58: Online/ Technology-mediated (Synchronous)
M59: L | N59: T | O59: P | P59: O | Q59: L | R59: T | S59: P | T59: O
D60: 1 | E60: Introduction to Malaysian Legal system 1: Define Law, Rule of Law, Sources of Law,Classification of law, Judicial Precedent and Courts structure and power and criminal law in business context. | K60: CLO2 | R60: 1 | U60: 6
D61: 2 | E61: Introduction to Malaysian Legal system 2: Define Law, Rule of Law, Sources of Law,Classification of law, Judicial Precedent and Courts structure and power and criminal law in business context. | K61: CLO1 | R61: 1 | U61: 6
D62: 3 | E62: Contract Law 1 : Formation and Terms | K62: CLO1 | R62: 1 | U62: 6
D63: 4 | E63: Contract Law 2 : Vitiating Factors and Discharge of contract , Remedies | K63: CLO1 | R63: 1 | U63: 6
D64: 5 | E64: Employment Law 1: Contract of service vs contract for service, Duties of employer and employee,Procedure dealing with misconduct,Termination with just cause and unfair dismissal. | K64: CLO3 | R64: 1 | U64: 6
D65: 6 | E65: Employment Law 2: Contract of service vs contract for service, Duties of employer and employee,Procedure dealing with misconduct,Termination with just cause and unfair dismissal. | K65: CLO3 | R65: 1 | U65: 6
D66: 7 | E66: Tort Law 1 : Negligence, Occupiers Liability,Nusiance,Vicarious Liability and defences and remedies. | K66: CLO3 | R66: 1 | U66: 6
D67: 8 | E67: Tort Law 2 : Negligence, Occupiers Liability,Nusiance,Vicarious Liability and defences and remedies. | K67: CLO3 | R67: 1 | U67: 6
D68: 9 | E68: Company Law 1: Formation, Constitution, Legal entity,Duties of directors,Difference between Company,partnership,sole -proprietorship. | K68: CLO3 | R68: 1 | U68: 6
D69: 10 | E69: Company Law 2: Lifting of corporate veil,Types of companies, winding up and liquidations. | K69: CLO3 | R69: 1 | U69: 6
D70: =D69+1 -> 11 | E70: Hire Purchase Types of hire purchase Hire purchase Act 1967 | K70: CLO1 | R70: 1 | U70: 6
D71: 12 | E71: Sales of Goods Sale of Goods Act 1957 Conditions and Warranties | K71: CLO1 | R71: 1 | U71: 6
D72: 13
D73: 14
D74: 15
D75: 16
D76: 17
D77: 18
D78: 19
D79: 20
D80: SUB-TOTAL SLT: | X80: =SUM(M60:P79)+SUM(Q60:T79)+SUM(U60:W79) -> 84
D81: Continous Assessement | K81: % | M81: Face-to-Face (F2F) | U81: NF2F Independent Learning for Assessment (Asynchronous)
M82: Physical | Q82: Online/ Technology-mediated (Synchronous)
D83: 1 | E83: Mid-term Exam | K83: 15 | Q83: 0.5 | U83: 4.9
D84: 2 | E84: Assignment 1 - Report | K84: 30 | U84: 10.8
D85: 3 | E85: Presentation | K85: 10 | Q85: 0.5 | U85: 3.1
D86: 4 | E86: Assignment 2 - Case Study | K86: 15 | U86: 5.4
D87: 5
D88: SUB-TOTAL SLT: | X88: =SUM(M83:W87) -> 25.2
D89: Final Assessement | K89: % | M89: Face-to-Face (F2F) | U89: NF2F Independent Learning for Assessment (Asynchronous)
M90: Physical | Q90: Online/ Technology-mediated (Synchronous)
D91: 1 | E91: Final Examination | K91: 30 | Q91: 3 | U91: 7.8
D92: 2
D93: 3
D94: 4
D95: 5
D96: SUB-TOTAL SLT: | X96: =SUM(M91:W95) -> 10.8
D98: SLT for Assessment: | X98: =X88+X96 -> 36
D99: GRAND TOTAL SLT: | X99: =X98+X80 -> 120
D100: A | E100: % SLT for F2F Physical Component: [Total F2F Physical /(Total F2F Physical + Total F2F Online + Total Independent Learning) x 100)] | X100: =IFERROR(((SUM(M60:P79)+SUM(M83:P87)+SUM(M91:P95))/X99)* 100,"") -> 0
D102: B | E102: % SLT for Online & Independent Learning Component: [(Total F2F Online + Total Independent Learning) /( Total F2F Physical + Total F2F Online + Total Independent Learning) x 100] | X102: =IFERROR((SUM(Q60:W79)+SUM(Q83:W87) + SUM(Q91:W95))/X99 * 100,"") -> 100
D103: C | E103: % SLT for All Practical Component: [% F2F Physical Practical + % F2F Online Practical] | X103: =IFERROR(X104+X105,"") -> 0
D104: C1 | E104: % SLT for F2F Physical Practical Component [Total F2F Physical Practical /( Total F2F Physical + Total F2F Online + Total Independent Learning) x 100)] | X104: =IFERROR(SUM(O60:O79)/X99*100,"") -> 0
D105: C2 | E105: % SLT for F2F Online Practical Component [Total F2F Online Practical / (Total F2F Physical + Total F2F Online + Total Independent Learning) x 100] | X105: =IFERROR(SUM(S60:S79)/X99*100,"") -> 0
Z106: =IFERROR(X102+X104,"") -> 100
D107: Please tick (√) if this course is Industrial Training/ Clinical Placement/ Practicum using 50% of Effective Learning Time (ELT)
D108: Note:
D109: * Indicate the CLO based on the CLO's numbering in Item 8
D110: ** For ODL programme: Courses with mandatory practical requiremnets imposed by the programme standards or any related standards can be exempted from complying to the minimum 80% ODL delivery rule in the SLT.
B112: 11 | C112: Identify special requirement or resources to deliver the course (e.g., software, nursery, computer lab, simulation room etc) | K112: None
B114: 12 | C114: References (include required and further readings, and should be the most current) | K114: Main Reference: 1.Lee Mei Peng & Delta, Ivan Jeron (2018). Business Law , Oxford University. Additional Reference: 1.Macintyre E(2018) Business LawUK. Pearson Longman. 2.Keenan,D. and Riches S.(2020) Business Law,UK. Pearson Longman. 2.Adams, A., (2020) Law for Business Students, Pearson Longman.
B116: 13 | C116: Other additional information (if applicable) | K116: Contract Act 1950; Sales of Goods Act 1990;Employment Act 1955/1957(UK), Companies Act 2016.
C119: Note: Number of PLO indicated is purely for illustration purposes only and the number is subjected to the curriculum design.

Sheet OBM3111
B2: Back To FORM @ TEMPLATE
AI3: √
B5: 1 | C5: Course Name: | F5: Principles Of Management | AI5: Semester
C6: Course Code: | F6: OBM3111 | AI6: 1
C7: Course Classification: | F7: Major (core) | AI7: 2
B8: 2 | C8: Synopsis: | F8: This module is an introduction to the management function. It will focus on the theory and fundamental concepts of management including planning, organization, leadership, and control. This class will review the evolution of management thought, function and practice and will stress current approaches and emerging concepts. | AI8: 3
B9: =B8+1 -> 3 | C9: Name(s) of Academic Staff: | F9: 1 | G9: Dr. Nurhafizah Zainal
F10: 2 | AI10: Year Offered
F11: 3 | AI11: 1
B12: =B9+1 -> 4 | C12: Semester and Year offered: | F12: Year Offered | I12: 1 | J12: Semester | L12: 2 | M12: Remarks: | AI12: 2
B13: =B12+1 -> 5 | C13: Credit Value: | F13: =IF(X107 ="√",INT(X99/80),INT(X99/40)) -> 3 | AI13: 3
B14: 6 | C14: Pre-requisite/ co-requisite (if any): | F14: None | AI14: 4
AI15: 5
B16: 7 | C16: Course Learning Outcomes (CLO) | F16: CLO1 | H16: Explain the fundamental concepts and principles of management, including the basic roles, skills, and functions of management.(C2, PLO1) | AI16: 6
F17: CLO2 | H17: Maintain the leadership skills and responsibility of an organizations in order to achieve high performance.(A5, PLO6) | AI17: 7
F18: CLO3 | H18: Communicate effectively the application of the managerial process verbally and non verbally .(A2, PLO5) | AI18: 8
AI20: Compulsory
AI21: Major (core)
AI22: Minor
AI23: Elective (core)
AI24: Elective (open/free)
B25: 8 | C25: Mapping of the Course Learning Outcomes to the Programme Learning Outcomes, Teaching Methods and Assessment Methods
D27: Course Learning Outcomes | F27: Programme Learning Outcomes (PLO) | R27: Teaching Methods | W27: Assessment Methods
F28: PLO 1 | G28: PLO 2 | H28: PLO 3 | I28: PLO 4 | J28: PLO 5 | K28: PLO 6 | L28: PLO 7 | M28: PLO 8 | N28: PLO 9 | O28: PLO 10 | P28: PLO 11
D29: =IF(ISBLANK(F16),"",F16) -> CLO1 | F29: √ | R29: Synchronous Tutorial Sessions (student centered facilitation) | W29: Final Examination
D30: CLO2 | K30: √ | R30: Synchronous Tutorial Sessions (student centered facilitation) | W30: Assignments
D31: CLO3 | J31: √ | R31: Synchronous Tutorial Sessions (student centered facilitation) | W31: Presentation
AI36: Cognitive skills
D37: Mapping with MQF Cluster of Learning Outcomes | F37: C1 | G37: C3F | H37: C3C | AI37: Interpersonal skills
AI38: Communication Skills
AI39: Digital Skills
AI40: Numeracy Skills
D41: Indicate the primary causal link between the CLO and PLO by ticking '√' in the appropriate box. | AI41: Leadership, Autonomy and Responsibility
D42: C1 = Knowledge & Understanding, C2 = Cognitive Skills, C3A = Practical Skills, C3B = Interpersonal Skills, C3C = Communication Skills, C3D = Digital Skills, | AI42: Personal Skills
D43: C3E = Numeracy Skills, C3F = Leadership, Autonomy & Responsibility, C4A = Personal Skills, C4B = Entrepreneurial Skills, C5 = Ethics & Professionalism | AI43: Entrepreneurial Skills
AI44: Ethics and Professionalism
B45: 9 | C45: Transferable Skills (if applicable)
C46: (Skills learned in the course of study which can be useful and utilized in other settings) | I46: 1 | J46: Interpersonal skills | AI46: C1
I47: 2 | J47: Leadership, Autonomy and Responsibility | AI47: C2
I48: 3 | J48: Ethics and Professionalism | AI48: C3A
I49: Open-ended response (if any) | AI49: C3B
I50: 4 | AI50: C3C
AI51: C3D
AB52: ` | AI52: C3E
B53: 10 | C53: Distribution of Student Learning Time (SLT) | AI53: C3F
C54: Note: This SLT calculation is designed for home grown programme only. | AI54: C4A
AI55: C4B
D56: Course Content Outline and Subtopics | K56: CLO* | M56: Learning and Teaching Activities** | X56: Total SLT | AI56: C5
M57: Face-to-Face (F2F) | U57: NF2F Independent Learning (Asynchronous)
M58: Physical | Q58: Online/ Technology-mediated (Synchronous)
M59: L | N59: T | O59: P | P59: O | Q59: L | R59: T | S59: P | T59: O
D60: 1 | E60: Manager & Management Why managers are important & Who is managers? The level of management The characteristics of management Function of management Roles of management Skills of management Universal needs on management | K60: CLO 1 | R60: 1 | U60: 5
D61: 2 | E61: The management environment Omnipotent view vs symbolic view Types of environment Stakeholder relationship Managing stakeholder relationship | K61: CLO 1 | R61: 1 | U61: 5
D62: 3 | E62: Social responsibility and ethics The classical view The socioeconomic view The obligation to responsiveness to responsibility Overview on ethics Determinant of issue in ethics How managers can improve athics among their employee? | K62: CLO 2 | R62: 1 | U62: 5
D63: 4 | E63: Foundation of planning What is planning? Purpose of planning Planning and performance Types of goals Types of plans Tradisional goal setting vs MBO | K63: CLO 1 | R63: 1 | U63: 5
D64: 5 | E64: Strategic Management Overview on strategic management Model of SM planning process Strategic analysis | K64: CLO 2 | R64: 1 | U64: 5
D65: 6 | E65: Decision Making Introduction on DM Decision making process Programmed and non programmed decisions Types of problems Decision making styles | K65: CLO 2 | R65: 1 | U65: 5
D66: 7 | E66: Foundation of organizational design Overview on Organization design Key elements of Organizational design Purpose of Organizational design Mechanistic vs Organic | K66: CLO 1 | R66: 1 | U66: 5
D67: 8 | E67: Foundation of Control Importance of control in organization The control process Managerial actions on control Types of control | K67: CLO 1 | R67: 1 | U67: 5
D68: 9 | E68: Leadership Overview on leadership Management vs Leadership Types of leadership | K68: CLO 2 | R68: 1 | U68: 5
D69: 10 | E69: Managing change and Innovation The change process Types of change in an organization Popular OD techniques Why people resist to change? Techniques on reducing the resistance | K69: CLO 2 | R69: 1 | U69: 5
D70: =D69+1 -> 11 | E70: Human Resource Management (HRM) Introduction on HRM HR planning process Developing the workforce Compensation and benefits | K70: CLO 2 | R70: 1 | U70: 5
D71: 12 | E71: Diversity What is workforce diversity? The level of diversity Types of diversity found in workplace Challenges in managing diversity | K71: CLO 3 | R71: 1 | U71: 5
D72: 13 | E72: Motivation Overview on motivation Early theories in motivation Designing motivating jobs Five core job dimensions in workplace | K72: CLO 3 | R72: 1 | V72: 5
D73: 14 | E73: Communication What is communication? Function of communication The communication process Non Verbal communication Barriers of communication Direction of communication | K73: CLO 3 | R73: 1 | V73: 5
D74: 15
D75: 16
D76: 17
D77: 18
D78: 19
D79: 20
D80: SUB-TOTAL SLT: | X80: =SUM(M60:P79)+SUM(Q60:T79)+SUM(U60:W79) -> 84
D81: Continous Assessement | K81: % | M81: Face-to-Face (F2F) | U81: NF2F Independent Learning for Assessment (Asynchronous)
M82: Physical | Q82: Online/ Technology-mediated (Synchronous)
D83: 1 | E83: Assignment-Case Study | K83: 20 | U83: 18
D84: 2 | E84: Assignment-Report | K84: 20 | Q84: 1 | U84: 6.2
D85: 3 | E85: Test | K85: 20
D86: 4 | E86: Presentation | K86: 10
D87: 5
D88: SUB-TOTAL SLT: | X88: =SUM(M83:W87) -> 25.2
D89: Final Assessement | K89: % | M89: Face-to-Face (F2F) | U89: NF2F Independent Learning for Assessment (Asynchronous)
M90: Physical | Q90: Online/ Technology-mediated (Synchronous)
D91: 1 | E91: Final Examination | K91: 30 | Q91: 3 | U91: 7.8
D92: 2
D93: 3
D94: 4
D95: 5
D96: SUB-TOTAL SLT: | X96: =SUM(M91:W95) -> 10.8
D98: SLT for Assessment: | X98: =X88+X96 -> 36
D99: GRAND TOTAL SLT: | X99: =X98+X80 -> 120
D100: A | E100: % SLT for F2F Physical Component: [Total F2F Physical /(Total F2F Physical + Total F2F Online + Total Independent Learning) x 100)] | X100: =IFERROR(((SUM(M60:P79)+SUM(M83:P87)+SUM(M91:P95))/X99)* 100,"") -> 0
D102: B | E102: % SLT for Online & Independent Learning Component: [(Total F2F Online + Total Independent Learning) /( Total F2F Physical + Total F2F Online + Total Independent Learning) x 100] | X102: =IFERROR((SUM(Q60:W79)+SUM(Q83:W87) + SUM(Q91:W95))/X99 * 100,"") -> 100
D103: C | E103: % SLT for All Practical Component: [% F2F Physical Practical + % F2F Online Practical] | X103: =IFERROR(X104+X105,"") -> 0
D104: C1 | E104: % SLT for F2F Physical Practical Component [Total F2F Physical Practical /( Total F2F Physical + Total F2F Online + Total Independent Learning) x 100)] | X104: =IFERROR(SUM(O60:O79)/X99*100,"") -> 0
D105: C2 | E105: % SLT for F2F Online Practical Component [Total F2F Online Practical / (Total F2F Physical + Total F2F Online + Total Independent Learning) x 100] | X105: =IFERROR(SUM(S60:S79)/X99*100,"") -> 0
Z106: =IFERROR(X102+X104,"") -> 100
D107: Please tick (√) if this course is Industrial Training/ Clinical Placement/ Practicum using 50% of Effective Learning Time (ELT)
D108: Note:
D109: * Indicate the CLO based on the CLO's numbering in Item 8
D110: ** For ODL programme: Courses with mandatory practical requiremnets imposed by the programme standards or any related standards can be exempted from complying to the minimum 80% ODL delivery rule in the SLT.
B112: 11 | C112: Identify special requirement or resources to deliver the course (e.g., software, nursery, computer lab, simulation room etc)
B114: 12 | C114: References (include required and further readings, and should be the most current) | K114: Main Reference: 1.Robbins, S.P. and Coutler, M., (2020). Management. (15th ed) .Pearson Education Limited. Additional Reference: 1.Daft, Richard L., Management, (2012) Cengage Learning, Orlando, (10th ed).USA. 2.David A. De Cenzo , Stephen P. Robbins , Mary Coulter (2017), Fundamentals of Management: Management Myths Debunked, Global Edition, (10th ed) U.K: Pearson Education Limited.
B116: 13 | C116: Other additional information (if applicable) | K116: Journal of Management Havard Business Review
C119: Note: Number of PLO indicated is purely for illustration purposes only and the number is subjected to the curriculum design.

Sheet OMPU3112
B2: Back To FORM @ TEMPLATE
AI3: √
B5: 1 | C5: Course Name: | F5: Philosophy and Current Issues | AI5: Semester
C6: Course Code: | F6: OMPU3112 | AI6: 1
C7: Course Classification: | F7: Compulsory | AI7: 2
B8: 2 | C8: Synopsis: | F8: The course covers the relationship between philosophy with the Malaysian National Education Philosophy and Rukun Negara. The use of philosophy as a tool to purify the culture of thought in life through the arts and methods of thinking as well as the humanistic concept is at the core of the course. The main topics in philosophy are discussed in the context of current issues. Emphasis is given to philosophy as a basis for inter-cultural dialogue and fostering common values. | AI8: 3
B9: =B8+1 -> 3 | C9: Name(s) of Academic Staff: | F9: 1 | G9: MR. NASER RAHMAN
F10: 2 | AI10: Year Offered
F11: 3 | AI11: 1
B12: =B9+1 -> 4 | C12: Semester and Year offered: | F12: Year Offered | I12: 1 | J12: Semester | L12: 2 | M12: Remarks: | AI12: 2
B13: =B12+1 -> 5 | C13: Credit Value: | F13: =IF(X107 ="√",INT(X99/80),INT(X99/40)) -> 2 | AI13: 3
B14: 6 | C14: Pre-requisite/ co-requisite (if any): | AI14: 4
AI15: 5
B16: 7 | C16: Course Learning Outcomes (CLO) | F16: CLO1 | H16: Express current issues based on philosophical knowledge, the Malaysian National Education Philosophy, and Rukun Negara. (C3, PLO1) | AI16: 6
F17: CLO2 | H17: Examine current issues based on the main thought streams in various philosophical branches. (A2, PLO5) | AI17: 7
F18: CLO3 | H18: Classify current issues through comparative philosophical perspectives as a basis for intercultural dialogue. (A3, PLO6) | AI18: 8
AI20: Compulsory
AI21: Major (core)
AI22: Minor
AI23: Elective (core)
AI24: Elective (open/free)
B25: 8 | C25: Mapping of the Course Learning Outcomes to the Programme Learning Outcomes, Teaching Methods and Assessment Methods
D27: Course Learning Outcomes | F27: Programme Learning Outcomes (PLO) | R27: Teaching Methods | W27: Assessment Methods
F28: PLO 1 | G28: PLO 2 | H28: PLO 3 | I28: PLO 4 | J28: PLO 5 | K28: PLO 6 | L28: PLO 7 | M28: PLO 8 | N28: PLO 9 | O28: PLO 10 | P28: PLO 11
D29: =IF(ISBLANK(F16),"",F16) -> CLO1 | F29: √ | R29: Synchronous Tutorial Sessions (student centered facilitation) | W29: Assignment, presentation, quiz, final examination
D30: CLO2 | J30: √ | R30: Synchronous Tutorial Sessions (student centered facilitation) | W30: Assignment, presentation, quiz, final examination
D31: CLO3 | K31: √ | R31: Synchronous Tutorial Sessions (student centered facilitation) | W31: Assignment, presentation, quiz, final examination
AI36: Cognitive skills
D37: Mapping with MQF Cluster of Learning Outcomes | F37: C2 | J37: C3B | K37: C3F | AI37: Interpersonal skills
AI38: Communication Skills
AI39: Digital Skills
AI40: Numeracy Skills
D41: Indicate the primary causal link between the CLO and PLO by ticking '√' in the appropriate box. | AI41: Leadership, Autonomy and Responsibility
D42: C1 = Knowledge & Understanding, C2 = Cognitive Skills, C3A = Practical Skills, C3B = Interpersonal Skills, C3C = Communication Skills, C3D = Digital Skills, | AI42: Personal Skills
D43: C3E = Numeracy Skills, C3F = Leadership, Autonomy & Responsibility, C4A = Personal Skills, C4B = Entrepreneurial Skills, C5 = Ethics & Professionalism | AI43: Entrepreneurial Skills
AI44: Ethics and Professionalism
B45: 9 | C45: Transferable Skills (if applicable)
C46: (Skills learned in the course of study which can be useful and utilized in other settings) | I46: 1 | J46: Cognitive skills | AI46: C1
I47: 2 | J47: Interpersonal skills | AI47: C2
I48: 3 | J48: Personal Skills | AI48: C3A
I49: Open-ended response (if any) | AI49: C3B
I50: 4 | AI50: C3C
AI51: C3D
AB52: ` | AI52: C3E
B53: 10 | C53: Distribution of Student Learning Time (SLT) | AI53: C3F
C54: Note: This SLT calculation is designed for home grown programme only. | AI54: C4A
AI55: C4B
D56: Course Content Outline and Subtopics | K56: CLO* | M56: Learning and Teaching Activities** | X56: Total SLT | AI56: C5
M57: Face-to-Face (F2F) | U57: NF2F Independent Learning (Asynchronous)
M58: Physical | Q58: Online/ Technology-mediated (Synchronous)
M59: L | N59: T | O59: P | P59: O | Q59: L | R59: T | S59: P | T59: O
D60: 1 | E60: Introduction to Philosophy | K60: 1 | U60: 4
D61: 2 | E61: Philosophy in Life | K61: 1 | R61: 1 | U61: 5
D62: 3 | E62: Logic and Philosophy | K62: 2,3 | R62: 1 | U62: 5
D63: 4 | E63: Fallacies in Arguments | K63: 2,3 | R63: 1 | U63: 5
D64: 5 | E64: Psychology and Sociology (The Concept of Man, Part 1) | K64: 2,3 | R64: 1 | U64: 5
D65: 6 | E65: Metaphysics (The Concept of Man, Part 2) | K65: 2,3 | R65: 1 | U65: 5
D66: 7 | E66: Epistemology | K66: 2,3 | R66: 1 | U66: 5
D67: 8 | E67: Post Modern Relativism | K67: 2,3 | R67: 1 | U67: 5
D68: 9 | E68: Decolonization | K68: 2,3 | R68: 1 | U68: 5
D69: 10
D70: =D69+1 -> 11
D71: 12
D72: 13
D73: 14
D74: 15
D75: 16
D76: 17
D77: 18
D78: 19
D79: 20
D80: SUB-TOTAL SLT: | X80: =SUM(M60:P79)+SUM(Q60:T79)+SUM(U60:W79) -> 52
D81: Continous Assessement | K81: % | M81: Face-to-Face (F2F) | U81: NF2F Independent Learning for Assessment (Asynchronous)
M82: Physical | Q82: Online/ Technology-mediated (Synchronous)
D83: 1 | E83: Assignment | K83: 30 | Q83: 0.5 | U83: 10
D84: 2 | E84: Presentation | K84: 20 | Q84: 0.5 | U84: 3
D85: 3 | E85: Quiz | K85: 20 | Q85: 0.5 | U85: 3
D86: 4
D87: 5
D88: SUB-TOTAL SLT: | X88: =SUM(M83:W87) -> 17.5
D89: Final Assessement | K89: % | M89: Face-to-Face (F2F) | U89: NF2F Independent Learning for Assessment (Asynchronous)
M90: Physical | Q90: Online/ Technology-mediated (Synchronous)
D91: 1 | E91: Final Examination | K91: 30 | Q91: 0.5 | U91: 10
D92: 2
D93: 3
D94: 4
D95: 5
D96: SUB-TOTAL SLT: | X96: =SUM(M91:W95) -> 10.5
D98: SLT for Assessment: | X98: =X88+X96 -> 28
D99: GRAND TOTAL SLT: | X99: =X98+X80 -> 80
D100: A | E100: % SLT for F2F Physical Component: [Total F2F Physical /(Total F2F Physical + Total F2F Online + Total Independent Learning) x 100)] | X100: =IFERROR(((SUM(M60:P79)+SUM(M83:P87)+SUM(M91:P95))/X99)* 100,"") -> 0
D102: B | E102: % SLT for Online & Independent Learning Component: [(Total F2F Online + Total Independent Learning) /( Total F2F Physical + Total F2F Online + Total Independent Learning) x 100] | X102: =IFERROR((SUM(Q60:W79)+SUM(Q83:W87) + SUM(Q91:W95))/X99 * 100,"") -> 100
D103: C | E103: % SLT for All Practical Component: [% F2F Physical Practical + % F2F Online Practical] | X103: =IFERROR(X104+X105,"") -> 0
D104: C1 | E104: % SLT for F2F Physical Practical Component [Total F2F Physical Practical /( Total F2F Physical + Total F2F Online + Total Independent Learning) x 100)] | X104: =IFERROR(SUM(O60:O79)/X99*100,"") -> 0
D105: C2 | E105: % SLT for F2F Online Practical Component [Total F2F Online Practical / (Total F2F Physical + Total F2F Online + Total Independent Learning) x 100] | X105: =IFERROR(SUM(S60:S79)/X99*100,"") -> 0
Z106: =IFERROR(X102+X104,"") -> 100
D107: Please tick (√) if this course is Industrial Training/ Clinical Placement/ Practicum using 50% of Effective Learning Time (ELT)
D108: Note:
D109: * Indicate the CLO based on the CLO's numbering in Item 8
D110: ** For ODL programme: Courses with mandatory practical requiremnets imposed by the programme standards or any related standards can be exempted from complying to the minimum 80% ODL delivery rule in the SLT.
B112: 11 | C112: Identify special requirement or resources to deliver the course (e.g., software, nursery, computer lab, simulation room etc)
B114: 12 | C114: References (include required and further readings, and should be the most current) | K114: Al-Attas, S.M. Naquib (1991) The Concept of Education in Islam. Kuala Lumpur ISTAC. Al-Faruqi, I.R. (1994) Al-Tawhid: Its Implication for Thought and Life (2nd Ed.). Herndon: IIIT. Philips, D.C. (Ed.) (2014) Encyclopedia of Educational Theory and Philosophy (1st Ed). SAGE Publication. Dzulkifli, A.R.&Rosnani, H. (2019) Pentafsiran Baharu Falsafah Pendidikan Kebangsaan dan Pelaksanaannya Pasca 2020. Kuala Lumpur: IIUM Press. Hospers, J. (1997) An Introduction to Philosophical Analysis (4th Ed). London: Routledge. Mitchell, H.B. (2011) Roots of Wisdom: A Tapestry of Philosophical Traditions (6th Ed.). Wadsworth: Cengage Learning. Osman Bakar (1999). The Classification of Knowledge in Islam. Cambridge, U.K.: The Islamic Texts Society. Rosnani Hashim (2017). Revitalization of Philosophy and Philosophical Inquiry in Muslim Education. Kull of Education. IIUM. Solomon, R.C. & Hinggins, K.M. (2010) The Big Questions: A Short Introduction to Philosophy (8th Ed.). Wadsworth: Cengage Learning. Weiming, T. & Ikeda, D. (2011). New Horizons in Eastern Humanism: Buddhism, Confucianism and The Quest for Global Peace. London: I.B. Tauris.
B116: 13 | C116: Other additional information (if applicable)
C119: Note: Number of PLO indicated is purely for illustration purposes only and the number is subjected to the curriculum design.

Sheet OMPU3412
B2: Back To FORM @ TEMPLATE
AI3: √
B5: 1 | C5: Course Name: | F5: Co-Curriculum | AI5: Semester
C6: Course Code: | F6: OMPU3412 | AI6: 1
C7: Course Classification: | F7: Compulsory | AI7: 2
B8: 2 | C8: Synopsis: | F8: The course is meant to offer all students a wide variety of experiences for them to develop physically, mentally and socially. Through forming of independent learning experiences, the course requires students to organise projects or activities from at least two different categories such as Clubs/Socieities, Sports, Community Service, Places of worship, teaching a skill etc. | AI8: 3
B9: =B8+1 -> 3 | C9: Name(s) of Academic Staff: | F9: 1 | G9: Ms. Rekha Prakash
F10: 2 | AI10: Year Offered
F11: 3 | AI11: 1
B12: =B9+1 -> 4 | C12: Semester and Year offered: | F12: Year Offered | I12: 1 | J12: Semester | L12: 3 | M12: Remarks: | AI12: 2
B13: =B12+1 -> 5 | C13: Credit Value: | F13: =IF(X107 ="√",INT(X99/80),INT(X99/40)) -> 2 | AI13: 3
B14: 6 | C14: Pre-requisite/ co-requisite (if any): | F14: None | AI14: 4
AI15: 5
B16: 7 | C16: Course Learning Outcomes (CLO) | F16: CLO1 | H16: Prepare a project proposal that benefits the community and society at large (C2, PLO6) | AI16: 6
F17: CLO2 | H17: Organise projects that reflect social responsibility (C2, PLO6) | AI17: 7
F18: CLO3 | H18: Display strong character, leadership skills and responsibility (C2, PLO6) | AI18: 8
AI20: Compulsory
AI21: Major (core)
AI22: Minor
AI23: Elective (core)
AI24: Elective (open/free)
B25: 8 | C25: Mapping of the Course Learning Outcomes to the Programme Learning Outcomes, Teaching Methods and Assessment Methods
D27: Course Learning Outcomes | F27: Programme Learning Outcomes (PLO) | R27: Teaching Methods | W27: Assessment Methods
F28: PLO 1 | G28: PLO 2 | H28: PLO 3 | I28: PLO 4 | J28: PLO 5 | K28: PLO 6 | L28: PLO 7 | M28: PLO 8 | N28: PLO 9 | O28: PLO 10 | P28: PLO 11
D29: =IF(ISBLANK(F16),"",F16) -> CLO1 | K29: √ | R29: Synchronous Tutorial Sessions (student centered facilitation)
D30: CLO2 | K30: √ | R30: Synchronous Tutorial Sessions (student centered facilitation)
D31: CLO3 | K31: √ | R31: Synchronous Tutorial Sessions (student centered facilitation)
AI36: Cognitive skills
D37: Mapping with MQF Cluster of Learning Outcomes | K37: C3B | AI37: Interpersonal skills
K38: C3B | AI38: Communication Skills
K39: C3A | AI39: Digital Skills
AI40: Numeracy Skills
D41: Indicate the primary causal link between the CLO and PLO by ticking '√' in the appropriate box. | AI41: Leadership, Autonomy and Responsibility
D42: C1 = Knowledge & Understanding, C2 = Cognitive Skills, C3A = Practical Skills, C3B = Interpersonal Skills, C3C = Communication Skills, C3D = Digital Skills, | AI42: Personal Skills
D43: C3E = Numeracy Skills, C3F = Leadership, Autonomy & Responsibility, C4A = Personal Skills, C4B = Entrepreneurial Skills, C5 = Ethics & Professionalism | AI43: Entrepreneurial Skills
AI44: Ethics and Professionalism
B45: 9 | C45: Transferable Skills (if applicable)
C46: (Skills learned in the course of study which can be useful and utilized in other settings) | I46: 1 | J46: Interpersonal skills | AI46: C1
I47: 2 | J47: Leadership, Autonomy and Responsibility | AI47: C2
I48: 3 | J48: Personal Skills | AI48: C3A
I49: Open-ended response (if any) | AI49: C3B
I50: 4 | AI50: C3C
AI51: C3D
AB52: ` | AI52: C3E
B53: 10 | C53: Distribution of Student Learning Time (SLT) | AI53: C3F
C54: Note: This SLT calculation is designed for home grown programme only. | AI54: C4A
AI55: C4B
D56: Course Content Outline and Subtopics | K56: CLO* | M56: Learning and Teaching Activities** | X56: Total SLT | AI56: C5
M57: Face-to-Face (F2F) | U57: NF2F Independent Learning (Asynchronous)
M58: Physical | Q58: Online/ Technology-mediated (Synchronous)
M59: L | N59: T | O59: P | P59: O | Q59: L | R59: T | S59: P | T59: O
D60: 1 | E60: Writing a proposal | K60: CLO1 | T60: 14
D61: 2 | E61: Writing post event report | K61: CLO2 | T61: 14
D62: 3 | E62: Reporting on Log book & Individual Reports | K62: CLO3 | T62: 10
D63: 4
D64: 5
D65: 6
D66: 7
D67: 8
D68: 9
D69: 10
D70: =D69+1 -> 11
D71: 12
D72: 13
D73: 14
D74: 15
D75: 16
D76: 17
D77: 18
D78: 19
D79: 20
D80: SUB-TOTAL SLT: | X80: =SUM(M60:P79)+SUM(Q60:T79)+SUM(U60:W79) -> 38
D81: Continous Assessement | K81: % | M81: Face-to-Face (F2F) | U81: NF2F Independent Learning for Assessment (Asynchronous)
M82: Physical | Q82: Online/ Technology-mediated (Synchronous)
D83: 1 | E83: Project proposals | K83: 40 | Q83: 16 | U83: =(0.4)*(80-38)-Q83 -> 0.8
D84: 2 | E84: Log Book and Individual Reports | K84: 20 | Q84: 8 | U84: =(0.2)*(80-38)-Q84 -> 0.4
D85: 3
D86: 4
D87: 5
D88: SUB-TOTAL SLT: | X88: =SUM(M83:W87) -> 25.2
D89: Final Assessement | K89: % | M89: Face-to-Face (F2F) | U89: NF2F Independent Learning for Assessment (Asynchronous)
M90: Physical | Q90: Online/ Technology-mediated (Synchronous)
D91: 1 | E91: Post event reports | K91: 40 | Q91: 16 | U91: =(0.4)*(80-38)-Q91 -> 0.8
D92: 2
D93: 3
D94: 4
D95: 5
D96: SUB-TOTAL SLT: | X96: =SUM(M91:W95) -> 16.8
D98: SLT for Assessment: | X98: =X88+X96 -> 42
D99: GRAND TOTAL SLT: | X99: =X98+X80 -> 80
D100: A | E100: % SLT for F2F Physical Component: [Total F2F Physical /(Total F2F Physical + Total F2F Online + Total Independent Learning) x 100)] | X100: =IFERROR(((SUM(M60:P79)+SUM(M83:P87)+SUM(M91:P95))/X99)* 100,"") -> 0
D102: B | E102: % SLT for Online & Independent Learning Component: [(Total F2F Online + Total Independent Learning) /( Total F2F Physical + Total F2F Online + Total Independent Learning) x 100] | X102: =IFERROR((SUM(Q60:W79)+SUM(Q83:W87) + SUM(Q91:W95))/X99 * 100,"") -> 100
D103: C | E103: % SLT for All Practical Component: [% F2F Physical Practical + % F2F Online Practical] | X103: =IFERROR(X104+X105,"") -> 0
D104: C1 | E104: % SLT for F2F Physical Practical Component [Total F2F Physical Practical /( Total F2F Physical + Total F2F Online + Total Independent Learning) x 100)] | X104: =IFERROR(SUM(O60:O79)/X99*100,"") -> 0
D105: C2 | E105: % SLT for F2F Online Practical Component [Total F2F Online Practical / (Total F2F Physical + Total F2F Online + Total Independent Learning) x 100] | X105: =IFERROR(SUM(S60:S79)/X99*100,"") -> 0
Z106: =IFERROR(X102+X104,"") -> 100
D107: Please tick (√) if this course is Industrial Training/ Clinical Placement/ Practicum using 50% of Effective Learning Time (ELT)
D108: Note:
D109: * Indicate the CLO based on the CLO's numbering in Item 8
D110: ** For ODL programme: Courses with mandatory practical requiremnets imposed by the programme standards or any related standards can be exempted from complying to the minimum 80% ODL delivery rule in the SLT.
B112: 11 | C112: Identify special requirement or resources to deliver the course (e.g., software, nursery, computer lab, simulation room etc)
B114: 12 | C114: References (include required and further readings, and should be the most current) | K114: Nilai University. 2021. 3 Co-curriculum Credits Course Guide.
B116: 13 | C116: Other additional information (if applicable)
C119: Note: Number of PLO indicated is purely for illustration purposes only and the number is subjected to the curriculum design.

Sheet OBM3107
B2: Table 4: Summary of Course Information
AI3: √
B5: 1 | C5: Course Name: | F5: Principles of Macroeconomics | AI5: Semester
C6: Course Code: | F6: OBM3107 | AI6: 1
C7: Course Classification: | F7: Major (core) | AI7: 2
B8: 2 | C8: Synopsis: | F8: This module provides a broad overview of macroeconomics. It is designed to develop students’ knowledge of economic ideas in the context of contemporary issues using the tools of elementary macroeconomic analysis. Students will basically study of aggregate (macro) level economic activity: inflation, unemployment, business cycles and economic growth. The national economy is analysed in a global environment that includes international trade, monetary and financial systems. The effects of government policy and the choice of those policies is analysed throughout the module. | AI8: 3
B9: =B8+1 -> 3 | C9: Name(s) of Academic Staff: | F9: 1 | G9: Dr.Chandramalar Munusami
F10: 2 | AI10: Year Offered
F11: 3 | AI11: 1
B12: =B9+1 -> 4 | C12: Semester and Year offered: | F12: Year Offered | I12: 1 | J12: Semester | L12: 3 | M12: Remarks: | AI12: 2
B13: =B12+1 -> 5 | C13: Credit Value: | F13: =IF(X107 ="√",INT(X99/80),INT(X99/40)) -> 3 | AI13: 3
B14: 6 | C14: Pre-requisite/ co-requisite (if any): | F14: NIL | AI14: 4
AI15: 5
B16: 7 | C16: Course Learning Outcomes (CLO) | F16: CLO1 | H16: Prepare students with the terminology of macroeconomics.(C3, PLO 1) | AI16: 6
F17: CLO2 | H17: Apply basic macroeconomic concepts to manage complex problems in business organisations (C3, PLO 2) | AI17: 7
F18: CLO3 | H18: Analyse macroeconomic variables and its role in making decision in the modern market economy.(C4, PLO 8) | AI18: 8
AI20: Compulsory
AI21: Major (core)
AI22: Minor
AI23: Elective (core)
AI24: Elective (open/free)
B25: 8 | C25: Mapping of the Course Learning Outcomes to the Programme Learning Outcomes, Teaching Methods and Assessment Methods
D27: Course Learning Outcomes | F27: Programme Learning Outcomes (PLO) | R27: Teaching Methods | W27: Assessment Methods
F28: PLO 1 | G28: PLO 2 | H28: PLO 3 | I28: PLO 4 | J28: PLO 5 | K28: PLO 6 | L28: PLO 7 | M28: PLO 8 | N28: PLO 9 | O28: PLO 10 | P28: PLO 11
D29: =IF(ISBLANK(F16),"",F16) -> CLO1 | F29: √ | R29: Synchronous Tutorial Sessions (student centered facilitation) | W29: Assignment 1/Final Exam
D30: CLO2 | G30: √ | R30: Synchronous Tutorial Sessions (student centered facilitation) | W30: Assignment 2
D31: CLO3 | M31: √ | R31: Synchronous Tutorial Sessions (student centered facilitation) | W31: Assignment 3
AI36: Cognitive skills
D37: Mapping with MQF Cluster of Learning Outcomes | F37: C1 | AI37: Interpersonal skills
G38: C2 | AI38: Communication Skills
M39: C3E | AI39: Digital Skills
AI40: Numeracy Skills
D41: Indicate the primary causal link between the CLO and PLO by ticking '√' in the appropriate box. | AI41: Leadership, Autonomy and Responsibility
D42: C1 = Knowledge & Understanding, C2 = Cognitive Skills, C3A = Practical Skills, C3B = Interpersonal Skills, C3C = Communication Skills, C3D = Digital Skills, | AI42: Personal Skills
D43: C3E = Numeracy Skills, C3F = Leadership, Autonomy & Responsibility, C4A = Personal Skills, C4B = Entrepreneurial Skills, C5 = Ethics & Professionalism | AI43: Entrepreneurial Skills
AI44: Ethics and Professionalism
B45: 9 | C45: Transferable Skills (if applicable)
C46: (Skills learned in the course of study which can be useful and utilized in other settings) | I46: 1 | J46: Personal Skills | AI46: C1
I47: 2 | J47: Digital Skills | AI47: C2
I48: 3 | J48: Entrepreneurial Skills | AI48: C3A
I49: Open-ended response (if any) | AI49: C3B
I50: 4 | AI50: C3C
AI51: C3D
AB52: ` | AI52: C3E
B53: 10 | C53: Distribution of Student Learning Time (SLT) | AI53: C3F
C54: Note: This SLT calculation is designed for home grown programme only. | AI54: C4A
AI55: C4B
D56: Course Content Outline and Subtopics | K56: CLO* | M56: Learning and Teaching Activities** | X56: Total SLT | AI56: C5
M57: Face-to-Face (F2F) | U57: NF2F Independent Learning (Asynchronous)
M58: Physical | Q58: Online/ Technology-mediated (Synchronous)
M59: L | N59: T | O59: P | P59: O | Q59: L | R59: T | S59: P | T59: O
D60: 1 | E60: Introduction to Macroeconomics Definition of Macroeconomics Business Cycle | K60: 1 | R60: 1 | U60: 5
D61: 2 | E61: Measuring GDP and Economic Growth Methods of measuring GDP GDP influence on Economic Growth | K61: 1 | R61: 1 | U61: 5
D62: 3 | E62: Monitoring cycles, jobs and the price Level Types of unempolyment Consumer Price Index | K62: 1 | R62: 1 | U62: 5
D63: 4 | E63: The Economy at Full Employment Classical model. Financial Intitutions Demand and supply of loanable funds | K63: 1 | R63: 1 | U63: 5
D64: 5 | E64: Aggregate Demand and Money The role of money Central Banks and its role Credit creation by financial institutions. | K64: 2 | R64: 1 | U64: 5
D65: 6 | E65: Money, Interest, real GDP Demand for money Quantity theory of money. | K65: 2 | R65: 1 | U65: 5
D66: 7 | E66: Inflation Types of Inflation | K66: 2 | R66: 1 | U66: 5
D67: 8 | E67: Aggregate Demand and Aggregate Supply Factors influencing Aggregate Demand and Supply. | K67: 3 | R67: 1 | U67: 5
D68: 9 | E68: Expenditure Multipliers: The Keynesian Model Keynes theory and unemployment | K68: 3 | R68: 1 | U68: 5
D69: 10 | E69: Fiscal Policy Budget PSBR Types of Budgets and it effect on the economy. | K69: 3 | R69: 1 | U69: 5
D70: =D69+1 -> 11 | E70: Monetary Policy Money Supply Monetary policy and inflation Monetary policy and unemployment. | K70: 3 | R70: 1 | U70: 5
D71: 12 | E71: Trading with the world Free trade theories Advantages of Free Trade Disadvantages of Free Trade | K71: 3 | R71: 1 | U71: 5
D72: 13 | E72: Balance of payment and exchange rates Balance of Payments and Reserves. Types of exchange rates Advantages and diadvantages of different types of exchange rates. | K72: 3 | R72: 1 | U72: 5
D73: 14 | E73: Balance of payment and exchange artes (part 2) | K73: 3 | R73: 1 | U73: 5
D74: 15
D75: 16
D76: 17
D77: 18
D78: 19
D79: 20
D80: SUB-TOTAL SLT: | X80: =SUM(M60:P79)+SUM(Q60:T79)+SUM(U60:W79) -> 84
D81: Continous Assessement | K81: % | M81: Face-to-Face (F2F) | U81: NF2F Independent Learning for Assessment (Asynchronous)
M82: Physical | Q82: Online/ Technology-mediated (Synchronous)
D83: 1 | E83: Individual Assignment | K83: 0.2 | U83: 7.2
D84: 2 | E84: Quiz | K84: 0.2 | U84: 7.2
D85: 3 | E85: Group Assignment | K85: 0.3 | U85: 10.8
D86: 4
D87: 5
D88: SUB-TOTAL SLT: | X88: =SUM(M83:W87) -> 25.2
D89: Final Assessement | K89: % | M89: Face-to-Face (F2F) | U89: NF2F Independent Learning for Assessment (Asynchronous)
M90: Physical | Q90: Online/ Technology-mediated (Synchronous)
D91: 1 | E91: Final Examination | K91: 0.3 | Q91: 3 | U91: 7.8
D92: 2
D93: 3
D94: 4
D95: 5
D96: SUB-TOTAL SLT: | X96: =SUM(M91:W95) -> 10.8
D98: SLT for Assessment: | X98: =X88+X96 -> 36
D99: GRAND TOTAL SLT: | X99: =X98+X80 -> 120
D100: A | E100: % SLT for F2F Physical Component: [Total F2F Physical /(Total F2F Physical + Total F2F Online + Total Independent Learning) x 100)] | X100: =IFERROR(((SUM(M60:P79)+SUM(M83:P87)+SUM(M91:P95))/X99)* 100,"") -> 0
D102: B | E102: % SLT for Online & Independent Learning Component: [(Total F2F Online + Total Independent Learning) /( Total F2F Physical + Total F2F Online + Total Independent Learning) x 100] | X102: =IFERROR((SUM(Q60:W79)+SUM(Q83:W87) + SUM(Q91:W95))/X99 * 100,"") -> 100
D103: C | E103: % SLT for All Practical Component: [% F2F Physical Practical + % F2F Online Practical] | X103: =IFERROR(X104+X105,"") -> 0
D104: C1 | E104: % SLT for F2F Physical Practical Component [Total F2F Physical Practical /( Total F2F Physical + Total F2F Online + Total Independent Learning) x 100)] | X104: =IFERROR(SUM(O60:O79)/X99*100,"") -> 0
D105: C2 | E105: % SLT for F2F Online Practical Component [Total F2F Online Practical / (Total F2F Physical + Total F2F Online + Total Independent Learning) x 100] | X105: =IFERROR(SUM(S60:S79)/X99*100,"") -> 0
Z106: =IFERROR(X102+X104,"") -> 100
D107: Please tick (√) if this course is Industrial Training/ Clinical Placement/ Practicum using 50% of Effective Learning Time (ELT)
D108: Note:
D109: * Indicate the CLO based on the CLO's numbering in Item 8
D110: ** For ODL programme: Courses with mandatory practical requiremnets imposed by the programme standards or any related standards can be exempted from complying to the minimum 80% ODL delivery rule in the SLT.
B112: 11 | C112: Identify special requirement or resources to deliver the course (e.g., software, nursery, computer lab, simulation room etc) | K112: NIL
B114: 12 | C114: References (include required and further readings, and should be the most current) | K114: Main Reference: 1. Mankiw, N.G, 2021. Principles of economics.South-(9th ed), Boston, MA : Cengage Learning, Inc. Additional Reference: 1.Krugman, P. & Wells, R. 2015. Economics. (4th ed) .Worth Publishers. 2.Bade, R. & Parkin, M. (2017). Essential Foundations of Economics,( 8th ed.) Prentice Hall. 3.FUND, S. (2015). Sustainable development goals.
B116: 13 | C116: Other additional information (if applicable) | K116: NIL
C119: Note: Number of PLO indicated is purely for illustration purposes only and the number is subjected to the curriculum design.

Sheet OBA3121
B2: Back To FORM @ TEMPLATE
AI3: √
B5: 1 | C5: Course Name: | F5: Introduction to Management Accounting | AI5: Semester
C6: Course Code: | F6: OBA3121 | AI6: 1
C7: Course Classification: | F7: Major (core) | AI7: 2
B8: 2 | C8: Synopsis: | F8: This module is designed to introduce fundamental management accounting concepts to non-accountants. Students are introduced to the application of various management accounting tools for planning, control and decision making of a business.This will include applying various techniques to evaluate business decisions in both the long and short term. | AI8: 3
B9: =B8+1 -> 3 | C9: Name(s) of Academic Staff: | F9: 1 | G9: Dr. Pang Mary
F10: 2 | AI10: Year Offered
F11: 3 | AI11: 1
B12: =B9+1 -> 4 | C12: Semester and Year offered: | F12: Year Offered | I12: 1 | J12: Semester | L12: 3 | M12: Remarks: | AI12: 2
B13: =B12+1 -> 5 | C13: Credit Value: | F13: =IF(X107 ="√",INT(X99/80),INT(X99/40)) -> 3 | AI13: 3
B14: 6 | C14: Pre-requisite/ co-requisite (if any): | F14: None | AI14: 4
AI15: 5
B16: 7 | C16: Course Learning Outcomes (CLO) | F16: CLO1 | H16: Explain various cost and management accounting terminology. (C2,PLO1) | AI16: 6
F17: CLO2 | H17: Apply a range of control and planning method for a business (C3,PLO8) | AI17: 7
F18: CLO3 | H18: Compute short term decision making model for business (C3, PLO8) | AI18: 8
AI20: Compulsory
AI21: Major (core)
AI22: Minor
AI23: Elective (core)
AI24: Elective (open/free)
B25: 8 | C25: Mapping of the Course Learning Outcomes to the Programme Learning Outcomes, Teaching Methods and Assessment Methods
D27: Course Learning Outcomes | F27: Programme Learning Outcomes (PLO) | R27: Teaching Methods | W27: Assessment Methods
F28: PLO 1 | G28: PLO 2 | H28: PLO 3 | I28: PLO 4 | J28: PLO 5 | K28: PLO 6 | L28: PLO 7 | M28: PLO 8 | N28: PLO 9 | O28: PLO 10 | P28: PLO 11
D29: =IF(ISBLANK(F16),"",F16) -> CLO1 | F29: √ | R29: Synchronous Tutorial Sessions (student centered facilitation) | W29: Midterm Test
D30: CLO2 | M30: √ | R30: Synchronous Tutorial Sessions (student centered facilitation) | W30: Assignment and Final Examination
D31: CLO3 | M31: √ | R31: Synchronous Tutorial Sessions (student centered facilitation) | W31: Final Examination
AI36: Cognitive skills
D37: Mapping with MQF Cluster of Learning Outcomes | F37: C1 | AI37: Interpersonal skills
K38: C2 | AI38: Communication Skills
K39: C2 | AI39: Digital Skills
AI40: Numeracy Skills
D41: Indicate the primary causal link between the CLO and PLO by ticking '√' in the appropriate box. | AI41: Leadership, Autonomy and Responsibility
D42: C1 = Knowledge & Understanding, C2 = Cognitive Skills, C3A = Practical Skills, C3B = Interpersonal Skills, C3C = Communication Skills, C3D = Digital Skills, | AI42: Personal Skills
D43: C3E = Numeracy Skills, C3F = Leadership, Autonomy & Responsibility, C4A = Personal Skills, C4B = Entrepreneurial Skills, C5 = Ethics & Professionalism | AI43: Entrepreneurial Skills
AI44: Ethics and Professionalism
B45: 9 | C45: Transferable Skills (if applicable)
C46: (Skills learned in the course of study which can be useful and utilized in other settings) | I46: 1 | J46: Personal Skills | AI46: C1
I47: 2 | J47: Cognitive skills | AI47: C2
I48: 3 | J48: Communication Skills | AI48: C3A
I49: Open-ended response (if any) | AI49: C3B
I50: 4 | AI50: C3C
AI51: C3D
AB52: ` | AI52: C3E
B53: 10 | C53: Distribution of Student Learning Time (SLT) | AI53: C3F
C54: Note: This SLT calculation is designed for home grown programme only. | AI54: C4A
AI55: C4B
D56: Course Content Outline and Subtopics | K56: CLO* | M56: Learning and Teaching Activities** | X56: Total SLT | AI56: C5
M57: Face-to-Face (F2F) | U57: NF2F Independent Learning (Asynchronous)
M58: Physical | Q58: Online/ Technology-mediated (Synchronous)
M59: L | N59: T | O59: P | P59: O | Q59: L | R59: T | S59: P | T59: O
D60: 1 | E60: Introduction to costing and Management Accounting • The users of accounting information • Differences between managerial accounting and financial accounting • Functions of Managerial Accounting • The decision making, planning and control process | K60: CL01 | R60: 1 | U60: 5
D61: 2 | E61: Cost classification and behaviour • Cost objects • Direct and indirect costs • Period and product costs • Cost behaviour • Relevant and irrelevant costs & revenues | K61: CL01 | R61: 1 | U61: 5
D62: 3 | E62: Managing material cost • Materials recording procedure • Recording the purchase of raw materials • Distinguish FIFO, LIFO and Weighted Average Method | K62: CL01 | R62: 1 | U62: 5
D63: 4 | E63: Managing labour cost • Significant labour costs • Distinguishing between different remuneration methods | K63: CL01 | R63: 1 | U63: 5
D64: 5 | E64: Overhead cost assignments • Assignment of direct and indirect costs to cost objects • Plant-wide( blanket) overhead rates - Allocation, Apportionment and Absorption • Under Absorption and Over Absorption of Overheads | K64: CL01 | R64: 1 | U64: 5
D65: 6 | E65: Job costing system • Prepare job cost records showing direct material, direct material and production overheads • Analyse transactions involved in job costing, using accounting equation • Prepare job cost records for a long-term contract • Understand the method of reporting profit in a long term contract | K65: CL02 | R65: 1 | U65: 5
D66: 7 | E66: Breakeven point • Calculate the breakeven point and Margin Safety • Prepare contribution margin statement • Assumption of breakeven point | K66: CL02 | R66: 1 | U66: 5
D67: 8 | E67: Budgeting (Part 1) • The strategic planning, budgeting & control process • The functions of budgets | K67: CL02 | R67: 1 | U67: 5
D68: 9 | E68: Budgeting (Part 2) • Advantages of budgeting • Understanding the budget administration process • Master budgets | K68: CL02 | R68: 1 | U68: 5
D69: 10 | E69: Standard costing & Variance ( Part 1) • Operation of a standard costing system • Establishing cost standards costing • Purposes of standard costing Operation of a standard costing system • Purposes of standard costing | K69: CL02 | R69: 1 | U69: 5
D70: =D69+1 -> 11 | E70: Standard costing & Variance ( Part 2)•Material price variance & Material usage variance •Causes of Material cost variance | K70: CL02 | R70: 1 | U70: 5
D71: 12 | E71: Standard costing & Variance ( Part 3) • Labour price and efficiency variance • Causes of labour cost variance | K71: CL02 | R71: 1 | U71: 5
D72: 13 | E72: Marginal and Absorption costing • Variable costing • Absoprtion costing • Variable ad absorption costing :Impacts on profits | K72: CL03 | R72: 1 | U72: 5
D73: 14 | E73: Decision making using relevant costs and revenues • Identifying relevant cost and revenues • Understanding and learn to make business decisions •Make and buy decision making • Special price offering | K73: CL03 | R73: 1 | U73: 5
D74: 15
D75: 16
D76: 17
D77: 18
D78: 19
D79: 20
D80: SUB-TOTAL SLT: | X80: =SUM(M60:P79)+SUM(Q60:T79)+SUM(U60:W79) -> 84
D81: Continous Assessement | K81: % | M81: Face-to-Face (F2F) | U81: NF2F Independent Learning for Assessment (Asynchronous)
M82: Physical | Q82: Online/ Technology-mediated (Synchronous)
D83: 1 | E83: Midterm Test 1 | K83: 20 | Q83: 1 | U83: 6.2
D84: 2 | E84: Midterm Test 2 | K84: 20 | Q84: 1 | U84: 6.2
D85: 3 | E85: Group Assignment | K85: 20 | U85: 7.2
D86: 4 | E86: Individual Assignment | K86: 10 | U86: 3.6
D87: 5
D88: SUB-TOTAL SLT: | X88: =SUM(M83:W87) -> 25.2
D89: Final Assessement | K89: % | M89: Face-to-Face (F2F) | U89: NF2F Independent Learning for Assessment (Asynchronous)
M90: Physical | Q90: Online/ Technology-mediated (Synchronous)
D91: 1 | E91: Final Examination | K91: 30 | Q91: 3 | U91: 7.8
D92: 2
D93: 3
D94: 4
D95: 5
D96: SUB-TOTAL SLT: | X96: =SUM(M91:W95) -> 10.8
D98: SLT for Assessment: | X98: =X88+X96 -> 36
D99: GRAND TOTAL SLT: | X99: =X98+X80 -> 120
D100: A | E100: % SLT for F2F Physical Component: [Total F2F Physical /(Total F2F Physical + Total F2F Online + Total Independent Learning) x 100)] | X100: =IFERROR(((SUM(M60:P79)+SUM(M83:P87)+SUM(M91:P95))/X99)* 100,"") -> 0
D102: B | E102: % SLT for Online & Independent Learning Component: [(Total F2F Online + Total Independent Learning) /( Total F2F Physical + Total F2F Online + Total Independent Learning) x 100] | X102: =IFERROR((SUM(Q60:W79)+SUM(Q83:W87) + SUM(Q91:W95))/X99 * 100,"") -> 100
D103: C | E103: % SLT for All Practical Component: [% F2F Physical Practical + % F2F Online Practical] | X103: =IFERROR(X104+X105,"") -> 0
D104: C1 | E104: % SLT for F2F Physical Practical Component [Total F2F Physical Practical /( Total F2F Physical + Total F2F Online + Total Independent Learning) x 100)] | X104: =IFERROR(SUM(O60:O79)/X99 *100,"") -> 0
D105: C2 | E105: % SLT for F2F Online Practical Component [Total F2F Online Practical / (Total F2F Physical + Total F2F Online + Total Independent Learning) x 100] | X105: =IFERROR(SUM(S60:S79)/X99 *100,"") -> 0
Z106: =IFERROR(X102+X104,"") -> 100
D107: Please tick (√) if this course is Industrial Training/ Clinical Placement/ Practicum using 50% of Effective Learning Time (ELT)
D108: Note:
D109: * Indicate the CLO based on the CLO's numbering in Item 8
D110: ** For ODL programme: Courses with mandatory practical requiremnets imposed by the programme standards or any related standards can be exempted from complying to the minimum 80% ODL delivery rule in the SLT.
B112: 11 | C112: Identify special requirement or resources to deliver the course (e.g., software, nursery, computer lab, simulation room etc)
B114: 12 | C114: References (include required and further readings, and should be the most current) | K114: Drury, C. (2021). Management accounting for business, 8th edition, Cengage Learning EMEA. [Main Text] Atrill, P. & McLaney, E. (2021). Management Accounting for Decision Makers, 10th Edition. Pearson. Rozainun Abdul Aziz et al. (2018). Management Accounting (3rd ed). Oxford University Press. Noraihan Mamat Zambi et al. (2016). Cost and Management Accounting (1st ed). Oxford Fajar. Seal, W., Rohde, C., Garrison, R, and Noreen, E (2019). Management Accounting, 6th Edition, McGraw-Hill Journals: 1) Management Accounting Research (https://www.sciencedirect.com/journal/management-accounting-research) 2) Management Accounting Quarterly( https://https://asiapac.imanet.org)
B116: 13 | C116: Other additional information (if applicable)
C119: Note: Number of PLO indicated is purely for illustration purposes only and the number is subjected to the curriculum design.

Sheet OBA3213
B2: Back To FORM @ TEMPLATE
AI3: √
B5: 1 | C5: Course Name: | F5: Personal Finance | AI5: Semester
C6: Course Code: | F6: OBA3213 | AI6: 1
C7: Course Classification: | F7: Major (core) | AI7: 2
B8: 2 | C8: Synopsis: | F8: This module is designed to expose students to many functions of personal finance. The course provides the students with information that can be used to develop an overall financial plan and an understanding of critical areas where decisions should be made. | AI8: 3
B9: =B8+1 -> 3 | C9: Name(s) of Academic Staff: | F9: 1 | G9: Ms Mimi Suriaty Abdul Rani
F10: 2 | AI10: Year Offered
F11: 3 | AI11: 1
B12: =B9+1 -> 4 | C12: Semester and Year offered: | F12: Year Offered | I12: 1 | J12: Semester | L12: 3 | M12: Remarks: | AI12: 2
B13: =B12+1 -> 5 | C13: Credit Value: | F13: =IF(X107 ="√",INT(X99/80),INT(X99/40)) -> 3 | AI13: 3
B14: 6 | C14: Pre-requisite/ co-requisite (if any): | F14: None | AI14: 4
AI15: 5
B16: 7 | C16: Course Learning Outcomes (CLO) | F16: CLO1 | H16: Explain the concepts relevant to comprehensive personal financial planning. (C2, PLO1) | AI16: 6
F17: CLO2 | H17: Demonstrate the ability to evaluate the personal finance alternatives within the financial services industry. (C2, PLO8) | AI17: 7
F18: CLO3 | H18: Apply the knowledge of financial planning to strategize appropriate strategies to achieve goals within a personal finance context.(C3,PLO9) | AI18: 8
AI20: Compulsory
AI21: Major (core)
AI22: Minor
AI23: Elective (core)
AI24: Elective (open/free)
B25: 8 | C25: Mapping of the Course Learning Outcomes to the Programme Learning Outcomes, Teaching Methods and Assessment Methods
D27: Course Learning Outcomes | F27: Programme Learning Outcomes (PLO) | R27: Teaching Methods | W27: Assessment Methods
F28: PLO 1 | G28: PLO 2 | H28: PLO 3 | I28: PLO 4 | J28: PLO 5 | K28: PLO 6 | L28: PLO 7 | M28: PLO 8 | N28: PLO 9 | O28: PLO 10 | P28: PLO 11
D29: =IF(ISBLANK(F16),"",F16) -> CLO1 | F29: √ | R29: Synchronous Tutorial Sessions (student centered facilitation) | W29: Test, Assignment
D30: CLO2 | M30: √ | R30: Synchronous Tutorial Sessions (student centered facilitation) | W30: Test, Final examination
D31: CLO3 | N31: √ | R31: Synchronous Tutorial Sessions (student centered facilitation) | W31: Final examination
AI36: Cognitive skills
D37: Mapping with MQF Cluster of Learning Outcomes | F37: C1 | AI37: Interpersonal skills
M38: C3E | AI38: Communication Skills
N39: C3E | AI39: Digital Skills
AI40: Numeracy Skills
D41: Indicate the primary causal link between the CLO and PLO by ticking '√' in the appropriate box. | AI41: Leadership, Autonomy and Responsibility
D42: C1 = Knowledge & Understanding, C2 = Cognitive Skills, C3A = Practical Skills, C3B = Interpersonal Skills, C3C = Communication Skills, C3D = Digital Skills, | AI42: Personal Skills
D43: C3E = Numeracy Skills, C3F = Leadership, Autonomy & Responsibility, C4A = Personal Skills, C4B = Entrepreneurial Skills, C5 = Ethics & Professionalism | AI43: Entrepreneurial Skills
AI44: Ethics and Professionalism
B45: 9 | C45: Transferable Skills (if applicable)
C46: (Skills learned in the course of study which can be useful and utilized in other settings) | I46: 1 | J46: Cognitive skills | AI46: C1
I47: 2 | J47: Numeracy Skills | AI47: C2
I48: 3 | AI48: C3A
I49: Open-ended response (if any) | AI49: C3B
I50: 4 | AI50: C3C
AI51: C3D
AB52: ` | AI52: C3E
B53: 10 | C53: Distribution of Student Learning Time (SLT) | AI53: C3F
C54: Note: This SLT calculation is designed for home grown programme only. | AI54: C4A
AI55: C4B
D56: Course Content Outline and Subtopics | K56: CLO* | M56: Learning and Teaching Activities** | X56: Total SLT | AI56: C5
M57: Face-to-Face (F2F) | U57: NF2F Independent Learning (Asynchronous)
M58: Physical | Q58: Online/ Technology-mediated (Synchronous)
M59: L | N59: T | O59: P | P59: O | Q59: L | R59: T | S59: P | T59: O
D60: 1 | E60: Financial Planning: Introduction and Fundamentals •Personal financial planning •Basic steps of personal financial planning. •Financial goals. | K60: CLO1 | R60: 1 | U60: 5
D61: 2 | E61: Economic Environment and its Implication on Financial Planning •The Economic System •Economic Problem •Economic Sectors •Financial System •Fiscal Policy •Monetary Policy •Inflation •Measuring the Economy’s Level of Output | K61: CLO1 | R61: 1 | U61: 5
D62: 3 | E62: Personal Planning Skills, Attitudes and Professionalism •Ethics and professionalism •Client-Planner Relationship •MFPC Code of Ethics and Professionalism •RFP Designee’s Code of ethics and Practice Standards | K62: CLO1 | R62: 1 | U62: 5
D63: 4 | E63: PART 1 : Managing Cash Flow and Funds •Cash Flow Management •Credit Cards- Financial Tools or Debt Trap •Car Loans •Buy or Lease Properties | K63: CLO1 | R63: 1 | U63: 5
D64: 5 | E64: PART 2 : Managing Cash Flow and Funds •Budgeting •Money Management •System for Personal Financial Records •Personal Financial Statements •Financial Ratios | K64: CLO1 | R64: 1 | U64: 5
D65: 6 | E65: Time Value of Money •Future Value (FV) •Present Value(PV) | K65: CLO2 | R65: 1 | U65: 5
D66: 7 | E66: Home Ownership •Evaluating renting and buying alternatives •Changing Circumstances in life Accommodation Considerations •Home Buying Process | K66: CLO2 | R66: 1 | U66: 5
D67: 8 | E67: Consumer Credit •Advantages and Diadvantages of Consumer Credit •Types of Credit •Borrowing •Car Loan •Credit Report •Managing Debts | K67: CLO2 | R67: 1 | U67: 5
D68: 9 | E68: Risk Management and Insurance •Life Insurance •Buying Life Insurance •Financial Planning with Annuities •Types of Risks •Risks Management •Fire Insurance in Malaysia •Automobile Insurance | K68: CLO2 | R68: 1 | U68: 5
D69: 10 | E69: Planning and Analysis of Investments •Saving •Cash Management Strategy •Financial Institutions •Investment •Factors That Reduce Investment Risk | K69: CLO2 | R69: 1 | U69: 5
D70: =D69+1 -> 11 | E70: Tax Planning •Why Study Taxation •Income vs Capital Gain •Taxes and Financial Planning •Types of Taxes •Scope of Taxation •Taxpayer Responsibility | K70: CLO3 | R70: 1 | U70: 5
D71: 12 | E71: Retirement and Social Security Planning •Misconceptions about Retirement Planning •The Basics of Retirement Planning •Retirement Living Expenses •Retirment Housing •Retirment Income | K71: CLO3 | R71: 1 | U71: 5
D72: 13 | E72: Retirement and Social Security Planning •Misconceptions about Retirement Planning •The Basics of Retirement Planning •Retirement Living Expenses •Retirment Housing •Retirment Income | K72: CLO3 | R72: 1 | U72: 5
D73: 14 | E73: Estate Planning •Purposes of Estate Planning •Estate Planning Phases •Estate Planning Process •Legal Documents •Will •Trusts | K73: CLO3 | R73: 1 | U73: 5
D74: 15
D75: 16
D76: 17
D77: 18
D78: 19
D79: 20
D80: SUB-TOTAL SLT: | X80: =SUM(M60:P79)+SUM(Q60:T79)+SUM(U60:W79) -> 84
D81: Continous Assessement | K81: % | M81: Face-to-Face (F2F) | U81: NF2F Independent Learning for Assessment (Asynchronous)
M82: Physical | Q82: Online/ Technology-mediated (Synchronous)
D83: 1 | E83: Test 1 | K83: 25 | Q83: 1 | U83: 6.2
D84: 2 | E84: Quiz | K84: 15 | Q84: 1 | U84: 6.2
D85: 3 | E85: Individual Assignmen - Case Study | K85: 20 | U85: 7.2
D86: 4 | E86: Individual Assignment - Forum | K86: 10 | U86: 3.6
D87: 5
D88: SUB-TOTAL SLT: | X88: =SUM(M83:W87) -> 25.2
D89: Final Assessement | K89: % | M89: Face-to-Face (F2F) | U89: NF2F Independent Learning for Assessment (Asynchronous)
M90: Physical | Q90: Online/ Technology-mediated (Synchronous)
D91: 1 | E91: Final Examination | K91: 30 | Q91: 3 | U91: 7.8
D92: 2
D93: 3
D94: 4
D95: 5
D96: SUB-TOTAL SLT: | X96: =SUM(M91:W95) -> 10.8
D98: SLT for Assessment: | X98: =X88+X96 -> 36
D99: GRAND TOTAL SLT: | X99: =X98+X80 -> 120
D100: A | E100: % SLT for F2F Physical Component: [Total F2F Physical /(Total F2F Physical + Total F2F Online + Total Independent Learning) x 100)] | X100: =IFERROR(((SUM(M60:P79)+SUM(M83:P87)+SUM(M91:P95))/X99)* 100,"") -> 0
D102: B | E102: % SLT for Online & Independent Learning Component: [(Total F2F Online + Total Independent Learning) /( Total F2F Physical + Total F2F Online + Total Independent Learning) x 100] | X102: =IFERROR((SUM(Q60:W79)+SUM(Q83:W87) + SUM(Q91:W95))/X99 * 100,"") -> 100
D103: C | E103: % SLT for All Practical Component: [% F2F Physical Practical + % F2F Online Practical] | X103: =IFERROR(X104+X105,"") -> 0
D104: C1 | E104: % SLT for F2F Physical Practical Component [Total F2F Physical Practical /( Total F2F Physical + Total F2F Online + Total Independent Learning) x 100)] | X104: =IFERROR(SUM(O60:O79)/X99*100,"") -> 0
D105: C2 | E105: % SLT for F2F Online Practical Component [Total F2F Online Practical / (Total F2F Physical + Total F2F Online + Total Independent Learning) x 100] | X105: =IFERROR(SUM(S60:S79)/X99*100,"") -> 0
Z106: =IFERROR(X102+X104,"") -> 100
D107: Please tick (√) if this course is Industrial Training/ Clinical Placement/ Practicum using 50% of Effective Learning Time (ELT)
D108: Note:
D109: * Indicate the CLO based on the CLO's numbering in Item 8
D110: ** For ODL programme: Courses with mandatory practical requiremnets imposed by the programme standards or any related standards can be exempted from complying to the minimum 80% ODL delivery rule in the SLT.
B112: 11 | C112: Identify special requirement or resources to deliver the course (e.g., software, nursery, computer lab, simulation room etc)
B114: 12 | C114: References (include required and further readings, and should be the most current) | K114: Main Reference: Kapoor, Dlabay and Hughes(2020) Personal Finance (14th ed) McGraw Hill. Additional Reference: Bodie, Kane, Marcus (2017): Investments, (11th ed), McGraw Hill. Mcgraw-hill / Irwin (2017) Series in Finance Personal Financial Planning (2nd ed)Insurance, and Real Estate. Peers, R. (2018). Digital super powers– The role of artificial intelligence in wealth management. Chishti, S. and Puschmann, T. (Editors). The WEALTHTECH book: The fintech handbook for investors, entrepreneurs and finance visionaries. Hoboken: Wiley, 2018.
B116: 13 | C116: Other additional information (if applicable)
C119: Note: Number of PLO indicated is purely for illustration purposes only and the number is subjected to the curriculum design.

Sheet OBM3200
B2: Back To FORM @ TEMPLATE
AI3: √
B5: 1 | C5: Course Name: | F5: Human Resource Management | AI5: Semester
C6: Course Code: | F6: OBM3200 | AI6: 1
C7: Course Classification: | F7: Major (core) | AI7: 2
B8: 2 | C8: Synopsis: | F8: The Human Resource Management module will give students the knowledge and skills to understand, analyse, and solve people management issues in organisations. These abilities will improve the students’ knowledge and skills in their future careers in HRM or any other business context.The context of human resource management in this course includes human resource management and recruitment and selection, training and development, compensation and employee relations, and safety and health law which contributes to organizational success and employee well being. | AI8: 3
B9: =B8+1 -> 3 | C9: Name(s) of Academic Staff: | F9: 1 | G9: A. Tanusia
F10: 2 | AI10: Year Offered
F11: 3 | AI11: 1
B12: =B9+1 -> 4 | C12: Semester and Year offered: | F12: Year Offered | I12: 2 | J12: Semester | L12: 1 | M12: Remarks: | AI12: 2
B13: =B12+1 -> 5 | C13: Credit Value: | F13: =IF(X107 ="√",INT(X99/80),INT(X99/40)) -> 3 | AI13: 3
B14: 6 | C14: Pre-requisite/ co-requisite (if any): | F14: OBM3102-Foundation of business | AI14: 4
AI15: 5
B16: 7 | C16: Course Learning Outcomes (CLO) | F16: CLO1 | H16: Explain the concepts/theories, key terms and practices within the field of human resource management (C2,PLO1) | AI16: 6
F17: CLO2 | H17: Integrate the knowledge of HR concepts to take correct business decisions.(A4,PLO4) | AI17: 7
F18: CLO3 | H18: Demonstate necessary skill set for application of various HR issues (A6,PLO5) | AI18: 8
AI20: Compulsory
AI21: Major (core)
AI22: Minor
AI23: Elective (core)
AI24: Elective (open/free)
B25: 8 | C25: Mapping of the Course Learning Outcomes to the Programme Learning Outcomes, Teaching Methods and Assessment Methods
D27: Course Learning Outcomes | F27: Programme Learning Outcomes (PLO) | R27: Teaching Methods | W27: Assessment Methods
F28: PLO 1 | G28: PLO 2 | H28: PLO 3 | I28: PLO 4 | J28: PLO 5 | K28: PLO 6 | L28: PLO 7 | M28: PLO 8 | N28: PLO 9 | O28: PLO 10 | P28: PLO 11
D29: =IF(ISBLANK(F16),"",F16) -> CLO1 | F29: √ | R29: Synchronous Tutorial Sessions (student centered facilitation) | W29: Assignment, Case Study, Journal Review,Final Exam
D30: CLO2 | I30: √ | R30: Synchronous Tutorial Sessions (student centered facilitation) | W30: Assignment, Case Study, Journal Review,Final Exam
D31: CLO3 | J31: √ | R31: Synchronous Tutorial Sessions (student centered facilitation) | W31: Assignment, Case Study, Journal Review,Final Exam
AI36: Cognitive skills
D37: Mapping with MQF Cluster of Learning Outcomes | F37: C1 | AI37: Interpersonal skills
I38: C3B | AI38: Communication Skills
J39: C3C | AI39: Digital Skills
AI40: Numeracy Skills
D41: Indicate the primary causal link between the CLO and PLO by ticking '√' in the appropriate box. | AI41: Leadership, Autonomy and Responsibility
D42: C1 = Knowledge & Understanding, C2 = Cognitive Skills, C3A = Practical Skills, C3B = Interpersonal Skills, C3C = Communication Skills, C3D = Digital Skills, | AI42: Personal Skills
D43: C3E = Numeracy Skills, C3F = Leadership, Autonomy & Responsibility, C4A = Personal Skills, C4B = Entrepreneurial Skills, C5 = Ethics & Professionalism | AI43: Entrepreneurial Skills
AI44: Ethics and Professionalism
B45: 9 | C45: Transferable Skills (if applicable)
C46: (Skills learned in the course of study which can be useful and utilized in other settings) | I46: 1 | J46: Cognitive skills | AI46: C1
I47: 2 | J47: Interpersonal skills | AI47: C2
I48: 3 | J48: Communication Skills | AI48: C3A
I49: Open-ended response (if any) | AI49: C3B
I50: 4 | AI50: C3C
AI51: C3D
AB52: ` | AI52: C3E
B53: 10 | C53: Distribution of Student Learning Time (SLT) | AI53: C3F
C54: Note: This SLT calculation is designed for home grown programme only. | AI54: C4A
AI55: C4B
D56: Course Content Outline and Subtopics | K56: CLO* | M56: Learning and Teaching Activities** | X56: Total SLT | AI56: C5
M57: Face-to-Face (F2F) | U57: NF2F Independent Learning (Asynchronous)
M58: Physical | Q58: Online/ Technology-mediated (Synchronous)
M59: L | N59: T | O59: P | P59: O | Q59: L | R59: T | S59: P | T59: O
D60: 1 | E60: Overview and Evolution of HRM • The importance of human resource management • The structure of the human resource function in organizations • The functions within the scope of human resource management • Strategic Roles and Responsibilities of HRM | K60: CLO1 | R60: 1 | U60: 5
D61: 2 | E61: Job and Organisational Design • competence in designing jobs and conducting job analysis | K61: CLO1,CLO2 | R61: 1 | U61: 5
D62: 3 | E62: Recruitment Process • Recruitment method | K62: CLO1,CLO2 | R62: 1 | U62: 5
D63: 4 | E63: Selection Process • Selection method | K63: CLO1,CLO2 | R63: 1 | U63: 5
D64: 5 | E64: Human Resource Development • training and development • orientation and socialization | K64: CLO1,CLO2 | R64: 1 | U64: 5
D65: 6 | E65: Developing Careers • Understand what is needed for career development programs to be successful • Understanding career path | K65: CLO1,CLO2 | R65: 1 | U65: 5
D66: 7 | E66: Performance Management • Performance appraisal process • Challenges and bias in managing performance | K66: CLO1,CLO2 | R66: 1 | U66: 5
D67: 8 | E67: Managing Compensation • components of direct financial compensation | K67: CLO2,CLO3 | R67: 1 | U67: 5
D68: 9 | E68: Designing and Administering Benefits • components of indirect financial compensation | K68: CLO2,CLO3 | R68: 1 | U68: 5
D69: 10 | E69: Managing Workplace Safety and Health • Basic provisions of the Occupational Safety and Health | K69: CLO2,CLO3 | R69: 1 | U69: 5
D70: =D69+1 -> 11 | E70: Industrial Relations • Discuss labor unions,collective bargaining and grievance procedure | K70: CLO2,CLO3 | R70: 1 | U70: 5
D71: 12 | E71: Employee Relations • Describe transfers, promotions, resignations, and retirements as factors involved in internal employee relations. | K71: CLO2,CLO3 | R71: 1 | U71: 5
D72: 13 | E72: Human Resource Information System • Purpose and nature of an HRIS | K72: CLO2,CLO3 | R72: 1 | U72: 5
D73: 14 | E73: HR Analytics • Introduction to HR Analytics | K73: CLO2,CLO3 | R73: 1 | U73: 5
D74: 15
D75: 16
D76: 17
D77: 18
D78: 19
D79: 20
D80: SUB-TOTAL SLT: | X80: =SUM(M60:P79)+SUM(Q60:T79)+SUM(U60:W79) -> 84
D81: Continous Assessement | K81: % | M81: Face-to-Face (F2F) | U81: NF2F Independent Learning for Assessment (Asynchronous)
M82: Physical | Q82: Online/ Technology-mediated (Synchronous)
D83: 1 | E83: Assignment | K83: 40 | U83: 14.4
D84: 2 | E84: Case Study | K84: 10 | U84: 3.6
D85: 3 | E85: Journal Review | K85: 20 | U85: 7.2
D86: 4
D87: 5
D88: SUB-TOTAL SLT: | X88: =SUM(M83:W87) -> 25.2
D89: Final Assessement | K89: % | M89: Face-to-Face (F2F) | U89: NF2F Independent Learning for Assessment (Asynchronous)
M90: Physical | Q90: Online/ Technology-mediated (Synchronous)
D91: 1 | E91: Final Exam | K91: 30 | Q91: 3 | U91: 7.8
D92: 2
D93: 3
D94: 4
D95: 5
D96: SUB-TOTAL SLT: | X96: =SUM(M91:W95) -> 10.8
D98: SLT for Assessment: | X98: =X88+X96 -> 36
D99: GRAND TOTAL SLT: | X99: =X98+X80 -> 120
D100: A | E100: % SLT for F2F Physical Component: [Total F2F Physical /(Total F2F Physical + Total F2F Online + Total Independent Learning) x 100)] | X100: =IFERROR(((SUM(M60:P79)+SUM(M83:P87)+SUM(M91:P95))/X99)* 100,"") -> 0
D102: B | E102: % SLT for Online & Independent Learning Component: [(Total F2F Online + Total Independent Learning) /( Total F2F Physical + Total F2F Online + Total Independent Learning) x 100] | X102: =IFERROR((SUM(Q60:W79)+SUM(Q83:W87) + SUM(Q91:W95))/X99 * 100,"") -> 100
D103: C | E103: % SLT for All Practical Component: [% F2F Physical Practical + % F2F Online Practical] | X103: =IFERROR(X104+X105,"") -> 0
D104: C1 | E104: % SLT for F2F Physical Practical Component [Total F2F Physical Practical /( Total F2F Physical + Total F2F Online + Total Independent Learning) x 100)] | X104: =IFERROR(SUM(O60:O79)/X99*100,"") -> 0
D105: C2 | E105: % SLT for F2F Online Practical Component [Total F2F Online Practical / (Total F2F Physical + Total F2F Online + Total Independent Learning) x 100] | X105: =IFERROR(SUM(S60:S79)/X99*100,"") -> 0
Z106: =IFERROR(X102+X104,"") -> 100
D107: Please tick (√) if this course is Industrial Training/ Clinical Placement/ Practicum using 50% of Effective Learning Time (ELT)
D108: Note:
D109: * Indicate the CLO based on the CLO's numbering in Item 8
D110: ** For ODL programme: Courses with mandatory practical requiremnets imposed by the programme standards or any related standards can be exempted from complying to the minimum 80% ODL delivery rule in the SLT.
B112: 11 | C112: Identify special requirement or resources to deliver the course (e.g., software, nursery, computer lab, simulation room etc)
B114: 12 | C114: References (include required and further readings, and should be the most current) | K114: * Gary Dessler. (2020). Human Resource Management. 16th ed. Pearson Education Limited, Boston. *Joseph J. Martocchio. (2019). Human Resource Management.15th Edition, Pearson Education Limited, Boston. Additional Text: • Luis Gomez-Mejia, David Balkin & Kenneth P.Carson. (2020). Managing Human Resources. 9th ed. Pearson Education Limited, Boston. • Noe, R.A, Hollenbeck, J.R., Gerhart, B. & Wright, P. M. (2010). Human Resource Management. Gaining a Competitive Advantage. 7th ed. NY: McGraw-Hill Irwin. • Bolander G.W. and Snell S.A., (2013). Principles of Human Resource Management. 16th ed. Cengage Journals: • https://www.sciencedirect.com/journal/human-resource-management-review • https://www.emerald.com/insight/search?q=human+resource+management&showAll=true
B116: 13 | C116: Other additional information (if applicable)
C119: Note: Number of PLO indicated is purely for illustration purposes only and the number is subjected to the curriculum design.

Sheet OBA3216
B2: Back To FORM @ TEMPLATE
AI3: √
B5: 1 | C5: Course Name: | F5: Financial Technology | AI5: Semester
C6: Course Code: | F6: OBA3216 | AI6: 1
C7: Course Classification: | F7: Major (core) | AI7: 2
B8: 2 | C8: Synopsis: | F8: The financial services industries are changing rapidly with the emergence of financial technology (FinTech). The objective of this module is to provide students with an overview of FinTech and introductions to its applications in financial services, such as commercial and investment banking, digital investing, financial advising, and insurance. Students are expected to develop a broad understanding of the recent FinTech development and its impact on different parts of the financial world. Students will also have hands-on problem-solving experiences that can be useful in FinTech applications and innovation. Topics may include but are not limited to: blockchain and cryptocurrencies, smart contracting, payments, digital banking, P2P lending, crowdfunding, robo-advising, and InsurTech. | AI8: 3
B9: =B8+1 -> 3 | C9: Name(s) of Academic Staff: | F9: 1 | G9: Ms Mimi Suriaty Abdul Rani
F10: 2 | AI10: Year Offered
F11: 3 | AI11: 1
B12: =B9+1 -> 4 | C12: Semester and Year offered: | F12: Year Offered | I12: 2 | J12: Semester | L12: 1 | M12: Remarks: | AI12: 2
B13: =B12+1 -> 5 | C13: Credit Value: | F13: =IF(X107 ="√",INT(X99/80),INT(X99/40)) -> 3 | AI13: 3
B14: 6 | C14: Pre-requisite/ co-requisite (if any): | F14: OBA3105 - Introduction to Finance & OEC3162 - Essentials of Information Skills | AI14: 4
AI15: 5
B16: 7 | C16: Course Learning Outcomes (CLO) | F16: CLO1 | H16: Discuss the recent FinTech developments and analyze their impact on the financial services industries. (C2, PLO8) | AI16: 6
F17: CLO2 | H17: Apply the technologies underlying cryptocurrencies and blockchains. (C3, PLO7) | AI17: 7
F18: CLO3 | H18: Demonstrate alternative lending, P2P technologies, and assess their impact on traditional banking and payment industries.(C3, PLO7) | AI18: 8
AI20: Compulsory
AI21: Major (core)
AI22: Minor
AI23: Elective (core)
AI24: Elective (open/free)
B25: 8 | C25: Mapping of the Course Learning Outcomes to the Programme Learning Outcomes, Teaching Methods and Assessment Methods
D27: Course Learning Outcomes | F27: Programme Learning Outcomes (PLO) | R27: Teaching Methods | W27: Assessment Methods
F28: PLO 1 | G28: PLO 2 | H28: PLO 3 | I28: PLO 4 | J28: PLO 5 | K28: PLO 6 | L28: PLO 7 | M28: PLO 8 | N28: PLO 9 | O28: PLO 10 | P28: PLO 11
D29: =IF(ISBLANK(F16),"",F16) -> CLO1 | M29: √ | R29: Synchronous Tutorial Sessions (student centered facilitation) | W29: Test and Assignment
D30: CLO2 | L30: √ | R30: Synchronous Tutorial Sessions (student centered facilitation) | W30: Test and Final Examination
D31: CLO3 | L31: √ | R31: Synchronous Tutorial Sessions (student centered facilitation) | W31: Assignment and Final Examination
AI36: Cognitive skills
D37: Mapping with MQF Cluster of Learning Outcomes | M37: C2 | AI37: Interpersonal skills
L38: C3E | AI38: Communication Skills
L39: C3F | AI39: Digital Skills
AI40: Numeracy Skills
D41: Indicate the primary causal link between the CLO and PLO by ticking '√' in the appropriate box. | AI41: Leadership, Autonomy and Responsibility
D42: C1 = Knowledge & Understanding, C2 = Cognitive Skills, C3A = Practical Skills, C3B = Interpersonal Skills, C3C = Communication Skills, C3D = Digital Skills, | AI42: Personal Skills
D43: C3E = Numeracy Skills, C3F = Leadership, Autonomy & Responsibility, C4A = Personal Skills, C4B = Entrepreneurial Skills, C5 = Ethics & Professionalism | AI43: Entrepreneurial Skills
AI44: Ethics and Professionalism
B45: 9 | C45: Transferable Skills (if applicable)
C46: (Skills learned in the course of study which can be useful and utilized in other settings) | I46: 1 | J46: Cognitive skills | AI46: C1
I47: 2 | J47: Digital Skills | AI47: C2
I48: 3 | AI48: C3A
I49: Open-ended response (if any) | AI49: C3B
I50: 4 | AI50: C3C
AI51: C3D
AB52: ` | AI52: C3E
B53: 10 | C53: Distribution of Student Learning Time (SLT) | AI53: C3F
C54: Note: This SLT calculation is designed for home grown programme only. | AI54: C4A
AI55: C4B
D56: Course Content Outline and Subtopics | K56: CLO* | M56: Learning and Teaching Activities** | X56: Total SLT | AI56: C5
M57: Face-to-Face (F2F) | U57: NF2F Independent Learning (Asynchronous)
M58: Physical | Q58: Online/ Technology-mediated (Synchronous)
M59: L | N59: T | O59: P | P59: O | Q59: L | R59: T | S59: P | T59: O
D60: 1 | E60: Introduction to FinTech •FinTech Transformation •FinTech Evolution 1.0: Infrastructure •FinTech Evolution 2.0: Banks •FinTech Evolution 3.0 & 3.5: Startups and Emerging Markets | K60: CLO1 | R60: 1 | U60: 5
D61: 2 | E61: PART 1 : Blockchain and Cryptocurrency Technologies •Individual Payments •Developing Countries and DFS: The Story of Mobile Money •Developing Countries and DFS: Regulation of Mobile Money | K61: CLO1 | R61: 1 | U61: 5
D62: 3 | E62: PART 2 : Blockchain and Cryptocurrency Technologies •The ABCDs of Alternative Finance •Building a New stack •Cryptocurrencies | K62: CLO1 | R62: 1 | U62: 5
D63: 4 | E63: PART 1 : Bitcoin and Other Cryptocurrencies •Cryptocurrencies Primer •Bitcoin and Applications •Cryptocurrencies and Digital Crypto Wallets | K63: CLO1 | R63: 1 | U63: 5
D64: 5 | E64: PART 2 : Bitcoin and Other Cryptocurrencies •Types of Cryptocurrencies • Cryptocurrencies and Applications •Importance of ICO in Alternative Finance •Regulations for Cryptos and tokens | K64: CLO1 | R64: 1 | U64: 5
D65: 6 | E65: PART 1 : Ethereum and Smart Contracts •An overview to the history of smart contracts •An intro to the life-cycle of a smart contract | K65: CLO2 | R65: 1 | U65: 5
D66: 7 | E66: PART 2 : Ethereum and Smart Contracts •Ethereum’s smart contract languages •Interfacing with Ethereum Networks (overview of Ethereum Networks, Clients, Wallets, Transactions etc.) | K66: CLO2 | R66: 1 | U66: 5
D67: 8 | E67: Smart Contracts and Blockchain Applications •Blockchain Architectural Overview •The Web of Trust •Ethereum’s main components | K67: CLO2 | R67: 1 | U67: 5 | AJ67: 1
D68: 9 | E68: PART 1 : Crowdfunding, and P2P Technology •Concept of P2P Lending •P2P and Marketplace Lending •P2P Infrastructure and technologies | K68: CLO2 | R68: 1 | U68: 5
D69: 10 | E69: PART 2 : Crowdfunding, and P2P Technology •Concept of Crowdfunding •Crowdfunding Architecture and Technology | K69: CLO2 | R69: 1 | U69: 5
D70: =D69+1 -> 11 | E70: Machine Learning and Applications •Introduction to Machine Learning •AI and applications •AI/ML - changing business landscape | K70: CLO3 | R70: 1 | U70: 5
D71: 12 | E71: PART 1 : Machine Learning, Artificial Intelligence and Robo-Advisors •Robo Advisory •Automating Investment rules | K71: CLO3 | R71: 1 | U71: 5
D72: 13 | E72: PART 2 : Machine Learning, Artificial Intelligence and Robo-Advisors •ML/AI in Robo-advisory •Robo-advisory Platforms and Architecture | K72: CLO3 | R72: 1 | U72: 5
D73: 14 | E73: FinTech Risk Management and Regulations •New challenges of compliance with financial requirements and government regulations •BNM policies | K73: CLO3 | R73: 1 | U73: 5
D74: 15
D75: 16
D76: 17
D77: 18
D78: 19
D79: 20
D80: SUB-TOTAL SLT: | X80: =SUM(M60:P79)+SUM(Q60:T79)+SUM(U60:W79) -> 84
D81: Continous Assessement | K81: % | M81: Face-to-Face (F2F) | U81: NF2F Independent Learning for Assessment (Asynchronous)
M82: Physical | Q82: Online/ Technology-mediated (Synchronous)
D83: 1 | E83: Test 1 | K83: 25 | Q83: 1 | U83: 6.2
D84: 2 | E84: Quiz | K84: 15 | Q84: 1 | U84: 6.2
D85: 3 | E85: Individual Assignmen - Case Study | K85: 20 | U85: 7.2
D86: 4 | E86: Individual Assignment - Forum | K86: 10 | U86: 3.6
D87: 5
D88: SUB-TOTAL SLT: | X88: =SUM(M83:W87) -> 25.2
D89: Final Assessement | K89: % | M89: Face-to-Face (F2F) | U89: NF2F Independent Learning for Assessment (Asynchronous)
M90: Physical | Q90: Online/ Technology-mediated (Synchronous)
D91: 1 | E91: Final Examination | K91: 30 | Q91: 3 | U91: 7.8
D92: 2
D93: 3
D94: 4
D95: 5
D96: SUB-TOTAL SLT: | X96: =SUM(M91:W95) -> 10.8
D98: SLT for Assessment: | X98: =X88+X96 -> 36
D99: GRAND TOTAL SLT: | X99: =X98+X80 -> 120
D100: A | E100: % SLT for F2F Physical Component: [Total F2F Physical /(Total F2F Physical + Total F2F Online + Total Independent Learning) x 100)] | X100: =IFERROR(((SUM(M60:P79)+SUM(M83:P87)+SUM(M91:P95))/X99)* 100,"") -> 0
D102: B | E102: % SLT for Online & Independent Learning Component: [(Total F2F Online + Total Independent Learning) /( Total F2F Physical + Total F2F Online + Total Independent Learning) x 100] | X102: =IFERROR((SUM(Q60:W79)+SUM(Q83:W87) + SUM(Q91:W95))/X99 * 100,"") -> 100
D103: C | E103: % SLT for All Practical Component: [% F2F Physical Practical + % F2F Online Practical] | X103: =IFERROR(X104+X105,"") -> 0
D104: C1 | E104: % SLT for F2F Physical Practical Component [Total F2F Physical Practical /( Total F2F Physical + Total F2F Online + Total Independent Learning) x 100)] | X104: =IFERROR(SUM(O60:O79)/X99*100,"") -> 0
D105: C2 | E105: % SLT for F2F Online Practical Component [Total F2F Online Practical / (Total F2F Physical + Total F2F Online + Total Independent Learning) x 100] | X105: =IFERROR(SUM(S60:S79)/X99*100,"") -> 0
Z106: =IFERROR(X102+X104,"") -> 100
D107: Please tick (√) if this course is Industrial Training/ Clinical Placement/ Practicum using 50% of Effective Learning Time (ELT)
D108: Note:
D109: * Indicate the CLO based on the CLO's numbering in Item 8
D110: ** For ODL programme: Courses with mandatory practical requiremnets imposed by the programme standards or any related standards can be exempted from complying to the minimum 80% ODL delivery rule in the SLT.
B112: 11 | C112: Identify special requirement or resources to deliver the course (e.g., software, nursery, computer lab, simulation room etc)
B114: 12 | C114: References (include required and further readings, and should be the most current) | K114: Main Reference : Arslanian, H. |. (2019). The future of finance : the impact of FinTech, AI and Crypto on financial services. Palgrave Macmillan.
B116: 13 | C116: Other additional information (if applicable) | K116: FinTech, Lending and Payment Innovation: A Review by Sumit Agarwal and Jian Zhang (Vol 49 no.3). Wuermaling, J. (2018) Artificial intelligence in finance: Six warnings from a central banker. Intervention at the 2nd Annual Fintech Conference.Brussels.
C119: Note: Number of PLO indicated is purely for illustration purposes only and the number is subjected to the curriculum design.

Sheet OBM3204
B2: Back To FORM @ TEMPLATE
AI3: √
B5: 1 | C5: Course Name: | F5: Organisational Behaviour | AI5: Semester
C6: Course Code: | F6: OBM3204 | AI6: 1
C7: Course Classification: | F7: Major (core) | AI7: 2
B8: 2 | C8: Synopsis: | F8: This subject constitutes a review of our knowledge of how people and organizations interact with each other in the workplace hence the title “Organizational Behaviour”. It is intended that students will acquire an understanding of individuals, groups and organizational systems sufficient to enhance their skills, knowledge and ability as managers. In pursuit of this, the course considers the contributions of the social sciences (e.g. sociology, psychology, political science) as they apply to the individual, the group and the organization. | AI8: 3
B9: =B8+1 -> 3 | C9: Name(s) of Academic Staff: | F9: 1 | G9: Sujatha Balakrishna
F10: 2 | AI10: Year Offered
F11: 3 | AI11: 1
B12: =B9+1 -> 4 | C12: Semester and Year offered: | F12: Year Offered | I12: 2 | J12: Semester | L12: 1 | M12: Remarks: | AI12: 2
B13: =B12+1 -> 5 | C13: Credit Value: | F13: =IF(X107 ="√",INT(X99/80),INT(X99/40)) -> 3 | AI13: 3
B14: 6 | C14: Pre-requisite/ co-requisite (if any): | F14: OBM3111 - Principles of Management | AI14: 4
AI15: 5
B16: 7 | C16: Course Learning Outcomes (CLO) | F16: CLO1 | H16: Describe the organizational behaviour theories and models (C2, PLO1) | AI16: 6
F17: CLO2 | H17: Communicate the differences in human behaviour in order to be adaptive to the working environment (A2, PLO4) | AI17: 7
F18: CLO3 | H18: Classify the human behaviour in organizations using the right concept (A4, PLO6) | AI18: 8
AI20: Compulsory
AI21: Major (core)
AI22: Minor
AI23: Elective (core)
AI24: Elective (open/free)
B25: 8 | C25: Mapping of the Course Learning Outcomes to the Programme Learning Outcomes, Teaching Methods and Assessment Methods
D27: Course Learning Outcomes | F27: Programme Learning Outcomes (PLO) | R27: Teaching Methods | W27: Assessment Methods
F28: PLO 1 | G28: PLO 2 | H28: PLO 3 | I28: PLO 4 | J28: PLO 5 | K28: PLO 6 | L28: PLO 7 | M28: PLO 8 | N28: PLO 9 | O28: PLO 10 | P28: PLO 11
D29: =IF(ISBLANK(F16),"",F16) -> CLO1 | F29: √ | R29: Synchronous Tutorial Sessions (student centered facilitation) | W29: Final exam mid-term
D30: CLO2 | I30: √ | R30: Synchronous Tutorial Sessions (student centered facilitation) | W30: Individual assignment
D31: CLO3 | K31: √ | R31: Synchronous Tutorial Sessions (student centered facilitation) | W31: Group assignment
AI36: Cognitive skills
D37: Mapping with MQF Cluster of Learning Outcomes | F37: C1 | I37: C3B | K37: C3F | AI37: Interpersonal skills
AI38: Communication Skills
AI39: Digital Skills
AI40: Numeracy Skills
D41: Indicate the primary causal link between the CLO and PLO by ticking '√' in the appropriate box. | AI41: Leadership, Autonomy and Responsibility
D42: C1 = Knowledge & Understanding, C2 = Cognitive Skills, C3A = Practical Skills, C3B = Interpersonal Skills, C3C = Communication Skills, C3D = Digital Skills, | AI42: Personal Skills
D43: C3E = Numeracy Skills, C3F = Leadership, Autonomy & Responsibility, C4A = Personal Skills, C4B = Entrepreneurial Skills, C5 = Ethics & Professionalism | AI43: Entrepreneurial Skills
AI44: Ethics and Professionalism
B45: 9 | C45: Transferable Skills (if applicable)
C46: (Skills learned in the course of study which can be useful and utilized in other settings) | I46: 1 | J46: Communication Skills | AI46: C1
I47: 2 | J47: Leadership, Autonomy and Responsibility | AI47: C2
I48: 3 | J48: Ethics and Professionalism | AI48: C3A
I49: Open-ended response (if any) | AI49: C3B
I50: 4 | AI50: C3C
AI51: C3D
AB52: ` | AI52: C3E
B53: 10 | C53: Distribution of Student Learning Time (SLT) | AI53: C3F
C54: Note: This SLT calculation is designed for home grown programme only. | AI54: C4A
AI55: C4B
D56: Course Content Outline and Subtopics | K56: CLO* | M56: Learning and Teaching Activities** | X56: Total SLT | AI56: C5
M57: Face-to-Face (F2F) | U57: NF2F Independent Learning (Asynchronous)
M58: Physical | Q58: Online/ Technology-mediated (Synchronous)
M59: L | N59: T | O59: P | P59: O | Q59: L | R59: T | S59: P | T59: O
D60: 1 | E60: Introduction to organizational behaviour (Part 1) - There levels of OB analysis - Behavioural science diciplines that contributes to OB - Challenges and opportunities of OB concepts | K60: CLO1 | R60: 1 | U60: 5
D61: 2 | E61: Introduction to organizational behaviour (Part 2) - There levels of OB analysis - Behavioural science diciplines that contributes to OB - Challenges and opportunities of OB concepts | K61: CLO1 | R61: 1 | U61: 5
D62: 3 | E62: Individual behaviour - Attitude at work - Major job attitudes - Job satisfaction - Employee responses to dissatisfaction | K62: CLO1 | R62: 1 | U62: 5
D63: 4 | E63: Individual behaviour - Emotion and moods - Sources of emotion and mood - Emotional labor - Emotional dissonance and intelligence - OB applications of emotions and moods | K63: CLO1 | R63: 1 | U63: 5
D64: 5 | E64: Individual behaviour - Personality - Personality determinants and inventory - Different personality types - Values, Rokeach Value Survey - Personality job-fit theory, Holland Typology | K64: CLO2 | R64: 1 | U64: 5
D65: 6 | E65: Individual behaviour - Perception & decision making - Attribution theory - Misperceptions and biases - Rational and non-rational decision making models - Common biases and errors in decision making | K65: CLO1 | R65: 1 | U65: 5
D66: 7 | E66: Individual behaviour - Motivation (1) - Early and contemporary theories of motivation | K66: CLO1 | R66: 1 | U66: 5
D67: 8 | E67: Individual behaviour - Motivation (2) - Main ways jobs can be redesigned (JCM, working arrangements) - Employee involvement and recognition programs - Variable pay programs | K67: CLO1 | R67: 1 | U67: 5
D68: 9 | E68: Group behaviour - Team dynamics - Different types of groups - Group cohesiveness - Group decision making - Differences between group and team - Characteristics of effective teams | K68: CLO1 | R68: 1 | U68: 5
D69: 10 | E69: Group behaviour - Leadership (Part 1) - Trait, contigency and contemporary theories of leadership | K69: CLO2 | R69: 1 | U69: 5
D70: =D69+1 -> 11 | E70: Group behaviour - Leadership (Part 2) - Charismatic, transactional and transformational theories - Trust and challenges to leadership | K70: CLO2 | R70: 1 | V70: 5
D71: 12 | E71: Group behaviour - Power and Politics - Bases of power - Power tactics - Defensive behaviours to avoid politics - Impression management techniques | K71: CLO1 | R71: 1 | V71: 5
D72: 13 | E72: Organizational dynamics - Organizational culture - Characteristics of culture - What do cultures do - Creating and sustaining culture - How employees learn culture | K72: CLO3 | R72: 1 | V72: 5
D73: 14 | E73: Organizational dynamics - Organizational change and development - Planned change - Resistance to change - Lewin's Model of Change - OD interventions - Causes and managing stress at work | K73: CLO3 | R73: 1 | V73: 5
D74: 15
D75: 16
D76: 17
D77: 18
D78: 19
D79: 20
D80: SUB-TOTAL SLT: | X80: =SUM(M60:P79)+SUM(Q60:T79)+SUM(U60:W79) -> 84
D81: Continous Assessement | K81: % | M81: Face-to-Face (F2F) | U81: NF2F Independent Learning for Assessment (Asynchronous)
M82: Physical | Q82: Online/ Technology-mediated (Synchronous)
D83: 1 | E83: Mid-term test | K83: 20 | Q83: 1 | U83: 6.2
D84: 2 | E84: Group assignment | K84: 30 | U84: 10.8
D85: 3 | E85: Individual assignment 1 | K85: 20 | U85: 7.2
D86: 4
D87: 5
D88: SUB-TOTAL SLT: | X88: =SUM(M83:W87) -> 25.2
D89: Final Assessement | K89: % | M89: Face-to-Face (F2F) | U89: NF2F Independent Learning for Assessment (Asynchronous)
M90: Physical | Q90: Online/ Technology-mediated (Synchronous)
D91: 1 | E91: Final exam | K91: 30 | Q91: 3 | U91: 7.8
D92: 2
D93: 3
D94: 4
D95: 5
D96: SUB-TOTAL SLT: | X96: =SUM(M91:W95) -> 10.8
D98: SLT for Assessment: | X98: =X88+X96 -> 36
D99: GRAND TOTAL SLT: | X99: =X98+X80 -> 120
D100: A | E100: % SLT for F2F Physical Component: [Total F2F Physical /(Total F2F Physical + Total F2F Online + Total Independent Learning) x 100)] | X100: =IFERROR(((SUM(M60:P79)+SUM(M83:P87)+SUM(M91:P95))/X99)* 100,"") -> 0
D102: B | E102: % SLT for Online & Independent Learning Component: [(Total F2F Online + Total Independent Learning) /( Total F2F Physical + Total F2F Online + Total Independent Learning) x 100] | X102: =IFERROR((SUM(Q60:W79)+SUM(Q83:W87) + SUM(Q91:W95))/X99 * 100,"") -> 100
D103: C | E103: % SLT for All Practical Component: [% F2F Physical Practical + % F2F Online Practical] | X103: =IFERROR(X104+X105,"") -> 0
D104: C1 | E104: % SLT for F2F Physical Practical Component [Total F2F Physical Practical /( Total F2F Physical + Total F2F Online + Total Independent Learning) x 100)] | X104: =IFERROR(SUM(O60:O79)/X99*100,"") -> 0
D105: C2 | E105: % SLT for F2F Online Practical Component [Total F2F Online Practical / (Total F2F Physical + Total F2F Online + Total Independent Learning) x 100] | X105: =IFERROR(SUM(S60:S79)/X99*100,"") -> 0
Z106: =IFERROR(X102+X104,"") -> 100
D107: Please tick (√) if this course is Industrial Training/ Clinical Placement/ Practicum using 50% of Effective Learning Time (ELT)
D108: Note:
D109: * Indicate the CLO based on the CLO's numbering in Item 8
D110: ** For ODL programme: Courses with mandatory practical requiremnets imposed by the programme standards or any related standards can be exempted from complying to the minimum 80% ODL delivery rule in the SLT.
B112: 11 | C112: Identify special requirement or resources to deliver the course (e.g., software, nursery, computer lab, simulation room etc)
B114: 12 | C114: References (include required and further readings, and should be the most current) | K114: Robbins, S.P. & Judge, T.A. (2019). Organizational Behavior (18th ed). England : Pearson Education Limited Additional readings: McShane, S.L & Von Glinow, M.A. (2018). Organizational Behavior (8th ed) McGraw-Hill Education Lumen Learning : https://courses.lumenlearning.com/suny-hccc-orgbehavior/ OER: https://louis.oercommons.org/courses/organizational-behavior-4/view
B116: 13 | C116: Other additional information (if applicable)
C119: Note: Number of PLO indicated is purely for illustration purposes only and the number is subjected to the curriculum design.

Sheet OBM3211
B2: Table 4: Summary of Course Information
AI3: √
B5: 1 | C5: Course Name: | F5: Strategic Management | AI5: Semester
C6: Course Code: | F6: OBM3211 | AI6: 1
C7: Course Classification: | F7: Major (core) | AI7: 2
B8: 2 | C8: Synopsis: | F8: This course will equip students with greater knowledge about value and process of strategic management. The intention is to provide students with strategy insights such as reflect on strategic dilemmas and practice strategy tools to enable students to become strategic thinkers. In this course, greater emphasize will be given to strategic analysis, formulation and implementation of strategy at different levels of the organization. In addition, the course will cover effective governance framework in corporate management. Furthermore, throughout this course, students will be exposed with value creation and management concepts. | AI8: 3
B9: =B8+1 -> 3 | C9: Name(s) of Academic Staff: | F9: 1 | G9: Dr. Gan Joo Kong
F10: 2 | AI10: Year Offered
F11: 3 | AI11: 1
B12: =B9+1 -> 4 | C12: Semester and Year offered: | F12: Year Offered | I12: 2 | J12: Semester | L12: 1 | M12: Remarks: | AI12: 2
B13: =B12+1 -> 5 | C13: Credit Value: | F13: =IF(X107 ="√",INT(X99/80),INT(X99/40)) -> 3 | AI13: 3
B14: 6 | C14: Pre-requisite/ co-requisite (if any): | F14: OBM3111 Principles of Management | AI14: 4
AI15: 5
B16: 7 | C16: Course Learning Outcomes (CLO) | F16: CLO1 | H16: Discuss in-depth the basic concepts, theories, principles, and practices that associated with strategic management (C2, PLO1). | AI16: 6
F17: CLO2 | H17: Apply comprehensive strategic management knowledge and approaches to solve and manage complex problems in the organization (C3,PLO2). | AI17: 7
F18: CLO3 | H18: Adopt leadership skills and responsibility in managing strategic activities for organization (A3,PLO6). | AI18: 8
AI20: Compulsory
AI21: Major (core)
AI22: Minor
AI23: Elective (core)
AI24: Elective (open/free)
B25: 8 | C25: Mapping of the Course Learning Outcomes to the Programme Learning Outcomes, Teaching Methods and Assessment Methods
D27: Course Learning Outcomes | F27: Programme Learning Outcomes (PLO) | R27: Teaching Methods | W27: Assessment Methods
F28: PLO 1 | G28: PLO 2 | H28: PLO 3 | I28: PLO 4 | J28: PLO 5 | K28: PLO 6 | L28: PLO 7 | M28: PLO 8 | N28: PLO 9 | O28: PLO 10 | P28: PLO 11
D29: =IF(ISBLANK(F16),"",F16) -> CLO1 | F29: √ | R29: Synchronous Tutorial Sessions (student centered facilitation) | W29: Final Examination
D30: CLO2 | G30: √ | R30: Synchronous Tutorial Sessions (student centered facilitation) | W30: Assignments
D31: CLO3 | K31: √ | R31: Synchronous Tutorial Sessions (student centered facilitation) | W31: Projects
AI36: Cognitive skills
D37: Mapping with MQF Cluster of Learning Outcomes | F37: C1 | G37: C2 | K37: C3F | AI37: Interpersonal skills
AI38: Communication Skills
AI39: Digital Skills
AI40: Numeracy Skills
D41: Indicate the primary causal link between the CLO and PLO by ticking '√' in the appropriate box. | AI41: Leadership, Autonomy and Responsibility
D42: C1 = Knowledge & Understanding, C2 = Cognitive Skills, C3A = Practical Skills, C3B = Interpersonal Skills, C3C = Communication Skills, C3D = Digital Skills, | AI42: Personal Skills
D43: C3E = Numeracy Skills, C3F = Leadership, Autonomy & Responsibility, C4A = Personal Skills, C4B = Entrepreneurial Skills, C5 = Ethics & Professionalism | AI43: Entrepreneurial Skills
AI44: Ethics and Professionalism
B45: 9 | C45: Transferable Skills (if applicable)
C46: (Skills learned in the course of study which can be useful and utilized in other settings) | I46: 1 | J46: Interpersonal skills | AI46: C1
I47: 2 | J47: Communication Skills | AI47: C2
I48: 3 | J48: Ethics and Professionalism | AI48: C3A
I49: Open-ended response (if any) | AI49: C3B
I50: 4 | AI50: C3C
AI51: C3D
AB52: ` | AI52: C3E
B53: 10 | C53: Distribution of Student Learning Time (SLT) | AI53: C3F
C54: Note: This SLT calculation is designed for home grown programme only. | AI54: C4A
AI55: C4B
D56: Course Content Outline and Subtopics | K56: CLO* | M56: Learning and Teaching Activities** | X56: Total SLT | AI56: C5
M57: Face-to-Face (F2F) | U57: NF2F Independent Learning (Asynchronous)
M58: Physical | Q58: Online/ Technology-mediated (Synchronous)
M59: L | N59: T | O59: P | P59: O | Q59: L | R59: T | S59: P | T59: O
D60: 1 | E60: Overview of Strategic Management - What is strategic management - Intended, emergent, and realized strategies - Strategic management process | K60: CLO1 | R60: 1 | U60: 5
D61: 2 | E61: Strategic Analysis (I) - Vision, mission, and goals - Competitive advantage | K61: CLO1 | R61: 1 | U61: 5
D62: 3 | E62: Strategic Analysis (II) - Evaluating external environment - Relationship between organization and its environment - Evaluating general environment - Evaluating the industry - Mapping strategic groups | K62: CLO1 | R62: 1 | U62: 5
D63: 4 | E63: Strategic Analysis (III) - Evaluating internal environment - Managing firms resources - Resource-based view - Value chain | K63: CLO1 | R63: 1 | U63: 5
D64: 5 | E64: Strategic Analysis (IV) - Synthesis of strategic issues and analysis - SWOT framework - Strategic issue identification | K64: CLO1 | R64: 1 | U64: 5
D65: 6 | E65: Functional, Business and Corporate Level Strategy (I) - Functional level strategies - Business level strategies - Generic strategies - Cost leadership - Differentiation - Focused cost leadership - Focused cost differentiation | K65: CLO2 | R65: 1 | U65: 5
D66: 7 | E66: Functional, Business and Corporate Level Strategy (II) - Definition of Corporate-level strategy - Diversification - Implementing corporate strategy - Ansoff Matrix - Mergers & Acquisition - Vertical integration strategies - Strategies for getting smaller | K66: CLO2 | R66: 1 | U66: 5
D67: 8 | E67: Functional, Business and Corporate Level Strategy (III) - Portfolio planning and corporate level strategy - Boston Consulting Group Matrix | K67: CLO2 | R67: 1 | U67: 5
D68: 9 | E68: Strategy Formulation - Strategies in action - Strategy analysis and choice | K68: CLO2 | R68: 1 | U68: 5
D69: 10 | E69: Strategy Implementation - Implementing strategies: Management and operations issues - Implementing strategies: Marketing, finance, R&D, and MIS issues - Contingency view - Managing change - Lewin's Force Field Analysis | K69: CLO3 | R69: 1 | U69: 5
D70: =D69+1 -> 11 | E70: Strategy Evaluation and Control - Strategy review, evaluation, and control | K70: CLO3 | R70: 1 | U70: 5
D71: 12 | E71: Effective Governance Frameworks - Concept of governance - Doing well by doing good | K71: CLO1 | R71: 1 | U71: 5
D72: 13 | E72: Corporate Management and Control - Concept of corporate management - Corporate management control systems | K72: CLO1 | R72: 1 | U72: 5
D73: 14 | E73: Value Creation and Management - Defining value creation - Value delivering - Management concept | K73: CLO1 | R73: 1 | U73: 5
D74: 15
D75: 16
D76: 17
D77: 18
D78: 19
D79: 20
D80: SUB-TOTAL SLT: | X80: =SUM(M60:P79)+SUM(Q60:T79)+SUM(U60:W79) -> 84
D81: Continous Assessement | K81: % | M81: Face-to-Face (F2F) | U81: NF2F Independent Learning for Assessment (Asynchronous)
M82: Physical | Q82: Online/ Technology-mediated (Synchronous)
D83: 1 | E83: Assignment I-Case Study | K83: 20 | U83: =SUM(0.2*36) -> 7.2
D84: 2 | E84: Assignment II-Case Study | K84: 20 | U84: 7.2
D85: 3 | E85: Project I | K85: 30 | U85: =SUM(0.3*36) -> 10.8
D86: 4
D87: 5
D88: SUB-TOTAL SLT: | X88: =SUM(M83:W87) -> 25.2
D89: Final Assessement | K89: % | M89: Face-to-Face (F2F) | U89: NF2F Independent Learning for Assessment (Asynchronous)
M90: Physical | Q90: Online/ Technology-mediated (Synchronous)
D91: 1 | E91: Final Examination | K91: 30 | Q91: 3 | U91: 7.8
D92: 2
D93: 3
D94: 4
D95: 5
D96: SUB-TOTAL SLT: | X96: =SUM(M91:W95) -> 10.8
D98: SLT for Assessment: | X98: =X88+X96 -> 36
D99: GRAND TOTAL SLT: | X99: =X98+X80 -> 120
D100: A | E100: % SLT for F2F Physical Component: [Total F2F Physical /(Total F2F Physical + Total F2F Online + Total Independent Learning) x 100)] | X100: =IFERROR(((SUM(M60:P79)+SUM(M83:P87)+SUM(M91:P95))/X99)* 100,"") -> 0
D102: B | E102: % SLT for Online & Independent Learning Component: [(Total F2F Online + Total Independent Learning) /( Total F2F Physical + Total F2F Online + Total Independent Learning) x 100] | X102: =IFERROR((SUM(Q60:W79)+SUM(Q83:W87) + SUM(Q91:W95))/X99 * 100,"") -> 100
D103: C | E103: % SLT for All Practical Component: [% F2F Physical Practical + % F2F Online Practical] | X103: =IFERROR(X104+X105,"") -> 0
D104: C1 | E104: % SLT for F2F Physical Practical Component [Total F2F Physical Practical /( Total F2F Physical + Total F2F Online + Total Independent Learning) x 100)] | X104: =IFERROR(SUM(O60:O79)/X99*100,"") -> 0
D105: C2 | E105: % SLT for F2F Online Practical Component [Total F2F Online Practical / (Total F2F Physical + Total F2F Online + Total Independent Learning) x 100] | X105: =IFERROR(SUM(S60:S79)/X99*100,"") -> 0
Z106: =IFERROR(X102+X104,"") -> 100
D107: Please tick (√) if this course is Industrial Training/ Clinical Placement/ Practicum using 50% of Effective Learning Time (ELT)
D108: Note:
D109: * Indicate the CLO based on the CLO's numbering in Item 8
D110: ** For ODL programme: Courses with mandatory practical requiremnets imposed by the programme standards or any related standards can be exempted from complying to the minimum 80% ODL delivery rule in the SLT.
B112: 11 | C112: Identify special requirement or resources to deliver the course (e.g., software, nursery, computer lab, simulation room etc) | K112: None
B114: 12 | C114: References (include required and further readings, and should be the most current) | K114: Reed Kennedy (2020). Strategic Management. Virginia Tech Publishing.
B116: 13 | C116: Other additional information (if applicable) | K116: Havard Business Review-Strategic Management Journal of Strategic Management
C119: Note: Number of PLO indicated is purely for illustration purposes only and the number is subjected to the curriculum design.

Sheet OBM3219
B2: Back To FORM @ TEMPLATE
AI3: √
B5: 1 | C5: Course Name: | F5: Entrepreneurship | AI5: Semester
C6: Course Code: | F6: OBM3219 | AI6: 1
C7: Course Classification: | F7: Major (core) | AI7: 2
B8: 2 | C8: Synopsis: | F8: The goals of this programme are to inspire students and help them imbibe an entrepreneurial mind-set. The students will learn what entrepreneurship is and how it has impacted the world. The curriculum is centered on three key aspects of entrepreneurship: 1) the individual, their traits, skills, and attributes that make entrepreneurs successful, 2) the business ideas, how to generate them, where to look for them, how to expand them, and 3) how to ensure they are valid business ideas with potential to meet profit goals. These elements, developed in the course, will assist any current or potential entrepreneur develop and grow a business now or in the future. | AI8: 3
B9: =B8+1 -> 3 | C9: Name(s) of Academic Staff: | F9: 1 | G9: Dr. Siti Aishah Binti Hussin
F10: 2 | AI10: Year Offered
F11: 3 | AI11: 1
B12: =B9+1 -> 4 | C12: Semester and Year offered: | F12: Year Offered | I12: 2 | J12: Semester | L12: 1 | M12: Remarks: | AI12: 2
B13: =B12+1 -> 5 | C13: Credit Value: | F13: =IF(X107 ="√",INT(X99/80),INT(X99/40)) -> 3 | AI13: 3
B14: 6 | C14: Pre-requisite/ co-requisite (if any): | F14: OBM3102 - Foundation of Business | AI14: 4
AI15: 5
B16: 7 | C16: Course Learning Outcomes (CLO) | F16: CLO1 | H16: Describe characteristics of an entrepreneur and the merits and demerits of a career choice as entrepreneur (C2, PLO 1). | AI16: 6
F17: CLO2 | H17: Conduct market pitch for business venture to target customers and other stakeholders, including potential investorsy (P4, PLO 3). | AI17: 7
F18: CLO3 | H18: Demonstrate business knowledge in problem-solving and decision-making processes in developing business plans. (C3, PLO 10). | AI18: 8
AI20: Compulsory
AI21: Major (core)
AI22: Minor
AI23: Elective (core)
AI24: Elective (open/free)
B25: 8 | C25: Mapping of the Course Learning Outcomes to the Programme Learning Outcomes, Teaching Methods and Assessment Methods
D27: Course Learning Outcomes | F27: Programme Learning Outcomes (PLO) | R27: Teaching Methods | W27: Assessment Methods
F28: PLO 1 | G28: PLO 2 | H28: PLO 3 | I28: PLO 4 | J28: PLO 5 | K28: PLO 6 | L28: PLO 7 | M28: PLO 8 | N28: PLO 9 | O28: PLO 10 | P28: PLO 11
D29: =IF(ISBLANK(F16),"",F16) -> CLO1 | F29: √ | R29: Synchronous Tutorial Sessions (student centered facilitation) | W29: Mid Term, Final Examination
D30: CLO2 | H30: √ | R30: Synchronous Tutorial Sessions (student centered facilitation) | W30: Assignment 1: Business Idea
D31: CLO3 | O31: √ | R31: Synchronous Tutorial Sessions (student centered facilitation) | W31: Assignment 2: Business Plan, Presentation, Final Examination
AI36: Cognitive skills
D37: Mapping with MQF Cluster of Learning Outcomes | F37: C1 | AI37: Interpersonal skills
H38: C2 | AI38: Communication Skills
O39: C4B | AI39: Digital Skills
AI40: Numeracy Skills
D41: Indicate the primary causal link between the CLO and PLO by ticking '√' in the appropriate box. | AI41: Leadership, Autonomy and Responsibility
D42: C1 = Knowledge & Understanding, C2 = Cognitive Skills, C3A = Practical Skills, C3B = Interpersonal Skills, C3C = Communication Skills, C3D = Digital Skills, | AI42: Personal Skills
D43: C3E = Numeracy Skills, C3F = Leadership, Autonomy & Responsibility, C4A = Personal Skills, C4B = Entrepreneurial Skills, C5 = Ethics & Professionalism | AI43: Entrepreneurial Skills
AI44: Ethics and Professionalism
B45: 9 | C45: Transferable Skills (if applicable)
C46: (Skills learned in the course of study which can be useful and utilized in other settings) | I46: 1 | J46: Personal Skills | AI46: C1
I47: 2 | J47: Entrepreneurial Skills | AI47: C2
I48: 3 | J48: Leadership, Autonomy and Responsibility | AI48: C3A
I49: Open-ended response (if any) | AI49: C3B
I50: 4 | AI50: C3C
AI51: C3D
AB52: ` | AI52: C3E
B53: 10 | C53: Distribution of Student Learning Time (SLT) | AI53: C3F
C54: Note: This SLT calculation is designed for home grown programme only. | AI54: C4A
AI55: C4B
D56: Course Content Outline and Subtopics | K56: CLO* | M56: Learning and Teaching Activities** | X56: Total SLT | AI56: C5
M57: Face-to-Face (F2F) | U57: NF2F Independent Learning (Asynchronous)
M58: Physical | Q58: Online/ Technology-mediated (Synchronous)
M59: L | N59: T | O59: P | P59: O | Q59: L | R59: T | S59: P | T59: O
D60: 1 | E60: Understanding Entrepreneurship (Part 1) • Evaluation, Concepts and Theories of Entrepreneurship • Characteristics of Entrepreneurs | K60: CLO1 | R60: 1 | U60: 5
D61: 2 | E61: Understanding Entrepreneurship (Part 2) • Entrepreneurial Networking | K61: CLO1 | R61: 1 | U61: 5
D62: 3 | E62: Creativity and Business Idea | K62: CLO1 | R62: 1 | U62: 5
D63: 4 | E63: Small Business Management (Part 1) • Characteristics, Issues & Development of SME | K63: CLO2 | R63: 1 | U63: 5
D64: 5 | E64: Small Business Management (Part 2) • Strategies for Managing Growth in Small Business | K64: CLO2 | R64: 1 | U64: 5
D65: 6 | E65: The Business Plan: Creating & Starting the Venture (Part 1) • The Marketing Plan | K65: CLO2 | R65: 1 | U65: 5
D66: 7 | E66: The Business Plan: Creating & Starting the Venture (Part 2) • The Organizational Plan • The Financial Plan | K66: CLO2 | R66: 1 | U66: 5
D67: 8 | E67: Financing for Entrepreneurs • Sources of Capital | K67: CLO3 | R67: 1 | U67: 5
D68: 9 | E68: Informal Risk Capital, Venture Capital & Going Public Part 1 | K68: CLO3 | R68: 1 | U68: 5
D69: 10 | E69: Informal Risk Capital, Venture Capital & Going Public Part 2 | K69: CLO3 | R69: 1 | U69: 5
D70: =D69+1 -> 11 | E70: Strategies for Growth and Managing the Implications of Growth Part 1 | K70: CLO3 | R70: 1 | U70: 5
D71: 12 | E71: Strategies for Growth and Managing the Implications of Growth Part 2 | K71: CLO3 | R71: 1 | U71: 5
D72: 13 | E72: Succession Planning & Strategies for Harvesting & Ending the Venture Part 1 | K72: CLO3 | R72: 1 | U72: 5
D73: 14 | E73: Succession Planning & Strategies for Harvesting & Ending the Venture Part 2 | K73: CLO3 | R73: 1 | U73: 5
D74: 15
D75: 16
D76: 17
D77: 18
D78: 19
D79: 20
D80: SUB-TOTAL SLT: | X80: =SUM(M60:P79)+SUM(Q60:T79)+SUM(U60:W79) -> 84
D81: Continous Assessement | K81: % | M81: Face-to-Face (F2F) | U81: NF2F Independent Learning for Assessment (Asynchronous)
M82: Physical | Q82: Online/ Technology-mediated (Synchronous)
D83: 1 | E83: Assignment 1: Business Idea | K83: 20 | U83: 7.2
D84: 2 | E84: Assignment 2: Business Plan | K84: 20 | U84: 7.2
D85: 3 | E85: Mid Term | K85: 15 | Q85: 1 | U85: 4.4
D86: 4 | E86: Presentation | K86: 15 | Q86: 0.5 | U86: 4.9
D87: 5
D88: SUB-TOTAL SLT: | X88: =SUM(M83:W87) -> 25.2
D89: Final Assessement | K89: % | M89: Face-to-Face (F2F) | U89: NF2F Independent Learning for Assessment (Asynchronous)
M90: Physical | Q90: Online/ Technology-mediated (Synchronous)
D91: 1 | E91: Final Examination | K91: 30 | Q91: 3 | U91: 7.8
D92: 2
D93: 3
D94: 4
D95: 5
D96: SUB-TOTAL SLT: | X96: =SUM(M91:W95) -> 10.8
D98: SLT for Assessment: | X98: =X88+X96 -> 36
D99: GRAND TOTAL SLT: | X99: =X98+X80 -> 120
D100: A | E100: % SLT for F2F Physical Component: [Total F2F Physical /(Total F2F Physical + Total F2F Online + Total Independent Learning) x 100)] | X100: =IFERROR(((SUM(M60:P79)+SUM(M83:P87)+SUM(M91:P95))/X99)* 100,"") -> 0
D102: B | E102: % SLT for Online & Independent Learning Component: [(Total F2F Online + Total Independent Learning) /( Total F2F Physical + Total F2F Online + Total Independent Learning) x 100] | X102: =IFERROR((SUM(Q60:W79)+SUM(Q83:W87) + SUM(Q91:W95))/X99 * 100,"") -> 100
D103: C | E103: % SLT for All Practical Component: [% F2F Physical Practical + % F2F Online Practical] | X103: =IFERROR(X104+X105,"") -> 0
D104: C1 | E104: % SLT for F2F Physical Practical Component [Total F2F Physical Practical /( Total F2F Physical + Total F2F Online + Total Independent Learning) x 100)] | X104: =IFERROR(SUM(O60:O79)/X99*100,"") -> 0
D105: C2 | E105: % SLT for F2F Online Practical Component [Total F2F Online Practical / (Total F2F Physical + Total F2F Online + Total Independent Learning) x 100] | X105: =IFERROR(SUM(S60:S79)/X99*100,"") -> 0
Z106: =IFERROR(X102+X104,"") -> 100
D107: Please tick (√) if this course is Industrial Training/ Clinical Placement/ Practicum using 50% of Effective Learning Time (ELT)
D108: Note:
D109: * Indicate the CLO based on the CLO's numbering in Item 8
D110: ** For ODL programme: Courses with mandatory practical requiremnets imposed by the programme standards or any related standards can be exempted from complying to the minimum 80% ODL delivery rule in the SLT.
B112: 11 | C112: Identify special requirement or resources to deliver the course (e.g., software, nursery, computer lab, simulation room etc) | K112: NIL
B114: 12 | C114: References (include required and further readings, and should be the most current) | K114: Main Reference: Hisrich, R. D., Peters, M. P., & Sheperd, D. A. (2020). Entrepreneurship. 11th ed. New York: McGraw-Hill Education. Supplementary Reference: 1. Williams. S. (2022). Financial Times Guide to Business Start Up 2021-2023. 32nd ed. Pearson. 2. Barringer, B. R., & Ireland, R. D. (2019). Entrepreneurship: Successfully Launching New Venture. 6th Edition. Pearson. Journals: 1. Journal of Entrepreneurship and Business (http://journal.umk.edu.my/index.php/jeb/index) 2. ASEAN Entrepreneurship Journal (https://aej.uitm.edu.my/index.php)
B116: 13 | C116: Other additional information (if applicable) | K116: NIL
C119: Note: Number of PLO indicated is purely for illustration purposes only and the number is subjected to the curriculum design.

Sheet OBM3229
B2: Back To FORM @ TEMPLATE
AI3: √
B5: 1 | C5: Course Name: | F5: E-commerce | AI5: Semester
C6: Course Code: | F6: OBM3229 | AI6: 1
C7: Course Classification: | F7: Major (core) | AI7: 2
B8: 2 | C8: Synopsis: | F8: Students will learn how e-commerce is being used in today’s business environment. This module will give thought-provoking introduction to e-commerce focusing on key concepts and the latest empirical and financial data. It will also illustrate how e-commerce is altering business practices and driving shifts in the global economy. It will comprise of up-to-date coverage of privacy and piracy, government surveillance, cyberwar, fintech, social local-mobile marketing, internet sales taxes, and intellectual property. | AI8: 3
B9: =B8+1 -> 3 | C9: Name(s) of Academic Staff: | F9: 1 | G9: Sujatha Balakrishna
F10: 2 | AI10: Year Offered
F11: 3 | AI11: 1
B12: =B9+1 -> 4 | C12: Semester and Year offered: | F12: Year Offered | I12: 2 | J12: Semester | L12: 1 | M12: Remarks: | AI12: 2
B13: =B12+1 -> 5 | C13: Credit Value: | F13: =IF(X107 ="√",INT(X99/80),INT(X99/40)) -> 3 | AI13: 3
B14: 6 | C14: Pre-requisite/ co-requisite (if any): | F14: OEC3162 - Essentials of Information Skills | AI14: 4
AI15: 5
B16: 7 | C16: Course Learning Outcomes (CLO) | F16: CLO1 | H16: Recognize the evolution of E-commerce (C3, PLO2) | AI16: 6
F17: CLO2 | H17: Apply the tools and technologies in the rapidly changing e-Commerce environment (C4, PLO7) | AI17: 7
F18: CLO3 | H18: Communicate the impact of E-commerce has on business models and organizations. (A2, PLO11) | AI18: 8
AI20: Compulsory
AI21: Major (core)
AI22: Minor
AI23: Elective (core)
AI24: Elective (open/free)
B25: 8 | C25: Mapping of the Course Learning Outcomes to the Programme Learning Outcomes, Teaching Methods and Assessment Methods
D27: Course Learning Outcomes | F27: Programme Learning Outcomes (PLO) | R27: Teaching Methods | W27: Assessment Methods
F28: PLO 1 | G28: PLO 2 | H28: PLO 3 | I28: PLO 4 | J28: PLO 5 | K28: PLO 6 | L28: PLO 7 | M28: PLO 8 | N28: PLO 9 | O28: PLO 10 | P28: PLO 11
D29: =IF(ISBLANK(F16),"",F16) -> CLO1 | G29: √ | R29: Synchronous Tutorial Sessions (student centered facilitation) | W29: Final exam / test/ individual assignment
D30: CLO2 | L30: √ | R30: Synchronous Tutorial Sessions (student centered facilitation) | W30: Individual assignment, Group assignmnt
D31: CLO3 | P31: √ | R31: Synchronous Tutorial Sessions (student centered facilitation) | W31: Individual assignment, final exam
AI36: Cognitive skills
D37: Mapping with MQF Cluster of Learning Outcomes | G37: C1 | L37: C3D | P37: C5 | AI37: Interpersonal skills
AI38: Communication Skills
AI39: Digital Skills
AI40: Numeracy Skills
D41: Indicate the primary causal link between the CLO and PLO by ticking '√' in the appropriate box. | AI41: Leadership, Autonomy and Responsibility
D42: C1 = Knowledge & Understanding, C2 = Cognitive Skills, C3A = Practical Skills, C3B = Interpersonal Skills, C3C = Communication Skills, C3D = Digital Skills, | AI42: Personal Skills
D43: C3E = Numeracy Skills, C3F = Leadership, Autonomy & Responsibility, C4A = Personal Skills, C4B = Entrepreneurial Skills, C5 = Ethics & Professionalism | AI43: Entrepreneurial Skills
AI44: Ethics and Professionalism
B45: 9 | C45: Transferable Skills (if applicable)
C46: (Skills learned in the course of study which can be useful and utilized in other settings) | I46: 1 | J46: Ethics and Professionalism | AI46: C1
I47: 2 | J47: Leadership, Autonomy and Responsibility | AI47: C2
I48: 3 | J48: Digital Skills | AI48: C3A
I49: Open-ended response (if any) | AI49: C3B
I50: 4 | AI50: C3C
AI51: C3D
AB52: ` | AI52: C3E
B53: 10 | C53: Distribution of Student Learning Time (SLT) | AI53: C3F
C54: Note: This SLT calculation is designed for home grown programme only. | AI54: C4A
AI55: C4B
D56: Course Content Outline and Subtopics | K56: CLO* | M56: Learning and Teaching Activities** | X56: Total SLT | AI56: C5
M57: Face-to-Face (F2F) | U57: NF2F Independent Learning (Asynchronous)
M58: Physical | Q58: Online/ Technology-mediated (Synchronous)
M59: L | N59: T | O59: P | P59: O | Q59: L | R59: T | S59: P | T59: O
D60: 1 | E60: The Revolution is just beginning (Part 1) - Types of E-commerce | K60: CLO1 | R60: 1 | U60: 5
D61: 2 | E61: The Revolution is just beginning (Part 2) - Types of E-commerce | K61: CLO1 | R61: 1 | U61: 5
D62: 3 | E62: E-commerce Business Models and Concepts - Major B2C and B2B business models - How E-commerce Changes Business: Strategy, Structure, and Process | K62: CLO1 | R62: 1 | U62: 5
D63: 4 | E63: The Internet, Web, and Mobile Platform - The internet : Technology Background - The Internet infrastructure - Internet and the Web - Mobile app | K63: CLO2 | R63: 1 | U63: 5
D64: 5 | E64: Building an E-commerce Presence: Websites, Mobile Sites, and Apps - Choosing software and hardware - Other E-commerce site tools - Developing mobile presence | K64: CLO2 | R64: 1 | U64: 5
D65: 6 | E65: E-commerce Security and Payment Systems - Security Threats - Management Policies, Business Procedures, and Public Laws - E-commerce payment systems | K65: CLO2 | R65: 1 | U65: 5
D66: 7 | E66: E-commerce Marketing and Advertising Concepts - Internat audience and consumer behaviour - Internet Marketing Technologies - Understanding the Costs and Benefits of Online Marketing Communications | K66: CLO2 | R66: 1 | U66: 5
D67: 8 | E67: Social, Mobile, and Local Marketing - Social marketing process - Basic mobile marketing features - Local and location based mobile marketing | K67: CLO3 | R67: 1 | U67: 5
D68: 9 | E68: Ethical, Social, and Political Issues in E-commerce - Privacy anf information rights - Intellectual property rights - Governance, public safety and welfare | K68: CLO3 | R68: 1 | U68: 5
D69: 10 | E69: Online Retail and Services - E-tailing business models - Online financial services e.g fintech - Online travel and career services | K69: CLO3 | R69: 1 | U69: 5
D70: =D69+1 -> 11 | E70: Online Content and Media - Online publishing industry - The online entertainment industry | K70: CLO3 | R70: 1 | V70: 5
D71: 12 | E71: Social Networks, Auctions, and Portals - Social networks and online communities - Online auctions - E-commerce portals | K71: CLO3 | R71: 1 | V71: 5
D72: 13 | E72: B2B E-commerce: Supply Chain Management and Collaborative Commerce (Part 1) - The Procurement Process and Supply Chains - Trends in Supply Chain Management and Collaborative Commerce - Net Marketplaces: The Selling Side of B2B | K72: CLO3 | R72: 1 | V72: 5
D73: 14 | E73: B2B E-commerce: Supply Chain Management and Collaborative Commerce (Part 2) - The Procurement Process and Supply Chains - Trends in Supply Chain Management and Collaborative Commerce - Net Marketplaces: The Selling Side of B2B | K73: CLO3 | R73: 1 | V73: 5
D74: 15
D75: 16
D76: 17
D77: 18
D78: 19
D79: 20
D80: SUB-TOTAL SLT: | X80: =SUM(M60:P79)+SUM(Q60:T79)+SUM(U60:W79) -> 84
D81: Continous Assessement | K81: % | M81: Face-to-Face (F2F) | U81: NF2F Independent Learning for Assessment (Asynchronous)
M82: Physical | Q82: Online/ Technology-mediated (Synchronous)
D83: 1 | E83: Individual assignment/test | K83: 20 | U83: 7.2
D84: 2 | E84: Individual assignment/test | K84: 20 | U84: 7.2
D85: 3 | E85: Group assignment / Presentation | K85: 30 | Q85: 0.5 | U85: 10.3
D86: 4
D87: 5
D88: SUB-TOTAL SLT: | X88: =SUM(M83:W87) -> 25.2
D89: Final Assessement | K89: % | M89: Face-to-Face (F2F) | U89: NF2F Independent Learning for Assessment (Asynchronous)
M90: Physical | Q90: Online/ Technology-mediated (Synchronous)
D91: 1 | E91: Final exam | K91: 30 | Q91: 3 | U91: 7.8
D92: 2
D93: 3
D94: 4
D95: 5
D96: SUB-TOTAL SLT: | X96: =SUM(M91:W95) -> 10.8
D98: SLT for Assessment: | X98: =X88+X96 -> 36
D99: GRAND TOTAL SLT: | X99: =X98+X80 -> 120
D100: A | E100: % SLT for F2F Physical Component: [Total F2F Physical /(Total F2F Physical + Total F2F Online + Total Independent Learning) x 100)] | X100: =IFERROR(((SUM(M60:P79)+SUM(M83:P87)+SUM(M91:P95))/X99)* 100,"") -> 0
D102: B | E102: % SLT for Online & Independent Learning Component: [(Total F2F Online + Total Independent Learning) /( Total F2F Physical + Total F2F Online + Total Independent Learning) x 100] | X102: =IFERROR((SUM(Q60:W79)+SUM(Q83:W87) + SUM(Q91:W95))/X99 * 100,"") -> 100
D103: C | E103: % SLT for All Practical Component: [% F2F Physical Practical + % F2F Online Practical] | X103: =IFERROR(X104+X105,"") -> 0
D104: C1 | E104: % SLT for F2F Physical Practical Component [Total F2F Physical Practical /( Total F2F Physical + Total F2F Online + Total Independent Learning) x 100)] | X104: =IFERROR(SUM(O60:O79)/X99*100,"") -> 0
D105: C2 | E105: % SLT for F2F Online Practical Component [Total F2F Online Practical / (Total F2F Physical + Total F2F Online + Total Independent Learning) x 100] | X105: =IFERROR(SUM(S60:S79)/X99*100,"") -> 0
Z106: =IFERROR(X102+X104,"") -> 100
D107: Please tick (√) if this course is Industrial Training/ Clinical Placement/ Practicum using 50% of Effective Learning Time (ELT)
D108: Note:
D109: * Indicate the CLO based on the CLO's numbering in Item 8
D110: ** For ODL programme: Courses with mandatory practical requiremnets imposed by the programme standards or any related standards can be exempted from complying to the minimum 80% ODL delivery rule in the SLT.
B112: 11 | C112: Identify special requirement or resources to deliver the course (e.g., software, nursery, computer lab, simulation room etc) | K112: Computer lab
B114: 12 | C114: References (include required and further readings, and should be the most current) | K114: Laudon, K.C. & Trevor, C.G. (2022). E-Commerce 2021: Business, Technology, and Society (16th ed). Pearson Education Limited Additional readings: Online materials and e-books. Magazine : https://www.ecommerce-mag.com/
B116: 13 | C116: Other additional information (if applicable)
C119: Note: Number of PLO indicated is purely for illustration purposes only and the number is subjected to the curriculum design.

Sheet OEB3130
B2: Back To FORM @ TEMPLATE
AI3: √
B5: 1 | C5: Course Name: | F5: Quantitative Methods for Business | AI5: Semester
C6: Course Code: | F6: OEB3130 | AI6: 1
C7: Course Classification: | F7: Major (core) | AI7: 2
B8: 2 | C8: Synopsis: | F8: This course brings about the development of skills in quantitative analysis of data relevant to the modern business environment. Each skill addresses the theoretical concepts that are relevant to business and the use of the spread-sheet software. The student is able to recognise simple data analysis techniques and to use them appropriately in business applications. The topics to be covered in the course are on basic mathematics, approximation value, graph and functions, logarithm and exponential functions, mathematics of finance, matrices, probability, decision analysis, and network analysis. | AI8: 3
B9: =B8+1 -> 3 | C9: Name(s) of Academic Staff: | F9: 1 | G9: Norhana binti Mohd. Yusop
F10: 2 | AI10: Year Offered
F11: 3 | AI11: 1
B12: =B9+1 -> 4 | C12: Semester and Year offered: | F12: Year Offered | I12: 2 | J12: Semester | L12: 2 | M12: Remarks: | AI12: 2
B13: =B12+1 -> 5 | C13: Credit Value: | F13: =IF(X107 ="√",INT(X99/80),INT(X99/40)) -> 3 | AI13: 3
B14: 6 | C14: Pre-requisite/ co-requisite (if any): | AI14: 4
AI15: 5
B16: 7 | C16: Course Learning Outcomes (CLO) | F16: CLO1 | H16: use spreadsheet functions and foundational mathematical concepts (C3, PL01) | AI16: 6
F17: CLO2 | H17: solve calculations by using suitable methods. (C3, PL04) | AI17: 7
F18: CLO3 | H18: apply data analysis techniques to solve business problems. (C3, PL07) | AI18: 8
AI20: Compulsory
AI21: Major (core)
AI22: Minor
AI23: Elective (core)
AI24: Elective (open/free)
B25: 8 | C25: Mapping of the Course Learning Outcomes to the Programme Learning Outcomes, Teaching Methods and Assessment Methods
D27: Course Learning Outcomes | F27: Programme Learning Outcomes (PLO) | R27: Teaching Methods | W27: Assessment Methods
F28: PLO 1 | G28: PLO 2 | H28: PLO 3 | I28: PLO 4 | J28: PLO 5 | K28: PLO 6 | L28: PLO 7 | M28: PLO 8 | N28: PLO 9 | O28: PLO 10 | P28: PLO 11
D29: =IF(ISBLANK(F16),"",F16) -> CLO1 | F29: √ | R29: Synchronous Tutorial Sessions (student centered facilitation) | W29: Group assignment/ Test / Quizzes /Final Examination
D30: CLO2 | I30: √ | R30: Synchronous Tutorial Sessions (student centered facilitation) | W30: Group assignment/ Test / Quizzes /Final Examination
D31: CLO3 | L31: √ | R31: Synchronous Tutorial Sessions (student centered facilitation) | W31: Group assignment/ Test / Quizzes /Final Examination
AI36: Cognitive skills
D37: Mapping with MQF Cluster of Learning Outcomes | F37: C3A | AI37: Interpersonal skills
I38: C3E | AI38: Communication Skills
L39: C3A | AI39: Digital Skills
AI40: Numeracy Skills
D41: Indicate the primary causal link between the CLO and PLO by ticking '√' in the appropriate box. | AI41: Leadership, Autonomy and Responsibility
D42: C1 = Knowledge & Understanding, C2 = Cognitive Skills, C3A = Practical Skills, C3B = Interpersonal Skills, C3C = Communication Skills, C3D = Digital Skills, | AI42: Personal Skills
D43: C3E = Numeracy Skills, C3F = Leadership, Autonomy & Responsibility, C4A = Personal Skills, C4B = Entrepreneurial Skills, C5 = Ethics & Professionalism | AI43: Entrepreneurial Skills
AI44: Ethics and Professionalism
B45: 9 | C45: Transferable Skills (if applicable)
C46: (Skills learned in the course of study which can be useful and utilized in other settings) | I46: 1 | J46: Communication Skills | AI46: C1
I47: 2 | J47: Numeracy Skills | AI47: C2
I48: 3 | J48: Leadership, Autonomy and Responsibility | AI48: C3A
I49: Open-ended response (if any) | AI49: C3B
I50: 4 | AI50: C3C
AI51: C3D
AB52: ` | AI52: C3E
B53: 10 | C53: Distribution of Student Learning Time (SLT) | AI53: C3F
C54: Note: This SLT calculation is designed for home grown programme only. | AI54: C4A
AI55: C4B
D56: Course Content Outline and Subtopics | K56: CLO* | M56: Learning and Teaching Activities** | X56: Total SLT | AI56: C5
M57: Face-to-Face (F2F) | U57: NF2F Independent Learning (Asynchronous)
M58: Physical | Q58: Online/ Technology-mediated (Synchronous)
M59: L | N59: T | O59: P | P59: O | Q59: L | R59: T | S59: P | T59: O
D60: 1 | E60: 1. Mathematical concepts - Descriptive and Inferential statistics | K60: CL02 | R60: 1 | U60: 5
D61: 2 | E61: 2. Approximation and error | K61: CL02 | R61: 1 | U61: 5
D62: 3 | E62: 3. Graphs and equations - The straight line - Simultaneous equations | K62: CL01, CL03 | R62: 1 | U62: 5
D63: 4 | E63: 4. The quadratic curve - Logarithmic and exponential functions | K63: CL01,CLO2, CL03 | R63: 1 | U63: 5
D64: 5 | E64: 5. Financial Arithmetic - Compound and discounting - Present values and project evaluations - The net present values (NPV) method for project evaluation - The Internal rate of return (IRR) method for project evaluation | K64: CL01,CLO2, CL03 | R64: 1 | U64: 5
D65: 6 | E65: 6. Compound interest with increments - Sinking funds - Annuities - Excel application in computer labs | K65: CL01,CLO2, CL03 | R65: 1 | U65: 5
D66: 7 | E66: 7.Matrices - Matrix arithmetic - Addition and subtraction - Multiplication by a number - Multiplication of matrices | K66: CL01,CLO2, CL03 | R66: 1 | U66: 5
D67: 8 | E67: 8. Matrix properties - Equality - The transpose of a matrix - Matrix inverses | K67: CL01,CLO2, CL03 | R67: 1 | U67: 5
D68: 9 | E68: 9. Probability - Basic probability concepts - Probability rules | K68: CL01,CLO2, CL03 | R68: 1 | U68: 5
D69: 10 | E69: 10. Conditional probabilities and Bayes’ Theorem - Mathematical expectation | K69: CL01,CLO2, CL03 | R69: 1 | U69: 5
D70: =D69+1 -> 11 | E70: 11. Decision analysis - Structuring decisions involving uncertainties - Expected values | K70: CL01,CLO2, CL03 | L70: CL01,CLO2, CL03 | R70: 1 | U70: 5
D71: 12 | E71: 12. Decision tree analysis - Perfect information and further decision making criteria | K71: CL01,CLO2, CL03 | R71: 1 | U71: 5
D72: 13 | E72: 13. Network analysis - Network diagrams - Critical path analysis | K72: CL01,CLO2, CL03 | R72: 1 | U72: 5
D73: 14 | E73: 14. Completed projects in minimum time - Resource allocation - Uncertain activity times | K73: CL01,CLO2, CL03 | R73: 1 | U73: 5
D74: 15
D75: 16
D76: 17
D77: 18
D78: 19
D79: 20
D80: SUB-TOTAL SLT: | X80: =SUM(M60:P79)+SUM(Q60:T79)+SUM(U60:W79) -> 84
D81: Continous Assessement | K81: % | M81: Face-to-Face (F2F) | U81: NF2F Independent Learning for Assessment (Asynchronous)
M82: Physical | Q82: Online/ Technology-mediated (Synchronous)
D83: 1 | E83: Test 1 | K83: 25 | Q83: 0.5 | U83: 8.5
D84: 2 | E84: Test 2 | K84: 25 | Q84: 0.5 | U84: 8.5
D85: 3 | E85: Assignment | K85: 20 | U85: 7.2
D86: 4
D87: 5
D88: SUB-TOTAL SLT: | X88: =SUM(M83:W87) -> 25.2
D89: Final Assessement | K89: % | M89: Face-to-Face (F2F) | U89: NF2F Independent Learning for Assessment (Asynchronous)
M90: Physical | Q90: Online/ Technology-mediated (Synchronous)
D91: 1 | E91: Final Examination | K91: 30 | Q91: 3 | U91: 7.8
D92: 2
D93: 3
D94: 4
D95: 5
D96: SUB-TOTAL SLT: | X96: =SUM(M91:W95) -> 10.8
D98: SLT for Assessment: | X98: =X88+X96 -> 36
D99: GRAND TOTAL SLT: | X99: =X98+X80 -> 120
D100: A | E100: % SLT for F2F Physical Component: [Total F2F Physical /(Total F2F Physical + Total F2F Online + Total Independent Learning) x 100)] | X100: =IFERROR(((SUM(M60:P79)+SUM(M83:P87)+SUM(M91:P95))/X99)* 100,"") -> 0
D102: B | E102: % SLT for Online & Independent Learning Component: [(Total F2F Online + Total Independent Learning) /( Total F2F Physical + Total F2F Online + Total Independent Learning) x 100] | X102: =IFERROR((SUM(Q60:W79)+SUM(Q83:W87) + SUM(Q91:W95))/X99 * 100,"") -> 100
D103: C | E103: % SLT for All Practical Component: [% F2F Physical Practical + % F2F Online Practical] | X103: =IFERROR(X104+X105,"") -> 0
D104: C1 | E104: % SLT for F2F Physical Practical Component [Total F2F Physical Practical /( Total F2F Physical + Total F2F Online + Total Independent Learning) x 100)] | X104: =IFERROR(SUM(O60:O79)/X99*100,"") -> 0
D105: C2 | E105: % SLT for F2F Online Practical Component [Total F2F Online Practical / (Total F2F Physical + Total F2F Online + Total Independent Learning) x 100] | X105: =IFERROR(SUM(S60:S79)/X99*100,"") -> 0
Z106: =IFERROR(X102+X104,"") -> 100
D107: Please tick (√) if this course is Industrial Training/ Clinical Placement/ Practicum using 50% of Effective Learning Time (ELT)
D108: Note:
D109: * Indicate the CLO based on the CLO's numbering in Item 8
D110: ** For ODL programme: Courses with mandatory practical requiremnets imposed by the programme standards or any related standards can be exempted from complying to the minimum 80% ODL delivery rule in the SLT.
B112: 11 | C112: Identify special requirement or resources to deliver the course (e.g., software, nursery, computer lab, simulation room etc)
B114: 12 | C114: References (include required and further readings, and should be the most current) | K114: Barnett, R., Ziegler, M.R., & Karl, B. (2018) College Mathematics for Business, Economics, Life Sciences and Social Sciences, 14th edition, New York: Prentice Hall Inc. Jacques, 1. (2018) Mathematics for Economics and Business, 9th edition, New York: Prentice Hall Inc.
B116: 13 | C116: Other additional information (if applicable) | K116: Latest update: 28th October 2022
C119: Note: Number of PLO indicated is purely for illustration purposes only and the number is subjected to the curriculum design.

Sheet OBM3207
B2: Back To FORM @ TEMPLATE
AI3: √
B5: 1 | C5: Course Name: | F5: Human Resource Development | AI5: Semester
C6: Course Code: | F6: OBM3207 | AI6: 1
C7: Course Classification: | F7: Major (core) | AI7: 2
B8: 2 | C8: Synopsis: | F8: This module explores the topic of Human Resource Development from the perspective of training, development and learning practice, its underlying pedagogical assumptions and models and the impact of learning at work. The module tracks the development of HRD as a topic of study from its connection with the field of HRM, but primarily is concerned with the design, delivery and resourcing of training in organisations and its underpinning issues. | AI8: 3
B9: =B8+1 -> 3 | C9: Name(s) of Academic Staff: | F9: 1 | G9: A.Tanusia
F10: 2 | AI10: Year Offered
F11: 3 | AI11: 1
B12: =B9+1 -> 4 | C12: Semester and Year offered: | F12: Year Offered | I12: 2 | J12: Semester | L12: 2 | M12: Remarks: | AI12: 2
B13: =B12+1 -> 5 | C13: Credit Value: | F13: =IF(X107 ="√",INT(X99/80),INT(X99/40)) -> 3 | AI13: 3
B14: 6 | C14: Pre-requisite/ co-requisite (if any): | F14: OBM3200- Human Resource Management | AI14: 4
AI15: 5
B16: 7 | C16: Course Learning Outcomes (CLO) | F16: CLO1 | H16: Explain human resources development (HRD) and its theories, the difference between education, training, learning and the concept of the transfer of learning (C2, PLO1) | AI16: 6
F17: CLO2 | H17: Apply and evaluate a learning process starting with training needs analysis to assessment and evaluation process (P3, PLO3) | AI17: 7
F18: CLO3 | H18: Use the theoretical content of HRD in order to analyse the context of skills development, employability and education in organisations (A2, PLO5) | AI18: 8
AI20: Compulsory
AI21: Major (core)
AI22: Minor
AI23: Elective (core)
AI24: Elective (open/free)
B25: 8 | C25: Mapping of the Course Learning Outcomes to the Programme Learning Outcomes, Teaching Methods and Assessment Methods
D27: Course Learning Outcomes | F27: Programme Learning Outcomes (PLO) | R27: Teaching Methods | W27: Assessment Methods
F28: PLO 1 | G28: PLO 2 | H28: PLO 3 | I28: PLO 4 | J28: PLO 5 | K28: PLO 6 | L28: PLO 7 | M28: PLO 8 | N28: PLO 9 | O28: PLO 10 | P28: PLO 11
D29: =IF(ISBLANK(F16),"",F16) -> CLO1 | F29: √ | R29: Synchronous Tutorial Sessions (student centered facilitation) | W29: Assignment, Case Study, Journal Review,Final Exam
D30: CLO2 | H30: √ | R30: Synchronous Tutorial Sessions (student centered facilitation) | W30: Assignment, Case Study, Journal Review,Final Exam
D31: CLO3 | J31: √ | R31: Synchronous Tutorial Sessions (student centered facilitation) | W31: Assignment, Case Study, Journal Review,Final Exam
AI36: Cognitive skills
D37: Mapping with MQF Cluster of Learning Outcomes | F37: C1 | AI37: Interpersonal skills
H38: C3A | AI38: Communication Skills
J39: C3C | AI39: Digital Skills
AI40: Numeracy Skills
D41: Indicate the primary causal link between the CLO and PLO by ticking '√' in the appropriate box. | AI41: Leadership, Autonomy and Responsibility
D42: C1 = Knowledge & Understanding, C2 = Cognitive Skills, C3A = Practical Skills, C3B = Interpersonal Skills, C3C = Communication Skills, C3D = Digital Skills, | AI42: Personal Skills
D43: C3E = Numeracy Skills, C3F = Leadership, Autonomy & Responsibility, C4A = Personal Skills, C4B = Entrepreneurial Skills, C5 = Ethics & Professionalism | AI43: Entrepreneurial Skills
AI44: Ethics and Professionalism
B45: 9 | C45: Transferable Skills (if applicable)
C46: (Skills learned in the course of study which can be useful and utilized in other settings) | I46: 1 | AI46: C1
I47: 2 | AI47: C2
I48: 3 | J48: Communication Skills | AI48: C3A
I49: Open-ended response (if any) | AI49: C3B
I50: 4 | J50: Knowledge for PLO1 and Practical Skills for PLO3 | AI50: C3C
AI51: C3D
AB52: ` | AI52: C3E
B53: 10 | C53: Distribution of Student Learning Time (SLT) | AI53: C3F
C54: Note: This SLT calculation is designed for home grown programme only. | AI54: C4A
AI55: C4B
D56: Course Content Outline and Subtopics | K56: CLO* | M56: Learning and Teaching Activities** | X56: Total SLT | AI56: C5
M57: Face-to-Face (F2F) | U57: NF2F Independent Learning (Asynchronous)
M58: Physical | Q58: Online/ Technology-mediated (Synchronous)
M59: L | N59: T | O59: P | P59: O | Q59: L | R59: T | S59: P | T59: O
D60: 1 | E60: Introduction to Human Resource Development (HRD) • Relate development of HRD • Identify & describe major HRD functions • Recognize various competencies of an HRD professional • Identify major phases of HRD process | K60: CLO1 | R60: 1 | U60: 5
D61: 2 | E61: Adult Learning Theory and Workplace Learning • Define andragogy and pedagogy. • Describe principle and characteristics of adult learners. • Define learning and list at least three learning principles • Describe the three broad categories of issues that should be considered to maximize learning • Identify and discuss the factors that affect the transfer of training, and how these can be used to maximize learning | K61: CLO1 | R61: 1 | U61: 5
D62: 3 | E62: Assessing Human Resource Development Needs • Reasons for conducting a needs assessment • Purpose of conducting a strategic/organizational analysis • Know the five steps that can be used to conduct a task analysis | K62: CLO2 | R62: 1 | U62: 5
D63: 4 | E63: Designing Effective Human Resource Development Programs (1) • Write training objectives for a specific program • Identify several sources where HRD programs could be obtained | K63: CLO2 | R63: 1 | U63: 5
D64: 5 | E64: Designing Effective Human Resource Development Programs (2) • Compare various types of training materials • Point out some of the constraints to scheduling HRD programs | K64: CLO2 | R64: 1 | U64: 5
D65: 6 | E65: Implementing Human Resource Development Programs (1) • Describe three broad approaches to training delivery and the advantages and disadvantages of each approach • Describe five primary categories of classroom training and the advantages and disadvantages of each one | K65: CLO2 | R65: 1 | U65: 5
D66: 7 | E66: Implementing Human Resource Development Programs (2) • Describe the advantages and disadvantages of self-paced training approaches to training delivery • Determine when various training techniques are more or less effective in different situations | K66: CLO2 | R66: 1 | U66: 5
D67: 8 | E67: Evaluating Human Resource Development Programs • Define evaluation and explain its role in HRD • Compare different frameworks for HRD evaluation • Discuss the various types of evaluation information available and compare the methods of data collection | K67: CLO2 | R67: 1 | U67: 5
D68: 9 | E68: Employee Skills • Identify and describe basic workplace competencies | K68: CLO3 | R68: 1 | U68: 5
D69: 10 | E69: Technical Training • Describe a typical technical skills training program • Understand the professional development and education practices common in many organizations | K69: CLO3 | R69: 1 | U69: 5
D70: =D69+1 -> 11 | E70: Employee Socialization • Discuss the content and process of organizational socialization • Describe the realistic job preview approach to recruiting, and explain how it can benefit organizations and new employees | K70: CLO3 | R70: 1 | U70: 5
D71: 12 | E71: Employee Orientation • Learn the key elements necessary to design, implement, and evaluate an effective orientation program | K71: CLO3 | R71: 1 | U71: 5
D72: 13 | E72: Management Development • Define management development and describe the extent to which it is used in organizations • Explain specific ways that management development can be linked to organizational goals and strategies • Describe the components of two approaches frequently used in management development programs: – leadership training – behavior modeling training • Use the HRD process model to design, implement, and evaluate management development programs | K72: CLO3 | R72: 1 | U72: 5
D73: 14 | E73: Career Management And Development • Define the term career, and explain the roles involved in career management and development • Describe models of career development • Understand what is involved in designing a career management program | K73: CLO3 | R73: 1 | U73: 5
D74: 15
D75: 16
D76: 17
D77: 18
D78: 19
D79: 20
D80: SUB-TOTAL SLT: | X80: =SUM(M60:P79)+SUM(Q60:T79)+SUM(U60:W79) -> 84
D81: Continous Assessement | K81: % | M81: Face-to-Face (F2F) | U81: NF2F Independent Learning for Assessment (Asynchronous)
M82: Physical | Q82: Online/ Technology-mediated (Synchronous)
D83: 1 | E83: Assignment | K83: 40 | U83: 14.4
D84: 2 | E84: Case Study | K84: 10 | U84: 3.6
D85: 3 | E85: Journal Review | K85: 20 | U85: 7.2
D86: 4
D87: 5
D88: SUB-TOTAL SLT: | X88: =SUM(M83:W87) -> 25.2
D89: Final Assessement | K89: % | M89: Face-to-Face (F2F) | U89: NF2F Independent Learning for Assessment (Asynchronous)
M90: Physical | Q90: Online/ Technology-mediated (Synchronous)
D91: 1 | E91: Final Exam | K91: 30 | Q91: 3 | U91: 7.8
D92: 2
D93: 3
D94: 4
D95: 5
D96: SUB-TOTAL SLT: | X96: =SUM(M91:W95) -> 10.8
D98: SLT for Assessment: | X98: =X88+X96 -> 36
D99: GRAND TOTAL SLT: | X99: =X98+X80 -> 120
D100: A | E100: % SLT for F2F Physical Component: [Total F2F Physical /(Total F2F Physical + Total F2F Online + Total Independent Learning) x 100)] | X100: =IFERROR(((SUM(M60:P79)+SUM(M83:P87)+SUM(M91:P95))/X99)* 100,"") -> 0
D102: B | E102: % SLT for Online & Independent Learning Component: [(Total F2F Online + Total Independent Learning) /( Total F2F Physical + Total F2F Online + Total Independent Learning) x 100] | X102: =IFERROR((SUM(Q60:W79)+SUM(Q83:W87) + SUM(Q91:W95))/X99 * 100,"") -> 100
D103: C | E103: % SLT for All Practical Component: [% F2F Physical Practical + % F2F Online Practical] | X103: =IFERROR(X104+X105,"") -> 0
D104: C1 | E104: % SLT for F2F Physical Practical Component [Total F2F Physical Practical /( Total F2F Physical + Total F2F Online + Total Independent Learning) x 100)] | X104: =IFERROR(SUM(O60:O79)/X99*100,"") -> 0
D105: C2 | E105: % SLT for F2F Online Practical Component [Total F2F Online Practical / (Total F2F Physical + Total F2F Online + Total Independent Learning) x 100] | X105: =IFERROR(SUM(S60:S79)/X99*100,"") -> 0
Z106: =IFERROR(X102+X104,"") -> 100
D107: Please tick (√) if this course is Industrial Training/ Clinical Placement/ Practicum using 50% of Effective Learning Time (ELT)
D108: Note:
D109: * Indicate the CLO based on the CLO's numbering in Item 8
D110: ** For ODL programme: Courses with mandatory practical requiremnets imposed by the programme standards or any related standards can be exempted from complying to the minimum 80% ODL delivery rule in the SLT.
B112: 11 | C112: Identify special requirement or resources to deliver the course (e.g., software, nursery, computer lab, simulation room etc)
B114: 12 | C114: References (include required and further readings, and should be the most current) | K114: *John M. Werner. (2017). Human Resource Development: Talent Development, (7th ed.). Cengage. Additional Reference Text: • Raymond A. Noe. (2017). Employee Training and Development, (7th ed.). McGraw-Hill Education. • David McGuive. (2015). Human Resource Development, (2nd ed.). SAGE publication. Journals: • https://journals.sagepub.com/home/hrd • http://hrdjournal.buu.ac.th/
B116: 13 | C116: Other additional information (if applicable)
C119: Note: Number of PLO indicated is purely for illustration purposes only and the number is subjected to the curriculum design.

Sheet OBM3213
B2: Table 4: Summary of Course Information
AI3: √
B5: 1 | C5: Course Name: | F5: Marketing Management | AI5: Semester
C6: Course Code: | F6: OBM3213 | AI6: 1
C7: Course Classification: | F7: Major (core) | AI7: 2
B8: 2 | C8: Synopsis: | F8: Covers the need to appreciate good interactive marketing techniques and effective marketing communication to adapt products to changing market and competitive conditions and fine-tuning pricing decisions in response to, as well as, to affect, competitive conditions by identify and integrate key marketing concepts such as the marketing mix. | AI8: 3
B9: =B8+1 -> 3 | C9: Name(s) of Academic Staff: | F9: 1 | G9: Dr. Santhi Govindan
F10: 2 | AI10: Year Offered
F11: 3 | AI11: 1
B12: =B9+1 -> 4 | C12: Semester and Year offered: | F12: Year Offered | I12: 2 | J12: Semester | L12: 2 | M12: Remarks: | AI12: 2
B13: =B12+1 -> 5 | C13: Credit Value: | F13: =IF(X107 ="√",INT(X99/80),INT(X99/40)) -> 3 | AI13: 3
B14: 6 | C14: Pre-requisite/ co-requisite (if any): | F14: BM3100- Principles of Marketing | AI14: 4
AI15: 5
B16: 7 | C16: Course Learning Outcomes (CLO) | F16: CLO1 | H16: Apply marketing techniques to adapt products in changing market and competitive conditions. (C2, PLO1) | AI16: 6
F17: CLO2 | H17: Outline strategic solutions and implement effective tactical responses to market environments. (C4, PLO2) | AI17: 7
F18: CLO3 | H18: Develop marketing plan to identify business opportunities for organization. (C5, PLO10) | AI18: 8
AI20: Compulsory
AI21: Major (core)
AI22: Minor
AI23: Elective (core)
AI24: Elective (open/free)
B25: 8 | C25: Mapping of the Course Learning Outcomes to the Programme Learning Outcomes, Teaching Methods and Assessment Methods
D27: Course Learning Outcomes | F27: Programme Learning Outcomes (PLO) | R27: Teaching Methods | W27: Assessment Methods
F28: PLO 1 | G28: PLO 2 | H28: PLO 3 | I28: PLO 4 | J28: PLO 5 | K28: PLO 6 | L28: PLO 7 | M28: PLO 8 | N28: PLO 9 | O28: PLO 10 | P28: PLO 11
D29: =IF(ISBLANK(F16),"",F16) -> CLO1 | F29: √ | R29: Synchronous Tutorial Sessions (student centered facilitation) | W29: Case Study
D30: CLO2 | G30: √ | R30: Synchronous Tutorial Sessions (student centered facilitation) | W30: Final Examination
D31: CLO3 | O31: √ | R31: Synchronous Tutorial Sessions (student centered facilitation) | W31: Presentation & Assignment (Marketing Plan)
AI36: Cognitive skills
D37: Mapping with MQF Cluster of Learning Outcomes | F37: C1 | G37: C2 | O37: C4B | AI37: Interpersonal skills
AI38: Communication Skills
AI39: Digital Skills
AI40: Numeracy Skills
D41: Indicate the primary causal link between the CLO and PLO by ticking '√' in the appropriate box. | AI41: Leadership, Autonomy and Responsibility
D42: C1 = Knowledge & Understanding, C2 = Cognitive Skills, C3A = Practical Skills, C3B = Interpersonal Skills, C3C = Communication Skills, C3D = Digital Skills, | AI42: Personal Skills
D43: C3E = Numeracy Skills, C3F = Leadership, Autonomy & Responsibility, C4A = Personal Skills, C4B = Entrepreneurial Skills, C5 = Ethics & Professionalism | AI43: Entrepreneurial Skills
AI44: Ethics and Professionalism
B45: 9 | C45: Transferable Skills (if applicable)
C46: (Skills learned in the course of study which can be useful and utilized in other settings) | I46: 1 | J46: Cognitive skills | AI46: C1
I47: 2 | J47: Communication Skills | AI47: C2
I48: 3 | J48: Interpersonal skills | AI48: C3A
I49: Open-ended response (if any) | AI49: C3B
I50: 4 | AI50: C3C
AI51: C3D
AB52: ` | AI52: C3E
B53: 10 | C53: Distribution of Student Learning Time (SLT) | AI53: C3F
C54: Note: This SLT calculation is designed for home grown programme only. | AI54: C4A
AI55: C4B
D56: Course Content Outline and Subtopics | K56: CLO* | M56: Learning and Teaching Activities** | X56: Total SLT | AI56: C5
M57: Face-to-Face (F2F) | U57: NF2F Independent Learning (Asynchronous)
M58: Physical | Q58: Online/ Technology-mediated (Synchronous)
M59: L | N59: T | O59: P | P59: O | Q59: L | R59: T | S59: P | T59: O
D60: 1 | E60: Introduction to Marketing Management:-elements of marketing strategy -customer relationship management | K60: CLO1 | R60: 1 | U60: 5
D61: 2 | E61: Developing Marketing Strategies and Plans- Part 1: the ways in which marketing can be organised and managed within the organisation | K61: CLO1 | R61: 1 | U61: 5
D62: 3 | E62: Developing Marketing Strategies and Plans- Part 2:-marketing performance measures and their application | K62: CLO1 | R62: 1 | U62: 5
D63: 4 | E63: Marketing Research: -gathering information, analysing information, forecasting demand | K63: CLO2 | R63: 1 | U63: 5
D64: 5 | E64: Analyzing Consumer Markets:-identifying market segments and target, analyzing consumer markets | K64: CLO2 | R64: 1 | U64: 5
D65: 6 | E65: Business Market Analysis: analyzing business markets, buying centre, B2B buying process | K65: CLO2 | R65: 1 | U65: 5
D66: 7 | E66: Product Strategy- Part 1:-definition of product -branding | K66: CLO3 | R66: 1 | U66: 5
D67: 8 | E67: Product Strategy- Part 2: -concept of the product lifecycle and its implications for marketing planning and strategy | K67: CLO3 | R67: 1 | U67: 5
D68: 9 | E68: Pricing Strategy- Part 1: -concept of price and its contribution to positioning | K68: CLO3 | R68: 1 | U68: 5
D69: 10 | E69: Pricing Strategy- Part 2: -pricing strategies and their marketing implications | K69: CLO3 | R69: 1 | U69: 5
D70: =D69+1 -> 11 | E70: Distribution Channel Management- Part 1:-various alternative channels of distribution | K70: CLO3 | R70: 1 | U70: 5
D71: 12 | E71: Distribution Channel Management- Part 2: -role of intermediaries in fulfilling marketing objectives -market coverage strategies and their appropriate use | K71: CLO3 | R71: 1 | U71: 5
D72: 13 | E72: Intergrated Marketing Communication- Part 1: -define the elements of the promotional mix -role and importance of an integrated marketing communications strategy | K72: CLO3 | R72: 1 | U72: 5
D73: 14 | E73: Intergrated Marketing Communication- Part 2: -advertising -sales promotion -personal selling -direct selling -public relation -interactive marketing | K73: CLO3 | R73: 1 | U73: 5
D74: 15
D75: 16
D76: 17
D77: 18
D78: 19
D79: 20
D80: SUB-TOTAL SLT: | X80: =SUM(M60:P79)+SUM(Q60:T79)+SUM(U60:W79) -> 84
D81: Continous Assessement | K81: % | M81: Face-to-Face (F2F) | U81: NF2F Independent Learning for Assessment (Asynchronous)
M82: Physical | Q82: Online/ Technology-mediated (Synchronous)
D83: 1 | E83: Case Study | K83: 30 | U83: 10.8
D84: 2 | E84: Assignment: Marketing Plan | K84: 30 | U84: 10.8
D85: 3 | E85: Presentation | K85: 10 | Q85: 0.5 | U85: 3.1
D86: 4
D87: 5
D88: SUB-TOTAL SLT: | X88: =SUM(M83:W87) -> 25.2
D89: Final Assessement | K89: % | M89: Face-to-Face (F2F) | U89: NF2F Independent Learning for Assessment (Asynchronous)
M90: Physical | Q90: Online/ Technology-mediated (Synchronous)
D91: 1 | E91: Final Exam | K91: 30 | Q91: 3 | U91: 7.8
D92: 2
D93: 3
D94: 4
D95: 5
D96: SUB-TOTAL SLT: | X96: =SUM(M91:W95) -> 10.8
D98: SLT for Assessment: | X98: =X88+X96 -> 36
D99: GRAND TOTAL SLT: | X99: =X98+X80 -> 120
D100: A | E100: % SLT for F2F Physical Component: [Total F2F Physical /(Total F2F Physical + Total F2F Online + Total Independent Learning) x 100)] | X100: =IFERROR(((SUM(M60:P79)+SUM(M83:P87)+SUM(M91:P95))/X99)* 100,"") -> 0
D102: B | E102: % SLT for Online & Independent Learning Component: [(Total F2F Online + Total Independent Learning) /( Total F2F Physical + Total F2F Online + Total Independent Learning) x 100] | X102: =IFERROR((SUM(Q60:W79)+SUM(Q83:W87) + SUM(Q91:W95))/X99 * 100,"") -> 100
D103: C | E103: % SLT for All Practical Component: [% F2F Physical Practical + % F2F Online Practical] | X103: =IFERROR(X104+X105,"") -> 0
D104: C1 | E104: % SLT for F2F Physical Practical Component [Total F2F Physical Practical /( Total F2F Physical + Total F2F Online + Total Independent Learning) x 100)] | X104: =IFERROR(SUM(O60:O79)/X99*100,"") -> 0
D105: C2 | E105: % SLT for F2F Online Practical Component [Total F2F Online Practical / (Total F2F Physical + Total F2F Online + Total Independent Learning) x 100] | X105: =IFERROR(SUM(S60:S79)/X99*100,"") -> 0
Z106: =IFERROR(X102+X104,"") -> 100
D107: Please tick (√) if this course is Industrial Training/ Clinical Placement/ Practicum using 50% of Effective Learning Time (ELT)
D108: Note:
D109: * Indicate the CLO based on the CLO's numbering in Item 8
D110: ** For ODL programme: Courses with mandatory practical requiremnets imposed by the programme standards or any related standards can be exempted from complying to the minimum 80% ODL delivery rule in the SLT.
B112: 11 | C112: Identify special requirement or resources to deliver the course (e.g., software, nursery, computer lab, simulation room etc)
B114: 12 | C114: References (include required and further readings, and should be the most current) | K114: Main Reference: 1.Kotler, P. & Keller, K. (2021). Marketing Management. (16th ed). New York: Pearson. Additional Reference: 1.Kotler, P. & Keller, K.L. (2011). Marketing Management. New Jersey: Pearson Prentice Hall. 2.Marshall, G. W., & Johnston, M. W. (2011). Essentials of Marketing Management. New York, NY: McGraw-Hill/Irwin. 3. Fowler, K., & Thomas, V. L. (2023). Influencer marketing: a scoping review and a look ahead. Journal of Marketing Management, 1-32. 4. Sari, M., Sakinah, L. N., & Manurung, R. A. (2023). Analysis Of Marketing Strategy Success In PT. Indofood. Settings International Journal of Economic Research and Financial Accounting (IJERFA), 1(2). 5. Chatterjee, S., Chaudhuri, R., Vrontis, D., & Kadić-Maglajlić, S. (2023). Adoption of AI integrated partner relationship management (AI-PRM) in B2B sales channels: Exploratory study. Industrial Marketing Management, 109, 164-173. 6. Sleep, S., Gala, P., & Harrison, D. E. (2023). Removing silos to enable data-driven decisions: The importance of marketing and IT knowledge, cooperation, and information quality. Journal of Business Research, 156, 113471.
B116: 13 | C116: Other additional information (if applicable)
C119: Note: Number of PLO indicated is purely for illustration purposes only and the number is subjected to the curriculum design.

Sheet OBM3216
B2: Back To FORM @ TEMPLATE
AI3: √
B5: 1 | C5: Course Name: | F5: Consumer Behavior | AI5: Semester
C6: Course Code: | F6: OBM3216 | AI6: 1
C7: Course Classification: | F7: Major (core) | AI7: 2
B8: 2 | C8: Synopsis: | F8: This subject helps the students to build a foundation to identify the activities included in consumer behaviour management and the methods consumer analysts use to observe, record, and analyze consumer reactions and trends. The purpose of this subject is to introduce to the students the consumer behaviour theories, develop their knowledge and exposure to the business environment. | AI8: 3
B9: =B8+1 -> 3 | C9: Name(s) of Academic Staff: | F9: 1 | G9: Dr. Siti Aishah Binti Hussin
F10: 2 | AI10: Year Offered
F11: 3 | AI11: 1
B12: =B9+1 -> 4 | C12: Semester and Year offered: | F12: Year Offered | I12: 2 | J12: Semester | L12: 2 | M12: Remarks: | AI12: 2
B13: =B12+1 -> 5 | C13: Credit Value: | F13: =IF(X103 ="√",INT(X95/80),INT(X95/40)) -> 3 | AI13: 3
B14: 6 | C14: Pre-requisite/ co-requisite (if any): | F14: OBM3100 - Principles of Marketing | AI14: 4
AI15: 5
B16: 7 | C16: Course Learning Outcomes (CLO) | F16: CLO1 | H16: Illustrate how consumer behaviour research is conducted and translated into practical knowledge (C2, PLO1) | AI16: 6
F17: CLO2 | H17: Demonstrate the effects of psychological, socio-cultural and demographic factors on the consumer decision process with their results (P4, PLO3) | AI17: 7
F18: CLO3 | H18: Analyze ethical issues related to consumer buying behavior (C4, PLO10) | AI18: 8
AI20: Compulsory
AI21: Major (core)
AI22: Minor
AI23: Elective (core)
AI24: Elective (open/free)
B25: 8 | C25: Mapping of the Course Learning Outcomes to the Programme Learning Outcomes, Teaching Methods and Assessment Methods
D27: Course Learning Outcomes | F27: Programme Learning Outcomes (PLO) | R27: Teaching Methods | W27: Assessment Methods
F28: PLO 1 | G28: PLO 2 | H28: PLO 3 | I28: PLO 4 | J28: PLO 5 | K28: PLO 6 | L28: PLO 7 | M28: PLO 8 | N28: PLO 9 | O28: PLO 10 | P28: PLO 11
D29: =IF(ISBLANK(F16),"",F16) -> CLO1 | F29: √ | R29: Synchronous Tutorial Sessions (student centered facilitation) | W29: Assignment, Final Exam
D30: CLO2 | H30: √ | R30: Synchronous Tutorial Sessions (student centered facilitation) | W30: Case Studies
D31: CLO3 | O31: √ | R31: Synchronous Tutorial Sessions (student centered facilitation) | W31: Project
AI36: Cognitive skills
D37: Mapping with MQF Cluster of Learning Outcomes | F37: C1 | AI37: Interpersonal skills
H38: C3A | AI38: Communication Skills
O39: C5 | AI39: Digital Skills
AI40: Numeracy Skills
D41: Indicate the primary causal link between the CLO and PLO by ticking '√' in the appropriate box. | AI41: Leadership, Autonomy and Responsibility
D42: C1 = Knowledge & Understanding, C2 = Cognitive Skills, C3A = Practical Skills, C3B = Interpersonal Skills, C3C = Communication Skills, C3D = Digital Skills, | AI42: Personal Skills
D43: C3E = Numeracy Skills, C3F = Leadership, Autonomy & Responsibility, C4A = Personal Skills, C4B = Entrepreneurial Skills, C5 = Ethics & Professionalism | AI43: Entrepreneurial Skills
AI44: Ethics and Professionalism
B45: 9 | C45: Transferable Skills (if applicable)
C46: (Skills learned in the course of study which can be useful and utilized in other settings) | I46: 1 | J46: Cognitive skills | AI46: C1
I47: 2 | J47: Personal Skills | AI47: C2
I48: 3 | J48: Ethics and Professionalism | AI48: C3A
I49: Open-ended response (if any) | AI49: C3B
I50: 4 | AI50: C3C
AI51: C3D
AB52: ` | AI52: C3E
B53: 10 | C53: Distribution of Student Learning Time (SLT) | AI53: C3F
C54: Note: This SLT calculation is designed for home grown programme only. | AI54: C4A
AI55: C4B
D56: Course Content Outline and Subtopics | K56: CLO* | M56: Learning and Teaching Activities** | X56: Total SLT | AI56: C5
M57: Face-to-Face (F2F) | U57: NF2F Independent Learning (Asynchronous)
M58: Physical | Q58: Online/ Technology-mediated (Synchronous)
M59: L | N59: T | O59: P | P59: O | Q59: L | R59: T | S59: P | T59: O
D60: 1 | E60: Introduction to consumer behavior: Importance of consumer behavior Consumer research Market analysis | K60: CLO1 | R60: 1 | U60: 5
D61: 2 | E61: Creating marketing strategies: Marketing planning Consumer analysis Marketing strategies | K61: CLO2 | R61: 1 | U61: 5
D62: 3 | E62: Consumer decision process: Stages in Consumer Decision Process Importance of CDP Application of CDP in marketing | K62: CLO3 | R62: 1 | U62: 5
D63: 4 | E63: Pre-purchase process: Need recognition Search Evaluation of alternatives | K63: CLO3 | R63: 1 | U63: 5
D64: 5 | E64: Purchase: Purchase process Individual factors Environmental factors | K64: CLO3 | R64: 1 | U64: 5
D65: 6 | E65: Post-purchase process: Consumption Post consumption evaluation | K65: CLO3 | R65: 1 | U65: 5
D66: 7 | E66: Demographic, psychographics and personality Part 1 Demographic factors Psychographics factors | K66: CLO2 | R66: 1 | U66: 5
D67: 8 | E67: Demographic, psychographics and personality Part 2 Personality factors | K67: CLO2 | R67: 1 | U67: 5
D68: 9 | E68: Consumer motivation Part 1 Importance of consumer motivation | K68: CLO2 | R68: 1 | U68: 5
D69: 10 | E69: Consumer motivation Part 2 Factors influence consumer motivation Increasing consumer motivation | K69: CLO2 | R69: 1 | U69: 5
D70: 11 | E70: Consumer knowledge Part 1 Product knowledge Consumption knowledge | K70: CLO1 | R70: 1 | V70: 5
D71: 12 | E71: Consumer knowledge Part 2 Persuasion knowledge | K71: CLO1 | R71: 1 | U71: 5
D72: 13 | E72: Consumer beliefs, feelings, attitudes and intentions Part 1 | K72: CLO2 | R72: 1 | U72: 5
D73: 14 | E73: Consumer beliefs, feelings, attitudes and intentions Part 2 | K73: CLO2 | R73: 1 | U73: 5
D76: SUB-TOTAL SLT: | X76: =SUM(M60:P75)+SUM(Q60:T75)+SUM(U60:W75) -> 84
D77: Continous Assessement | K77: % | M77: Face-to-Face (F2F) | U77: NF2F Independent Learning for Assessment (Asynchronous)
M78: Physical | Q78: Online/ Technology-mediated (Synchronous)
D79: 1 | E79: Assignment | K79: 20 | U79: 7.2
D80: 2 | E80: Case Studies | K80: 20 | U80: 7.2
D81: 3 | E81: Project | K81: 30 | U81: 10.8
D82: 4
D83: 5
D84: SUB-TOTAL SLT: | X84: =SUM(M79:W83) -> 25.2
D85: Final Assessement | K85: % | M85: Face-to-Face (F2F) | U85: NF2F Independent Learning for Assessment (Asynchronous)
M86: Physical | Q86: Online/ Technology-mediated (Synchronous)
D87: 1 | E87: Final Exam | K87: 30 | Q87: 3 | U87: 7.8
D88: 2
D89: 3
D90: 4
D91: 5
D92: SUB-TOTAL SLT: | X92: =SUM(M87:W91) -> 10.8
D94: SLT for Assessment: | X94: =X84+X92 -> 36
D95: GRAND TOTAL SLT: | X95: =X94+X76 -> 120
D96: A | E96: % SLT for F2F Physical Component: [Total F2F Physical /(Total F2F Physical + Total F2F Online + Total Independent Learning) x 100)] | X96: =IFERROR(((SUM(M60:P75)+SUM(M79:P83)+SUM(M87:P91))/X95)* 100,"") -> 0
D98: B | E98: % SLT for Online & Independent Learning Component: [(Total F2F Online + Total Independent Learning) /( Total F2F Physical + Total F2F Online + Total Independent Learning) x 100] | X98: =IFERROR((SUM(Q60:W75)+SUM(Q79:W83) + SUM(Q87:W91))/X95 * 100,"") -> 100
D99: C | E99: % SLT for All Practical Component: [% F2F Physical Practical + % F2F Online Practical] | X99: =IFERROR(X100+X101,"") -> 0
D100: C1 | E100: % SLT for F2F Physical Practical Component [Total F2F Physical Practical /( Total F2F Physical + Total F2F Online + Total Independent Learning) x 100)] | X100: =IFERROR(SUM(O60:O75)/X95 *100,"") -> 0
D101: C2 | E101: % SLT for F2F Online Practical Component [Total F2F Online Practical / (Total F2F Physical + Total F2F Online + Total Independent Learning) x 100] | X101: =IFERROR(SUM(S60:S75)/X95 *100,"") -> 0
Z102: =IFERROR(X98+X100,"") -> 100
D103: Please tick (√) if this course is Industrial Training/ Clinical Placement/ Practicum using 50% of Effective Learning Time (ELT)
D104: Note:
D105: * Indicate the CLO based on the CLO's numbering in Item 8
D106: ** For ODL programme: Courses with mandatory practical requiremnets imposed by the programme standards or any related standards can be exempted from complying to the minimum 80% ODL delivery rule in the SLT.
B108: 11 | C108: Identify special requirement or resources to deliver the course (e.g., software, nursery, computer lab, simulation room etc) | K108: NIL
B110: 12 | C110: References (include required and further readings, and should be the most current) | K110: Main Reference: Blackwell, R., Miniard, P. & James, F. (2018). Consumer Behavior, US: Pearson. Additional Reference: Wayne D., Deborah, J. & Rik, P. (2018). Consumer Behavior, US: Cengage. Wayne D. Hoyer, Deborah J. MacInnis, Rik Pieters (2018). Consumer Behavior, (7th ed), Cengage Learning. David Mothersbaugh & Del. I. Hawkins (2016). Consumer Behavior: Building Marketing Strategy, (13th ed). McGraw-Hill. Journal: 1. Journal of Consumer Behavior - An International Research Review (https://onlinelibrary.wiley.com/journal/14791838) 2. Consumer Behavior Studies Journal (https://cbs.uok.ac.ir/?lang=en)
B112: 13 | C112: Other additional information (if applicable) | K112: NIL
C115: Note: Number of PLO indicated is purely for illustration purposes only and the number is subjected to the curriculum design.

Sheet OBM3328
B2: Table 4: Summary of Course Information
AI3: √
B5: 1 | C5: Course Name: | F5: Business Research Methods | AI5: Semester
C6: Course Code: | F6: OBM3328 | AI6: 1
C7: Course Classification: | F7: Major (core) | AI7: 2
B8: 2 | C8: Synopsis: | F8: Research Method course provides a comprehensive introduction to research proposal writing, research methodologies, and foundational research theories and practices. Students in the course learn about the cyclical nature of applied research and the iterative process of research writing. The course teaches students how to write a proposal, engage in independent studies, and work collaboratively with a mentor mentee relationship with a faculty advisor. The curriculum is sequential, helping students to identify a study topic, formulate inquiry questions, organise a literature review, and select appropriate research designs and methodologies. | AI8: 3
B9: =B8+1 -> 3 | C9: Name(s) of Academic Staff: | F9: 1 | G9: Dr. Gan Joo Kong
F10: 2 | G10: Dr. Chandramalar Munusami | AI10: Year Offered
F11: 3 | AI11: 1
B12: =B9+1 -> 4 | C12: Semester and Year offered: | F12: Year Offered | I12: 2 | J12: Semester | L12: 2 | M12: Remarks: | AI12: 2
B13: =B12+1 -> 5 | C13: Credit Value: | F13: =IF(X107 ="√",INT(X99/80),INT(X99/40)) -> 3 | AI13: 3
B14: 6 | C14: Pre-requisite/ co-requisite (if any): | F14: OBM3102 - Foundation of Business | AI14: 4
AI15: 5
B16: 7 | C16: Course Learning Outcomes (CLO) | F16: CLO1 | H16: Explain the activities involved in the conduct of asuccessful research study (C2, PLO1) | AI16: 6
F17: CLO2 | H17: Discuss the research design in relation to a research strategy in a research approach. (C2, PLO2) | AI17: 7
F18: CLO3 | H18: Distinguish the relevant research approaches in deciding to carry a research study.(C4, PLO7) | AI18: 8
AI20: Compulsory
AI21: Major (core)
AI22: Minor
AI23: Elective (core)
AI24: Elective (open/free)
B25: 8 | C25: Mapping of the Course Learning Outcomes to the Programme Learning Outcomes, Teaching Methods and Assessment Methods
D27: Course Learning Outcomes | F27: Programme Learning Outcomes (PLO) | R27: Teaching Methods | W27: Assessment Methods
F28: PLO 1 | G28: PLO 2 | H28: PLO 3 | I28: PLO 4 | J28: PLO 5 | K28: PLO 6 | L28: PLO 7 | M28: PLO 8 | N28: PLO 9 | O28: PLO 10 | P28: PLO 11
D29: =IF(ISBLANK(F16),"",F16) -> CLO1 | F29: √ | R29: Synchronous Tutorial Sessions (student centered facilitation) | W29: Mid-term test, quiz
D30: CLO2 | G30: √ | R30: Synchronous Tutorial Sessions (student centered facilitation) | W30: individual assessments
D31: CLO3 | L31: √ | R31: Synchronous Tutorial Sessions (student centered facilitation) | W31: group assessment & presentations
AI36: Cognitive skills
D37: Mapping with MQF Cluster of Learning Outcomes | F37: C1 | G37: C2 | AI37: Interpersonal skills
AI38: Communication Skills
L39: C3E | AI39: Digital Skills
AI40: Numeracy Skills
D41: Indicate the primary causal link between the CLO and PLO by ticking '√' in the appropriate box. | AI41: Leadership, Autonomy and Responsibility
D42: C1 = Knowledge & Understanding, C2 = Cognitive Skills, C3A = Practical Skills, C3B = Interpersonal Skills, C3C = Communication Skills, C3D = Digital Skills, | AI42: Personal Skills
D43: C3E = Numeracy Skills, C3F = Leadership, Autonomy & Responsibility, C4A = Personal Skills, C4B = Entrepreneurial Skills, C5 = Ethics & Professionalism | AI43: Entrepreneurial Skills
AI44: Ethics and Professionalism
B45: 9 | C45: Transferable Skills (if applicable)
C46: (Skills learned in the course of study which can be useful and utilized in other settings) | I46: 1 | AI46: C1
I47: 2 | J47: Cognitive skills | AI47: C2
I48: 3 | J48: Numeracy Skills | AI48: C3A
I49: Open-ended response (if any) | AI49: C3B
I50: 4 | J50: Knowledge for PLO1 | AI50: C3C
AI51: C3D
AB52: ` | AI52: C3E
B53: 10 | C53: Distribution of Student Learning Time (SLT) | AI53: C3F
C54: Note: This SLT calculation is designed for home grown programme only. | AI54: C4A
AI55: C4B
D56: Course Content Outline and Subtopics | K56: CLO* | M56: Learning and Teaching Activities** | X56: Total SLT | AI56: C5
M57: Face-to-Face (F2F) | U57: NF2F Independent Learning (Asynchronous)
M58: Physical | Q58: Online/ Technology-mediated (Synchronous)
M59: L | N59: T | O59: P | P59: O | Q59: L | R59: T | S59: P | T59: O
D60: 1 | E60: Development of a good research topic -Attributes of a good Research Topic -Refining Research Ideas -The Importance of Theory in writing Research Questions and Objectives | K60: 1 | R60: 1 | U60: 5
D61: 2 | E61: Conducting a literature review -Finding the parameters for the research study -The Purpose of Critical Review of the Literature -Benefits of literature review | K61: 1 | R61: 1 | U61: 5
D62: 3 | E62: Research approach and strategy; research design -The Research Process ‘Onion’ -Methodological choice -choosing a research approach -Recognising the nature (purpose) of your research design -Credibility of research findings | K62: 2 | R62: 1 | U62: 5
D63: 4 | E63: Theoretical framework and Hypothesis Development -Types of variables -Hypothesis Development | K63: 2 | R63: 1 | U63: 5
D64: 5 | E64: Negotiating access and ethics -Access to collect data -Strategies to gain access -Research Ethics | K64: 2 | R64: 1 | U64: 5
D65: 6 | E65: Sampling -sample size -margin of error -response rate -probability and non-probability samplings | K65: 2 | R65: 1 | U65: 5
D66: 7 | E66: Using secondary data -advanages and disadvantages -suitability, measurement bias & costs & benefits | K66: 2 | R66: 1 | U66: 5
D67: 8 | E67: Collecting primary data - Observation -Participant Observation -Researcher Roles in Participant Observation -Data collection and analysis in participant observation -Advantages and Disadvantages of participant observation | K67: 2 | R67: 1 | U67: 5
D68: 9 | E68: Collecting primary data through interview -Types of Interview -Data quality issues and how to overcome them -Usefulness of interview | K68: 2 | R68: 1 | U68: 5
D69: 10 | E69: Collecting primary data through questionnaires -Types of Questionnaire -Designing Individual Questions -Pilot Testing and Assessing Validity | K69: 2 | R69: 1 | U69: 5
D70: =D69+1 -> 11 | E70: Analysing quantitative data -Quantitative data -Preparing data for analysis -Exploring and Presenting Data | K70: 3 | R70: 1 | U70: 5
D71: 12 | E71: Analysing qualitative data -An overview of qualitative analysis | K71: 3 | R71: 1 | U71: 5
D72: 13 | E72: Writing up and presenting project report -Suggested Structure for your Project Report | K72: 3 | R72: 1 | U72: 5
D73: 14 | E73: Overview qualitative research | K73: 2 | R73: 1 | U73: 5
D74: 15
D75: 16
D76: 17
D77: 18
D78: 19
D79: 20
D80: SUB-TOTAL SLT: | X80: =SUM(M60:P79)+SUM(Q60:T79)+SUM(U60:W79) -> 84
D81: Continous Assessement | K81: % | M81: Face-to-Face (F2F) | U81: NF2F Independent Learning for Assessment (Asynchronous)
M82: Physical | Q82: Online/ Technology-mediated (Synchronous)
D83: 1 | E83: Individual assignment | K83: 20 | U83: =SUM(0.2*36) -> 7.2
D84: 2 | E84: Quiz | K84: 20 | U84: 7.2
D85: 3 | E85: Group assignment | K85: 30 | U85: =SUM(0.3*36) -> 10.8
D86: 4
D87: 5
D88: SUB-TOTAL SLT: | X88: =SUM(M83:W87) -> 25.2
D89: Final Assessement | K89: % | M89: Face-to-Face (F2F) | U89: NF2F Independent Learning for Assessment (Asynchronous)
M90: Physical | Q90: Online/ Technology-mediated (Synchronous)
D91: 1 | E91: Final exam | K91: 30 | Q91: 3 | U91: =SUM(0.3*36)-3 -> 7.8
D92: 2
D93: 3
D94: 4
D95: 5
D96: SUB-TOTAL SLT: | X96: =SUM(M91:W95) -> 10.8
D98: SLT for Assessment: | X98: =X88+X96 -> 36
D99: GRAND TOTAL SLT: | X99: =X98+X80 -> 120
D100: A | E100: % SLT for F2F Physical Component: [Total F2F Physical /(Total F2F Physical + Total F2F Online + Total Independent Learning) x 100)] | X100: =IFERROR(((SUM(M60:P79)+SUM(M83:P87)+SUM(M91:P95))/X99)* 100,"") -> 0
D102: B | E102: % SLT for Online & Independent Learning Component: [(Total F2F Online + Total Independent Learning) /( Total F2F Physical + Total F2F Online + Total Independent Learning) x 100] | X102: =IFERROR((SUM(Q60:W79)+SUM(Q83:W87) + SUM(Q91:W95))/X99 * 100,"") -> 100
D103: C | E103: % SLT for All Practical Component: [% F2F Physical Practical + % F2F Online Practical] | X103: =IFERROR(X104+X105,"") -> 0
D104: C1 | E104: % SLT for F2F Physical Practical Component [Total F2F Physical Practical /( Total F2F Physical + Total F2F Online + Total Independent Learning) x 100)] | X104: =IFERROR(SUM(O60:O79)/X99*100,"") -> 0
D105: C2 | E105: % SLT for F2F Online Practical Component [Total F2F Online Practical / (Total F2F Physical + Total F2F Online + Total Independent Learning) x 100] | X105: =IFERROR(SUM(S60:S79)/X99*100,"") -> 0
Z106: =IFERROR(X102+X104,"") -> 100
D107: Please tick (√) if this course is Industrial Training/ Clinical Placement/ Practicum using 50% of Effective Learning Time (ELT)
D108: Note:
D109: * Indicate the CLO based on the CLO's numbering in Item 8
D110: ** For ODL programme: Courses with mandatory practical requiremnets imposed by the programme standards or any related standards can be exempted from complying to the minimum 80% ODL delivery rule in the SLT.
B112: 11 | C112: Identify special requirement or resources to deliver the course (e.g., software, nursery, computer lab, simulation room etc)
B114: 12 | C114: References (include required and further readings, and should be the most current) | K114: 1. Jonathan Wilson (2017). Essentiasl of Business Research A Guide to doing your Research Project, 2nd Edition, Singapore SAGE. 2. Ulma Sekaran & Roger Bougie (2016). Research amethods for Business, 7th Edition, UK, WILEY. 3. Pamelo S. Schindler (2019). Business Research Methods, 13th Edition, McGraw Hill, New York. 4. Mark Saunders, Philip Lewis & Adrian Thornbill (2019). Research Methods for Business Student, 8th edition, Prentince Hall, UK. 4. Wilkins, S., Neri, S., & Lean, J. (2019). The role of theory in the business/management PhD: How students may use theory to make an original contribution to knowledge. The International Journal of Management Education, 17(3), 100316.
B116: 13 | C116: Other additional information (if applicable)
C119: Note: Number of PLO indicated is purely for illustration purposes only and the number is subjected to the curriculum design.

Sheet OBM3314
B2: Back To FORM @ TEMPLATE
AI3: √
B5: 1 | C5: Course Name: | F5: Global Marketing | AI5: Semester
C6: Course Code: | F6: OBM3314 | AI6: 1
C7: Course Classification: | F7: Major (core) | AI7: 2
B8: 2 | C8: Synopsis: | F8: This course introduces students to investigate how real life strategies of companies evolve with respect to the globalization of marketing process. It is the process of conceptualizing and then conveying a final product or service worldwide with the hopes of reaching the international marketing community. Different strategies are implemented based on the region the company is marketing to. It is especially important to companies that provide products or services that have a universal demand. It is more than simply selling a product internationally. It includes the whole process of planning, producing, placing, and promoting a company’s products in a worldwide market to increase sales in the global market. | AI8: 3
B9: =B8+1 -> 3 | C9: Name(s) of Academic Staff: | F9: 1 | G9: DR. SANTHI GOVINDAN
F10: 2 | AI10: Year Offered
F11: 3 | AI11: 1
B12: =B9+1 -> 4 | C12: Semester and Year offered: | F12: Year Offered | I12: 2 | J12: Semester | L12: 3 | M12: Remarks: | AI12: 2
B13: =B12+1 -> 5 | C13: Credit Value: | F13: =IF(X107 ="√",INT(X99/80),INT(X99/40)) -> 3 | AI13: 3
B14: 6 | C14: Pre-requisite/ co-requisite (if any): | F14: OBM3100 - Principles of Marketing | AI14: 4
AI15: 5
B16: 7 | C16: Course Learning Outcomes (CLO) | F16: CLO1 | H16: Apply marketing approach to opportunities and problems associated with global marketing in a dynamic world environment. (C3, PLO2) | AI16: 6
F17: CLO2 | H17: Use relevant resources in global marketing decision-making faced by real organisations. (A3,PLO4) | AI17: 7
F18: CLO3 | H18: Respond to dynamic nature of world trade and need for differention in competitive country markets. (A2, PLO5) | AI18: 8
AI20: Compulsory
AI21: Major (core)
AI22: Minor
AI23: Elective (core)
AI24: Elective (open/free)
B25: 8 | C25: Mapping of the Course Learning Outcomes to the Programme Learning Outcomes, Teaching Methods and Assessment Methods
D27: Course Learning Outcomes | F27: Programme Learning Outcomes (PLO) | R27: Teaching Methods | W27: Assessment Methods
F28: PLO 1 | G28: PLO 2 | H28: PLO 3 | I28: PLO 4 | J28: PLO 5 | K28: PLO 6 | L28: PLO 7 | M28: PLO 8 | N28: PLO 9 | O28: PLO 10 | P28: PLO 11
D29: =IF(ISBLANK(F16),"",F16) -> CLO1 | G29: √ | R29: Synchronous Tutorial Sessions (student centered facilitation) | W29: Final Exam
D30: CLO2 | I30: √ | R30: Synchronous Tutorial Sessions (student centered facilitation) | W30: Case Study & Assignment (Business Analysis)
D31: CLO3 | J31: √ | R31: Synchronous Tutorial Sessions (student centered facilitation) | W31: Presentation
AI36: Cognitive skills
D37: Mapping with MQF Cluster of Learning Outcomes | G37: C2 | I37: C3B | J37: C3C | AI37: Interpersonal skills
AI38: Communication Skills
AI39: Digital Skills
AI40: Numeracy Skills
D41: Indicate the primary causal link between the CLO and PLO by ticking '√' in the appropriate box. | AI41: Leadership, Autonomy and Responsibility
D42: C1 = Knowledge & Understanding, C2 = Cognitive Skills, C3A = Practical Skills, C3B = Interpersonal Skills, C3C = Communication Skills, C3D = Digital Skills, | AI42: Personal Skills
D43: C3E = Numeracy Skills, C3F = Leadership, Autonomy & Responsibility, C4A = Personal Skills, C4B = Entrepreneurial Skills, C5 = Ethics & Professionalism | AI43: Entrepreneurial Skills
AI44: Ethics and Professionalism
B45: 9 | C45: Transferable Skills (if applicable)
C46: (Skills learned in the course of study which can be useful and utilized in other settings) | I46: 1 | J46: Leadership, Autonomy and Responsibility | AI46: C1
I47: 2 | J47: Personal Skills | AI47: C2
I48: 3 | J48: Entrepreneurial Skills | AI48: C3A
I49: Open-ended response (if any) | AI49: C3B
I50: 4 | AI50: C3C
AI51: C3D
AB52: ` | AI52: C3E
B53: 10 | C53: Distribution of Student Learning Time (SLT) | AI53: C3F
C54: Note: This SLT calculation is designed for home grown programme only. | AI54: C4A
AI55: C4B
D56: Course Content Outline and Subtopics | K56: CLO* | M56: Learning and Teaching Activities** | X56: Total SLT | AI56: C5
M57: Face-to-Face (F2F) | U57: NF2F Independent Learning (Asynchronous)
M58: Physical | Q58: Online/ Technology-mediated (Synchronous)
M59: L | N59: T | O59: P | P59: O | Q59: L | R59: T | S59: P | T59: O
D60: 1 | E60: Introduction to Global Marketing, Trade and Markets: definition of global marketing, issues in trade and global markets. | K60: CLO1 | R60: 1 | U60: 5
D61: 2 | E61: Potential Market Assessment: Why need assessment?, Factors considered for market assessment, techniques used | K61: CLO1 | R61: 1 | U61: 5
D62: 3 | E62: Market Entry Strategies: Why need to understand market entry strategies?, type of market entry strategies | K62: CLO1 | R62: 1 | U62: 5
D63: 4 | E63: Global marketing Segmentation, Targeting and Positioning: how it is different with domestic market, segmentation strategies, targeting strategy, positioning consideration | K63: CLO2 | R63: 1 | U63: 5
D64: 5 | E64: Global Marketing Mix: why required? factors effect global marketing mix | K64: CLO2 | R64: 1 | U64: 5
D65: 6 | E65: Global Product Strategies: factors involved in product strategies, type of strategies | K65: CLO3 | R65: 1 | U65: 5
D66: 7 | E66: Global Pricing Strategies: factors considered, type of pricing | K66: CLO3 | R66: 1 | U66: 5
D67: 8 | E67: Global Promotion Strategies: factors involved, type of global promotion strategies | K67: CLO3 | R67: 1 | U67: 5
D68: 9 | E68: Global Distribution Strategies: factors that need to considered for decision making, type of distribution strategies | K68: CLO3 | R68: 1 | U68: 5
D69: 10 | E69: Global marketing Practice: culture, language, government policy, other factors | K69: CLO3 | R69: 1 | U69: 5
D70: =D69+1 -> 11 | E70: Ethical and Future Issues in Global Marketing- Part 1: legal complications, reputations | K70: CLO3 | R70: 1 | U70: 5
D71: 12 | E71: Ethical and Future Issues in Global Marketing- Part 2: brand positioning, other factors | K71: CLO3 | R71: 1 | U71: 5
D72: 13 | E72: Global Marketing and the Internet- Part 1: changing digital landscape | K72: CLO3 | R72: 1 | U72: 5
D73: 14 | E73: Global Marketing and the Internet- Part 2: plans, strategies | K73: CLO3 | R73: 1 | U73: 5
D74: 15
D75: 16
D76: 17
D77: 18
D78: 19
D79: 20
D80: SUB-TOTAL SLT: | X80: =SUM(M60:P79)+SUM(Q60:T79)+SUM(U60:W79) -> 84
D81: Continous Assessement | K81: % | M81: Face-to-Face (F2F) | U81: NF2F Independent Learning for Assessment (Asynchronous)
M82: Physical | Q82: Online/ Technology-mediated (Synchronous)
D83: 1 | E83: Case Study | K83: 30 | U83: 10.8
D84: 2 | E84: Assignment: Business Analysis | K84: 30 | U84: 10.8
D85: 3 | E85: Presentation/Topic Issues Practicum | K85: 10 | Q85: 0.5 | U85: 3.1
D86: 4
D87: 5
D88: SUB-TOTAL SLT: | X88: =SUM(M83:W87) -> 25.2
D89: Final Assessement | K89: % | M89: Face-to-Face (F2F) | U89: NF2F Independent Learning for Assessment (Asynchronous)
M90: Physical | Q90: Online/ Technology-mediated (Synchronous)
D91: 1 | E91: Final Exam | K91: 30 | Q91: 3 | U91: 7.8
D92: 2
D93: 3
D94: 4
D95: 5
D96: SUB-TOTAL SLT: | X96: =SUM(M91:W95) -> 10.8
D98: SLT for Assessment: | X98: =X88+X96 -> 36
D99: GRAND TOTAL SLT: | X99: =X98+X80 -> 120
D100: A | E100: % SLT for F2F Physical Component: [Total F2F Physical /(Total F2F Physical + Total F2F Online + Total Independent Learning) x 100)] | X100: =IFERROR(((SUM(M60:P79)+SUM(M83:P87)+SUM(M91:P95))/X99)* 100,"") -> 0
D102: B | E102: % SLT for Online & Independent Learning Component: [(Total F2F Online + Total Independent Learning) /( Total F2F Physical + Total F2F Online + Total Independent Learning) x 100] | X102: =IFERROR((SUM(Q60:W79)+SUM(Q83:W87) + SUM(Q91:W95))/X99 * 100,"") -> 100
D103: C | E103: % SLT for All Practical Component: [% F2F Physical Practical + % F2F Online Practical] | X103: =IFERROR(X104+X105,"") -> 0
D104: C1 | E104: % SLT for F2F Physical Practical Component [Total F2F Physical Practical /( Total F2F Physical + Total F2F Online + Total Independent Learning) x 100)] | X104: =IFERROR(SUM(O60:O79)/X99*100,"") -> 0
D105: C2 | E105: % SLT for F2F Online Practical Component [Total F2F Online Practical / (Total F2F Physical + Total F2F Online + Total Independent Learning) x 100] | X105: =IFERROR(SUM(S60:S79)/X99*100,"") -> 0
Z106: =IFERROR(X102+X104,"") -> 100
D107: Please tick (√) if this course is Industrial Training/ Clinical Placement/ Practicum using 50% of Effective Learning Time (ELT)
D108: Note:
D109: * Indicate the CLO based on the CLO's numbering in Item 8
D110: ** For ODL programme: Courses with mandatory practical requiremnets imposed by the programme standards or any related standards can be exempted from complying to the minimum 80% ODL delivery rule in the SLT.
B112: 11 | C112: Identify special requirement or resources to deliver the course (e.g., software, nursery, computer lab, simulation room etc) | K112: NIL
B114: 12 | C114: References (include required and further readings, and should be the most current) | K114: Main Reference: Mark Green and Warren Keegan (2019)., Global Marketing., (10th ed)., Pearson Additional Reference: 1) Warren J. Keegan and Mark C. Green. (2013)., Global Marketing. (7th ed)., USA, Pearson Education Limited. 2) Kotabe, M and Helsen, K (2011). Global Marketing Management (5th ed.). USA: Wiley. 3) Saputra, R., Sultani, R., & Harahap, S. F. (2023). Analysis Of Promotion And Marketing Strategies In The Global Market. Settings International Journal of Economic Research and Financial Accounting (IJERFA), 1(2). 4) Mauro, M. R., & Pernazza, F. (2023). General Introduction: State and Enterprise in the Global Market. In State and Enterprise: Legal Issues in the Global Market (pp. 1-50). Cham: Springer International Publishing. 5) Sheikh Khairudin, S. M. H., & Mohammad, M. A. (2023). The Effect of COVID-19 on Information Technology (IT) Marketing and Digital Business in Global Market. Journal of Information Technology Management, 15(Special Issue), 189-201. 6) Hong, A., Li, X., Wang, Y., & Shi, M. (2023). Can customization promote product innovation in the global B2B market? Evidence from export manufacturing firms from emerging markets. International Marketing Review
B116: 13 | C116: Other additional information (if applicable) | K116: NIL
C119: Note: Number of PLO indicated is purely for illustration purposes only and the number is subjected to the curriculum design.

Sheet OBM3230
B2: Back To FORM @ TEMPLATE
AI3: √
B5: 1 | C5: Course Name: | F5: Digital Marketing | AI5: Semester
C6: Course Code: | F6: OBM3230 | AI6: 1
C7: Course Classification: | F7: Major (core) | AI7: 2
B8: 2 | C8: Synopsis: | F8: This course explores digital marketing as a subset of a larger set of concepts and theories within the marketing discipline. Marketers make considerable use of interactive digital technologies: the Internet, interactive TV, SMS communications, electronic kiosks, etc. They do so to achieve a variety of goals: market intelligence provision, developing new business models, building customer profiles, direct and interactive communications, placing goods with customers through virtual stores, and working with customers to develop innovative new products and services. These activities present management with exciting opportunities, reveal new sources of competition, and also demand a re-evaluation of core competencies. Topics in this course include digital business models and digital marketing plan, web analytics, online consumer behaviours, driving web traffic and performance metrics, conversion optimization, building personal brand online, using analytics and data in digital marketing. | AI8: 3
B9: =B8+1 -> 3 | C9: Name(s) of Academic Staff: | F9: 1 | G9: Dr. Hamidah Md Yusop
F10: 2 | AI10: Year Offered
F11: 3 | AI11: 1
B12: =B9+1 -> 4 | C12: Semester and Year offered: | F12: Year Offered | I12: 2 | J12: Semester | L12: 3 | M12: Remarks: | AI12: 2
B13: =B12+1 -> 5 | C13: Credit Value: | F13: =IF(X107 ="√",INT(X99/80),INT(X99/40)) -> 3 | AI13: 3
B14: 6 | C14: Pre-requisite/ co-requisite (if any): | F14: OBM3100 - Principles of Marketing | AI14: 4
AI15: 5
B16: 7 | C16: Course Learning Outcomes (CLO) | F16: CLO1 | H16: Prepare the digital marketing terminologies, concpets, tools and platforms within business context in local and global environment (C3, PLO1). | AI16: 6
F17: CLO2 | H17: Respond with effective written and oral communication and collaborative skills in/for various types of digital marketing platform (A2, PLO5). | AI17: 7
F18: CLO3 | H18: Demonstrate a broad range of digital marketing applications techniques and digital skills in support of the digital business functions (C3,PLO7). | AI18: 8
AI20: Compulsory
AI21: Major (core)
AI22: Minor
AI23: Elective (core)
AI24: Elective (open/free)
B25: 8 | C25: Mapping of the Course Learning Outcomes to the Programme Learning Outcomes, Teaching Methods and Assessment Methods
D27: Course Learning Outcomes | F27: Programme Learning Outcomes (PLO) | R27: Teaching Methods | W27: Assessment Methods
F28: PLO 1 | G28: PLO 2 | H28: PLO 3 | I28: PLO 4 | J28: PLO 5 | K28: PLO 6 | L28: PLO 7 | M28: PLO 8 | N28: PLO 9 | O28: PLO 10 | P28: PLO 11
D29: =IF(ISBLANK(F16),"",F16) -> CLO1 | F29: √ | R29: Synchronous Tutorial Sessions (student centered facilitation) | W29: Mid Term, Final Examination
D30: CLO2 | J30: √ | R30: Synchronous Tutorial Sessions (student centered facilitation) | W30: Individual Assignment: Case Study, Final Examination
D31: CLO3 | L31: √ | R31: Synchronous Tutorial Sessions (student centered facilitation) | W31: Group Assignment : Digital Marketing Project, Presentation
AI36: Cognitive skills
D37: Mapping with MQF Cluster of Learning Outcomes | F37: C1 | J37: C3C | L37: C3D | AI37: Interpersonal skills
AI38: Communication Skills
AI39: Digital Skills
AI40: Numeracy Skills
D41: Indicate the primary causal link between the CLO and PLO by ticking '√' in the appropriate box. | AI41: Leadership, Autonomy and Responsibility
D42: C1 = Knowledge & Understanding, C2 = Cognitive Skills, C3A = Practical Skills, C3B = Interpersonal Skills, C3C = Communication Skills, C3D = Digital Skills, | AI42: Personal Skills
D43: C3E = Numeracy Skills, C3F = Leadership, Autonomy & Responsibility, C4A = Personal Skills, C4B = Entrepreneurial Skills, C5 = Ethics & Professionalism | AI43: Entrepreneurial Skills
AI44: Ethics and Professionalism
B45: 9 | C45: Transferable Skills (if applicable)
C46: (Skills learned in the course of study which can be useful and utilized in other settings) | I46: 1 | J46: Cognitive skills | AI46: C1
I47: 2 | J47: Communication Skills | AI47: C2
I48: 3 | J48: Digital Skills | AI48: C3A
I49: Open-ended response (if any) | AI49: C3B
I50: 4 | J50: Knowledge for PLO1 | AI50: C3C
AI51: C3D
AB52: ` | AI52: C3E
B53: 10 | C53: Distribution of Student Learning Time (SLT) | AI53: C3F
C54: Note: This SLT calculation is designed for home grown programme only. | AI54: C4A
AI55: C4B
D56: Course Content Outline and Subtopics | K56: CLO* | M56: Learning and Teaching Activities** | X56: Total SLT | AI56: C5
M57: Face-to-Face (F2F) | U57: NF2F Independent Learning (Asynchronous)
M58: Physical | Q58: Online/ Technology-mediated (Synchronous)
M59: L | N59: T | O59: P | P59: O | Q59: L | R59: T | S59: P | T59: O
D60: 1 | E60: The Foundation of Digital Marketing -The 4Ps of marketing - Porter's Forces - Brand or PErceptual Mapping map - Customer lifetime value - Segmentation - BSG Matrix | K60: CLO1 | R60: 1 | U60: 5
D61: 2 | E61: Introduction to CRM - User Experience - User experience research - Design Thinking | K61: CLO1 | R61: 1 | U61: 5
D62: 3 | E62: Affliate Marketing - What is Affiliate marketing - why affiliate marketing better than door to door - Who's involved in Affliliate marketing - The benefits of affiliate marketing - the downside of affiliate marketing | K62: CLO1 | R62: 1 | U62: 5
D63: 4 | E63: The Implications of the Internet and Digital Technologies on Marketing Practices and Strategies (Part 1) - Understranding Digital ecosystem | K63: CLO1 | R63: 1 | U63: 5
D64: 5 | E64: The Implications of the Internet and Digital Technologies on Marketing Practices and Strategies (Part 2) - intergrating digital Into wider organzation Strategy | K64: CLO1 | R64: 1 | U64: 5
D65: 6 | E65: Understand the Tools to Evaluate the Use of the Digital Technologies on Marketing Effectiveness (Part 1) - understanding the evolving digital cusumers | K65: CLO2 | R65: 1 | U65: 5
D66: 7 | E66: Understand the Tools to Evaluate the Use of the Digital Technologies on Marketing Effectiveness (Part 2) - Barriers, considerations and data protection in digital marketing strategy | K66: CLO2 | R66: 1 | U66: 5
D67: 8 | E67: Develop and Deploy Digital Marketing Strategies (Part 1) - Using channel strategy to reach customer | K67: CLO3 | R67: 1 | U67: 5
D68: 9 | E68: Develop and Deploy Digital Marketing Strategies (Part 2) - Pay-per-click advertising | K68: CLO3 | R68: 1 | U68: 5
D69: 10 | E69: Develop and Deploy Digital Marketing Strategies (Part 3) - Social Engagement | K69: CLO3 | R69: 1 | U69: 5
D70: =D69+1 -> 11 | E70: Develop and Deploy Digital Marketing Strategies (Part 4) - Social Media Marketing | K70: CLO3 | R70: 1 | U70: 5
D71: 12 | E71: Develop and Deploy Digital Marketing Strategies (Part 5) - Mobile Marketing | K71: CLO3 | R71: 1 | U71: 5
D72: 13 | E72: Understand the Role of Ethics and Ethical Behaviour in Social Media and Digital Marketing Part 1 | K72: CLO2 | R72: 1 | U72: 5
D73: 14 | E73: Understand the Role of Ethics and Ethical Behaviour in Social Media and Digital Marketing Part 2 | K73: CLO2 | R73: 1 | U73: 5
D74: 15
D75: 16
D76: 17
D77: 18
D78: 19
D79: 20
D80: SUB-TOTAL SLT: | X80: =SUM(M60:P79)+SUM(Q60:T79)+SUM(U60:W79) -> 84
D81: Continous Assessement | K81: % | M81: Face-to-Face (F2F) | U81: NF2F Independent Learning for Assessment (Asynchronous)
M82: Physical | Q82: Online/ Technology-mediated (Synchronous)
D83: 1 | E83: Individual Assignment: Case Study | K83: 20 | U83: =SUM(0.2*36) -> 7.2
D84: 2 | E84: Mid-term | K84: 20 | U84: 7.2
D85: 3 | E85: Group Assignment : Digital Marketing Project | K85: 30 | U85: =SUM(0.3*36) -> 10.8
D86: 4
D87: 5
D88: SUB-TOTAL SLT: | X88: =SUM(M83:W87) -> 25.2
D89: Final Assessement | K89: % | M89: Face-to-Face (F2F) | U89: NF2F Independent Learning for Assessment (Asynchronous)
M90: Physical | Q90: Online/ Technology-mediated (Synchronous)
